Workbook

Sheet Users Guide
C6: MSU 2026 Farm Bill Analyzer USERS GUIDE
C7: Version 1.0
C8: Michigan State University Extension
C9: Based on design created by Roger Betz
C11: The MSU FARM BILL ANALYZER provides an analysis of the one important decision that are included in the Agricultural Act of 2018 (the 2018 Farm Bill). Owners and/or tenants can elect either the Agricultural Risk Coverage (ARC-CO or ARC-IC) or Price Loss Coverage (PLC) programs for each covered commodity on each of their farms.
C13: This FARM BILL ANALYZER provides farm management information on the ARC Co versus PLC decisions based on assumptions about county yields and national market prices. Given the inputted variables listed below, the MSU FARM BILL ANALYZER will calculate the consequences for the farm manager’s alternative decisions the election of ARC-CO or PLC programs. The ARC Individual (ARC-IC) program is not analyzed by the tool but is available in the Farm Bill.
C15: Disclaimer: This MSU FARM BILL ANALYZER is designed with the most recent information available about the provisions of the current Farm Bill.
C17: I. To operate the MSU FARM BILL ANALYZER, the user will need the following information:
C18: A. The Farm Service Agency (FSA) PLC program yields by FSA farm number.
C19: B. If the farm has irrigated yields, the irrigated and non-irrigated yields by acres by year need to be separated.
C20: C. Assumed county average yields (irrigated and non-irrigated) for the county in which the farm is located.
C21: D. Assumed national market year average prices (MYA) for the upcoming season.
C22: E. If considering purchase of a Supplemental Coverage Option (SCO) policy, intended planting acres, projected premiums and indemnity payments
C24: II. Operation of the tool:
C25: A. The green colored cells are where data and information can be entered. All non-green cells are protected from changes.
C26: B. Where the program says to < SELECT, highlight the green colored cells to the left by clicking on it and a "scroll button" will appear to make your selection. Click on the "scroll button" to activate the choices.
C27: C. The tool has several grey colored buttons to perform various macros contained with in the spreadsheet.
C28: D. Various formulas may appear in green cells that can be changed. It is ok and encouraged to use your own values in these cells. The various macro buttons will restore these formulas and default values.
C30: III. Steps for Data Entry:
C31: Step 1. Select from pull down menu the Farm's County. Then enter a farm name of your choice and the FSA Farm Number.
C32: Step 2. Enter the farm's PLC program base acres for all covered commodities on the farm. FSA form CCC-861
C33: Note: In the Farm Bill, “covered commodities” with base acres in Michigan include barley, oats, and some others. If you have a significant base in these crops, please contact the MSU Extension Farm Business Management team or use one of the other national analyzer programs.
C34: Step 3. Enter the farm’s PLC program yield for all covered commodities on the farm. FSA form CCC-861
C35: Step 4. Enter the farm's intended planted acres for all covered commodities on the farm. (Only needed for SCO policy considering, otherwise, may skip)
C36: Note: Intended planted acres are only needed for the Supplemental Coverage Option (SCO) policy consideration. If you do plan to consider purchase of a SCO policy, this step may be skipped.
C37: Step 4. Enter assumed county yields for the upcoming crop year
C38: Note: You can adjust the county yields by entering different yields directly or adjusting their percentage. A default for 90% of county yields is available to demonstrate scenarios of significant yield loss.
C39: Note #2: If a county does not list a yield (i.e., soybeans for Alger county), USDA does not have a recorded county yield on file. Check with your local USDA Farm Service Agency office on how ARC programs are calculated in your specific county.
C40: Step 6. Select the SCO coverage level and enter the anticipated payment using the ECO/SCO Payment Estimator from Farmdoc
C41: https://farmdoc.illinois.edu/fast-tools/eco-sco-payment-estimator
C42: Step 5. Select or Enter Projected Market Year National Average Prices. (MYA)
C43: A. Various projected prices from alternative sources can be chosen by using the “drop-down” menu.
C44: B. The user can also increase or decrease these base price projections by entering the desired percent change.
C45: C. The default values can be restored by using the “Restore Default Price Projections” button.
C47: IV. FSA Decision:
C48: FSA Decision 1:
C49: Based on the inputted values the tool calculates the results. Look for the highest payments for the upcoming year for each crop; corn, soys and wheat. It is important to test various scenarios to see the impacts of various yields and prices. Low prices and average or high yields usually favors PLC. Low yields and low prices may favor ARC-CO or PLC depending on the crop, the county and levels of low prices and low yields.
C50: FSA Decision 2:
C51: SCO can only be used if a farm selects PLC. SCO is an insurance policy that requires a premium payment in order to receive benefits. Based on the input anticipated benefit after premium, the tool calculates whether PLC with SCO offers a higher potential payment compared to ARC-CO.
C53: V. Interpretation of Results: The results calculated by the MSU FARM BILL ANALYZER -- Results include:
C54: A. ARC-CO versus PLC: What is the consequence of electing to enroll the farm in ARC-CO or PLC? The MSU FARM BILL ANALYZER compares the farm’s expected total program payment for each covered commodity under each of these two program choices.
C55: B. Color coding is used to help quickly see which program has the highs payment given the inputted information. Green is highest and red is lowest program payment choice.
C57: VI. Conclusion:
C58: Given the many factors that could affect the two major decisions contained in the Farm Bill, users are encouraged to consider:
C59: A. Running a wide range of scenarios for prices and yields for the upcoming year. Use the best information available for the upcoming year as sign up deadline is March 15th of the crop year decision. Testing various prices and yields is highly recommended and the calculator is designed to accommodate this testing of the USDA program.
C60: B. The farm managers risk preference will effect the final decision made; not simply the result from the most likely prices and yields. What happens when prices and/or yields?
C62: MSU Farm Bill ARC-PLC Decision Making Tool © 2025 Michigan State University Board of Trustees. 4-H and other Cooperative Extension System groups and other nonprofit educational groups may print hard copies of this material for noncommercial, educational use, provided that attribution is given to Michigan State University Extension. All other rights reserved. For information, contact MSU Extension, 108 Agriculture Hall, 446 West Circle Drive, East Lansing, MI 48824.
C64: Michigan State University Extension programs and materials are open to all without regard to race, color, national origin, gender, gender identity, religion, age, height, weight, disability, political beliefs, sexual orientation, marital status, family status or veteran status. Issued in furtherance of MSU Extension work, acts of May 8 and June 30, 1914, in cooperation with the U.S. Department of Agriculture. Quentin Tyler, Director, MSU Extension, East Lansing, MI 48824. This information is for educational purposes only. Reference to commercial products or trade names does not imply endorsement by MSU Extension or bias against those not mentioned.
C66: VII. Version Updates

Sheet Farm Bill Calculator
C1: MSU 2026 FARM BILL ANALYZER
C2: Version 1.0
A3: Step 1. Select Farm's County
B4: County Farm located: | C4: Alcona | D4: < Select County | E4: Farm Name: | F4: Smith
E5: Farm Number: | F5: 1234
A7: Step 2. Enter Acres, Yields and Irrigation Percentage (from FSA CCC-861,156) for each farm
B8: Commodity | C8: Corn | D8: Soybeans | E8: Wheat
B9: Base Acres | C9: 0 | D9: 0 | E9: 0 | F9: =SUM(C9:E9) -> 0 | G9: Total Base Acres
B10: PLC Yield | C10: 0 | D10: 0 | E10: 0
B11: Historical Irrigated Percentage | C11: 0 | D11: 0 | E11: 0
E13: CORN | G13: SOYBEANS | I13: WHEAT
D14: National Loan Rates | E14: 2.2 | G14: 6.2 | I14: 3.38
D15: Effective Reference Prices | E15: ='Background Calculations'!T41 -> 4.423466667 | G15: ='Background Calculations'!T42 -> 10.70666667 | I15: ='Background Calculations'!T43 -> 6.35
D16: Benchmark Prices | E16: ='Background Calculations'!N54 -> 5.03 | G16: ='Background Calculations'!N55 -> 12.17 | I16: ='Background Calculations'!N56 -> 6.98
E17: Benchmark Years 2018 - 2022
A18: Step 3. Enter Anticipated COUNTY Yields
D19: =C4 -> Alcona | E19: County Weighted Yield (Irrigated and Dry)
D20: % Irrigated | E20: =C11 -> 0 | G20: =D11 -> 0 | I20: =E11 -> 0
E21: Anticipated COUNTY Yields
E22: ='Background Calculations'!N34*(1+F22) -> 151.5766667 | F22: 0 | G22: ='Background Calculations'!N35*(1+H22) -> 36.8 | H22: 0 | I22: ='Background Calculations'!N36*(1+J22) -> 64.27333333 | J22: 0
D23: Percent of Benchmark Yield | E23: =E22/'Background Calculations'!N34 -> 1 | G23: =G22/'Background Calculations'!N35 -> 1 | I23: =I22/'Background Calculations'!N36 -> 1
A25: Step 4. Enter or Select Projected Prices
D26: Base Assumptions for MYA Prices to Use: | E26: Kansas State (2025/2026) | H26: < Select Base Prices Source
D28: Price Change from Base assumptions: | E28: Projected Crop Prices
E29: CORN | G29: SOYBEANS | I29: WHEAT
E30: =E31*(1+F30) -> 4.12 | F30: 0 | G30: =G31*(1+H30) -> 10.25 | H30: =F30 -> 0 | I30: =I31*(1+J30) -> 5.06 | J30: =H30 -> 0
E31: =VLOOKUP(E26,'MYA Prices'!B4:E14,2,FALSE) -> 4.12 | G31: =VLOOKUP(E26,'MYA Prices'!B4:E14,3,FALSE) -> 10.25 | I31: =VLOOKUP(E26,'MYA Prices'!B4:E14,4,FALSE) -> 5.06
D32: Percent of Benchmark Price | E32: =E30/E16 -> 0.8190854871 | G32: =G30/G16 -> 0.8422350041 | I32: =I30/I16 -> 0.7249283668
A34: Step 5. Evaluate the Results | E34: Program Year Choice?
A35: Per Base Acre | B35: Projected Program Payments | E35: CORN | F35: Max Pmt? | G35: SOYBEANS | H35: Max Pmt? | I35: WHEAT | J35: Max Pmt?
B36: PLC | E36: =IF(E30>E14,IF(E30<E15,E15-E30,0)*C10,(E15-E14)*C10)*(0.85) -> 0 | F36: =IF(E36=((E15-E14)*C10)*0.85,"Yes","No") -> Yes | G36: =IF(G30>G14,IF(G30<G15,G15-G30,0)*D10,(G15-G14)*D10)*(0.85) -> 0 | H36: =IF(G36=((G15-G14)*D10)*0.85,"Yes","No") -> Yes | I36: =IF(I30>I14,IF(I30<I15,I15-I30,0)*E10,(I15-I14)*E10)*(0.85) -> 0 | J36: =IF(I36=((I15-I14)*E10)*0.85,"Yes","No") -> Yes
B37: ARC-CO | E37: ='Background Calculations'!T34*0.85 -> 52.43794783 | F37: =IF(E37=('Background Calculations'!R34*0.85),"Yes","No") -> No | G37: ='Background Calculations'!T35*0.85 -> 21.98984 | H37: =IF(G37=('Background Calculations'!R35*0.85),"Yes","No") -> No | I37: ='Background Calculations'!T36*0.85 -> 45.7600424 | J37: =IF(I37=('Background Calculations'!R36*0.85),"Yes","No") -> Yes
E38: NA | G38: NA | I38: NA
A39: Decision Point > | B39: Best PLC or ARC-CO | E39: =MAX(E36:E37) -> 52.43794783 | G39: =MAX(G36:G37) -> 21.98984 | I39: =MAX(I36:I37) -> 45.7600424

Sheet MYA Prices (hidden)
A1: 1 | B1: 2 | C1: 3 | D1: 4 | E1: 5 | F1: 6 | G1: 7 | H1: 8 | I1: 9 | J1: 10 | K1: 11 | L1: 12 | M1: 13 | N1: 14 | O1: 15 | P1: 16 | Q1: 17 | R1: 18 | S1: 19 | T1: 20
B2: 1 | C2: 2 | D2: 3 | E2: 4
C3: Corn 26/27 | D3: SOY 26/27 | E3: Wheat 26/27
B4: CBO Baseline | C4: 4.05 | D4: 9.9 | E4: 5.6
B5: FAPRI | C5: 4.19 | D5: 10.06 | E5: 5.33
B6: Futures '26 Harvest (as of 9/15/2025) | C6: 4.66 | D6: 10.81 | E6: 5.63
B7: Kansas State (2025/2026) | C7: 4.12 | D7: 10.25 | E7: 5.06
B8: USDA/ERS MYA Proj (2026/2027)
B9: USDA/ERS Ag Baseline Projections | C9: 4 | D9: 10 | E9: 5.9
B10: USDA/WASDE (2025/2026) | C10: 3.9 | D10: 10 | E10: 5.1
B11: ARC-CO Benchmark Price | C11: ='Background Calculations'!N54 -> 5.03 | D11: ='Background Calculations'!N55 -> 12.17 | E11: ='Background Calculations'!N56 -> 6.98
B12: Effective Reference Prices | C12: ='Farm Bill Calculator'!E15 -> 4.423466667 | D12: ='Farm Bill Calculator'!G15 -> 10.70666667 | E12: ='Farm Bill Calculator'!I15 -> 6.35
B13: Statutory Reference Prices | C13: 4.1 | D13: 10 | E13: 6.35
B14: Average | C14: =AVERAGEIF(C4:C10,"<>0") -> 4.153333333 | D14: =AVERAGEIF(D4:D10,"<>0") -> 10.17 | E14: =AVERAGEIF(E4:E10,"<>0") -> 5.436666667
D17: Updated 8/19/2025
O18: UPDATES
D19: FAPRI - Food and Agricultural Policy Research Institute (http://www.fapri.missouri.edu/) | I19: http://www.fapri.missouri.edu/
D20: USDA's Agricultural Projections to 2028
D21: CBO's April 2024 Baseline | G21: https://www.cbo.gov/data/baseline-projections-selected-programs#25
D23: K State Ag Manager | G23: https://www.agmanager.info/crop-insurance/risk-management-strategies/projections-and-sources-mya-prices-arc-and-plc-commodity
D27: https://www.agmanager.info/crop-insurance/risk-management-strategies/mya-price-estimates-updated-arc-and-plc-commodity-0
D28: https://www.usda.gov/oce/commodity/wasde/
D29: https://www.fapri.missouri.edu/
D30: https://www.ers.usda.gov/data-products/season-average-price-forecasts/

Sheet Background Calculations (hidden)
C1: ='Farm Bill Calculator'!C4 -> Alcona
D2: County Trend Yield from FSA ARC-CO | E2: 2017 | F2: 2018 | G2: 2019 | H2: 2020 | I2: 2021 | J2: 2022 | K2: 2023 | L2: 2024 | M2: 2025 | N2: 2026
B3: all | C3: Corn | D3: ='Farm Bill Calculator'!$C$4&C3&B3 -> AlconaCornall | E3: =IFERROR(VLOOKUP($D3,'ARC-CO Calculations'!$B$5:$Q$289,9,0),0) -> 134.49 | F3: =IFERROR(VLOOKUP($D3,'ARC-CO Calculations'!$B$5:$Q$289,10,0),0) -> 126.52 | G3: =IFERROR(VLOOKUP($D3,'ARC-CO Calculations'!$B$5:$Q$289,11,0),0) -> 96.64 | H3: =IFERROR(VLOOKUP($D3,'ARC-CO Calculations'!$B$5:$Q$289,12,0),0) -> 147.74 | I3: =IFERROR(VLOOKUP($D3,'ARC-CO Calculations'!$B$5:$Q$289,13,0),0) -> 193.4 | J3: =IFERROR(VLOOKUP($D3,'ARC-CO Calculations'!$B$5:$Q$289,14,0),0) -> 155.94 | K3: =IFERROR(VLOOKUP($D3,'ARC-CO Calculations'!$B$5:$Q$289,15,0),0) -> 142.64 | L3: =IFERROR(VLOOKUP($D3,'ARC-CO Calculations'!$B$5:$Q$289,16,0),0) -> 151.05 | M3: =IFERROR(VLOOKUP($D3,'ARC-CO Calculations'!$B$5:$R$289,17,0),0) -> 159.454 | N3: =IFERROR(VLOOKUP($D3,'ARC-CO Calculations'!$B$5:$S$289,18,0),0) -> 161.7968
B4: all | C4: soybeans | D4: ='Farm Bill Calculator'!$C$4&C4&B4 -> Alconasoybeansall | E4: =IFERROR(VLOOKUP($D4,'ARC-CO Calculations'!$B$5:$Q$289,9,0),0) -> 37 | F4: =IFERROR(VLOOKUP($D4,'ARC-CO Calculations'!$B$5:$Q$289,10,0),0) -> 35.03 | G4: =IFERROR(VLOOKUP($D4,'ARC-CO Calculations'!$B$5:$Q$289,11,0),0) -> 35.23 | H4: =IFERROR(VLOOKUP($D4,'ARC-CO Calculations'!$B$5:$Q$289,12,0),0) -> 38.2 | I4: =IFERROR(VLOOKUP($D4,'ARC-CO Calculations'!$B$5:$Q$289,13,0),0) -> 46.18 | J4: =IFERROR(VLOOKUP($D4,'ARC-CO Calculations'!$B$5:$Q$289,14,0),0) -> 41.38 | K4: =IFERROR(VLOOKUP($D4,'ARC-CO Calculations'!$B$5:$Q$289,15,0),0) -> 30.82 | L4: =IFERROR(VLOOKUP($D4,'ARC-CO Calculations'!$B$5:$Q$289,16,0),0) -> 18.32 | M4: =IFERROR(VLOOKUP($D4,'ARC-CO Calculations'!$B$5:$R$289,17,0),0) -> 34.98 | N4: =IFERROR(VLOOKUP($D4,'ARC-CO Calculations'!$B$5:$S$289,18,0),0) -> 34.336
B5: all | C5: Wheat | D5: ='Farm Bill Calculator'!$C$4&C5&B5 -> AlconaWheatall | E5: =IFERROR(VLOOKUP($D5,'ARC-CO Calculations'!$B$5:$Q$289,9,0),0) -> 49.32 | F5: =IFERROR(VLOOKUP($D5,'ARC-CO Calculations'!$B$5:$Q$289,10,0),0) -> 47.83 | G5: =IFERROR(VLOOKUP($D5,'ARC-CO Calculations'!$B$5:$Q$289,11,0),0) -> 58.66 | H5: =IFERROR(VLOOKUP($D5,'ARC-CO Calculations'!$B$5:$Q$289,12,0),0) -> 59.68 | I5: =IFERROR(VLOOKUP($D5,'ARC-CO Calculations'!$B$5:$Q$289,13,0),0) -> 53.93 | J5: =IFERROR(VLOOKUP($D5,'ARC-CO Calculations'!$B$5:$Q$289,14,0),0) -> 67.72 | K5: =IFERROR(VLOOKUP($D5,'ARC-CO Calculations'!$B$5:$Q$289,15,0),0) -> 65.42 | L5: =IFERROR(VLOOKUP($D5,'ARC-CO Calculations'!$B$5:$Q$289,16,0),0) -> 69.3 | M5: =IFERROR(VLOOKUP($D5,'ARC-CO Calculations'!$B$5:$R$289,17,0),0) -> 63.82 | N5: =IFERROR(VLOOKUP($D5,'ARC-CO Calculations'!$B$5:$S$289,18,0),0) -> 64.648
B6: Irrigated | C6: Corn | D6: ='Farm Bill Calculator'!$C$4&C6&B6 -> AlconaCornIrrigated | E6: =IFERROR(VLOOKUP($D6,'ARC-CO Calculations'!$B$5:$Q$289,9,0),0) -> 0 | F6: =IFERROR(VLOOKUP($D6,'ARC-CO Calculations'!$B$5:$Q$289,10,0),0) -> 0 | G6: =IFERROR(VLOOKUP($D6,'ARC-CO Calculations'!$B$5:$Q$289,11,0),0) -> 0 | H6: =IFERROR(VLOOKUP($D6,'ARC-CO Calculations'!$B$5:$Q$289,12,0),0) -> 0 | I6: =IFERROR(VLOOKUP($D6,'ARC-CO Calculations'!$B$5:$Q$289,13,0),0) -> 0 | J6: =IFERROR(VLOOKUP($D6,'ARC-CO Calculations'!$B$5:$Q$289,14,0),0) -> 0 | K6: =IFERROR(VLOOKUP($D6,'ARC-CO Calculations'!$B$5:$Q$289,15,0),0) -> 0 | L6: =IFERROR(VLOOKUP($D6,'ARC-CO Calculations'!$B$5:$Q$289,16,0),0) -> 0 | M6: =IFERROR(VLOOKUP($D6,'ARC-CO Calculations'!$B$5:$R$289,17,0),0) -> 0 | N6: =IFERROR(VLOOKUP($D6,'ARC-CO Calculations'!$B$5:$S$289,18,0),0) -> 0
B7: Irrigated | C7: soybeans | D7: ='Farm Bill Calculator'!$C$4&C7&B7 -> AlconasoybeansIrrigated | E7: =IFERROR(VLOOKUP($D7,'ARC-CO Calculations'!$B$5:$Q$289,9,0),0) -> 0 | F7: =IFERROR(VLOOKUP($D7,'ARC-CO Calculations'!$B$5:$Q$289,10,0),0) -> 0 | G7: =IFERROR(VLOOKUP($D7,'ARC-CO Calculations'!$B$5:$Q$289,11,0),0) -> 0 | H7: =IFERROR(VLOOKUP($D7,'ARC-CO Calculations'!$B$5:$Q$289,12,0),0) -> 0 | I7: =IFERROR(VLOOKUP($D7,'ARC-CO Calculations'!$B$5:$Q$289,13,0),0) -> 0 | J7: =IFERROR(VLOOKUP($D7,'ARC-CO Calculations'!$B$5:$Q$289,14,0),0) -> 0 | K7: =IFERROR(VLOOKUP($D7,'ARC-CO Calculations'!$B$5:$Q$289,15,0),0) -> 0 | L7: =IFERROR(VLOOKUP($D7,'ARC-CO Calculations'!$B$5:$Q$289,16,0),0) -> 0 | M7: =IFERROR(VLOOKUP($D7,'ARC-CO Calculations'!$B$5:$R$289,17,0),0) -> 0 | N7: =IFERROR(VLOOKUP($D7,'ARC-CO Calculations'!$B$5:$S$289,18,0),0) -> 0
B8: nonirrigated | C8: Corn | D8: ='Farm Bill Calculator'!$C$4&C8&B8 -> AlconaCornnonirrigated | E8: =IFERROR(VLOOKUP($D8,'ARC-CO Calculations'!$B$5:$Q$289,9,0),0) -> 0 | F8: =IFERROR(VLOOKUP($D8,'ARC-CO Calculations'!$B$5:$Q$289,10,0),0) -> 0 | G8: =IFERROR(VLOOKUP($D8,'ARC-CO Calculations'!$B$5:$Q$289,11,0),0) -> 0 | H8: =IFERROR(VLOOKUP($D8,'ARC-CO Calculations'!$B$5:$Q$289,12,0),0) -> 0 | I8: =IFERROR(VLOOKUP($D8,'ARC-CO Calculations'!$B$5:$Q$289,13,0),0) -> 0 | J8: =IFERROR(VLOOKUP($D8,'ARC-CO Calculations'!$B$5:$Q$289,14,0),0) -> 0 | K8: =IFERROR(VLOOKUP($D8,'ARC-CO Calculations'!$B$5:$Q$289,15,0),0) -> 0 | L8: =IFERROR(VLOOKUP($D8,'ARC-CO Calculations'!$B$5:$Q$289,16,0),0) -> 0 | M8: =IFERROR(VLOOKUP($D8,'ARC-CO Calculations'!$B$5:$R$289,17,0),0) -> 0 | N8: =IFERROR(VLOOKUP($D8,'ARC-CO Calculations'!$B$5:$S$289,18,0),0) -> 0
B9: nonirrigated | C9: soybeans | D9: ='Farm Bill Calculator'!$C$4&C9&B9 -> Alconasoybeansnonirrigated | E9: =IFERROR(VLOOKUP($D9,'ARC-CO Calculations'!$B$5:$Q$289,9,0),0) -> 0 | F9: =IFERROR(VLOOKUP($D9,'ARC-CO Calculations'!$B$5:$Q$289,10,0),0) -> 0 | G9: =IFERROR(VLOOKUP($D9,'ARC-CO Calculations'!$B$5:$Q$289,11,0),0) -> 0 | H9: =IFERROR(VLOOKUP($D9,'ARC-CO Calculations'!$B$5:$Q$289,12,0),0) -> 0 | I9: =IFERROR(VLOOKUP($D9,'ARC-CO Calculations'!$B$5:$Q$289,13,0),0) -> 0 | J9: =IFERROR(VLOOKUP($D9,'ARC-CO Calculations'!$B$5:$Q$289,14,0),0) -> 0 | K9: =IFERROR(VLOOKUP($D9,'ARC-CO Calculations'!$B$5:$Q$289,15,0),0) -> 0 | L9: =IFERROR(VLOOKUP($D9,'ARC-CO Calculations'!$B$5:$Q$289,16,0),0) -> 0 | M9: =IFERROR(VLOOKUP($D9,'ARC-CO Calculations'!$B$5:$R$289,17,0),0) -> 0 | N9: =IFERROR(VLOOKUP($D9,'ARC-CO Calculations'!$B$5:$S$289,18,0),0) -> 0
B10: Irrigated | C10: Wheat | D10: ='Farm Bill Calculator'!$C$4&C10&B10 -> AlconaWheatIrrigated | E10: =IFERROR(VLOOKUP($D10,'ARC-CO Calculations'!$B$5:$Q$289,9,0),0) -> 0 | F10: =IFERROR(VLOOKUP($D10,'ARC-CO Calculations'!$B$5:$Q$289,10,0),0) -> 0 | G10: =IFERROR(VLOOKUP($D10,'ARC-CO Calculations'!$B$5:$Q$289,11,0),0) -> 0 | H10: =IFERROR(VLOOKUP($D10,'ARC-CO Calculations'!$B$5:$Q$289,12,0),0) -> 0 | I10: =IFERROR(VLOOKUP($D10,'ARC-CO Calculations'!$B$5:$Q$289,13,0),0) -> 0 | J10: =IFERROR(VLOOKUP($D10,'ARC-CO Calculations'!$B$5:$Q$289,14,0),0) -> 0 | K10: =IFERROR(VLOOKUP($D10,'ARC-CO Calculations'!$B$5:$Q$289,15,0),0) -> 0 | L10: =IFERROR(VLOOKUP($D10,'ARC-CO Calculations'!$B$5:$Q$289,16,0),0) -> 0 | M10: =IFERROR(VLOOKUP($D10,'ARC-CO Calculations'!$B$5:$R$289,17,0),0) -> 0 | N10: =IFERROR(VLOOKUP($D10,'ARC-CO Calculations'!$B$5:$S$289,18,0),0) -> 0
B11: nonirrigated | C11: Wheat | D11: ='Farm Bill Calculator'!$C$4&C11&B11 -> AlconaWheatnonirrigated | E11: =IFERROR(VLOOKUP($D11,'ARC-CO Calculations'!$B$5:$Q$289,9,0),0) -> 0 | F11: =IFERROR(VLOOKUP($D11,'ARC-CO Calculations'!$B$5:$Q$289,10,0),0) -> 0 | G11: =IFERROR(VLOOKUP($D11,'ARC-CO Calculations'!$B$5:$Q$289,11,0),0) -> 0 | H11: =IFERROR(VLOOKUP($D11,'ARC-CO Calculations'!$B$5:$Q$289,12,0),0) -> 0 | I11: =IFERROR(VLOOKUP($D11,'ARC-CO Calculations'!$B$5:$Q$289,13,0),0) -> 0 | J11: =IFERROR(VLOOKUP($D11,'ARC-CO Calculations'!$B$5:$Q$289,14,0),0) -> 0 | K11: =IFERROR(VLOOKUP($D11,'ARC-CO Calculations'!$B$5:$Q$289,15,0),0) -> 0 | L11: =IFERROR(VLOOKUP($D11,'ARC-CO Calculations'!$B$5:$Q$289,16,0),0) -> 0 | M11: =IFERROR(VLOOKUP($D11,'ARC-CO Calculations'!$B$5:$R$289,17,0),0) -> 0 | N11: =IFERROR(VLOOKUP($D11,'ARC-CO Calculations'!$B$5:$S$289,18,0),0) -> 0
C13: County Olympic Average Yield ARC-CO | E13: 2017 | F13: 2018 | G13: 2019 | H13: 2020 | I13: 2021 | J13: 2022 | K13: 2023 | L13: 2024 | M13: 2025 | N13: 2026
C14: Corn | D14: =D3 -> AlconaCornall | G14: =(SUM(E3:E3)-MAX(E3:E3)-MIN(E3:E3))/3 -> -44.83 | H14: =(SUM(E3:F3)-MAX(E3:F3)-MIN(E3:F3))/3 -> -4.736951572e-15 | I14: =(SUM(E3:G3)-MAX(E3:G3)-MIN(E3:G3))/3 -> 42.17333333 | J14: =(SUM(E3:H3)-MAX(E3:H3)-MIN(E3:H3))/3 -> 87.00333333 | K14: =(SUM(E3:I3)-MAX(E3:I3)-MIN(E3:I3))/3 -> 136.25 | L14: =(SUM(F3:J3)-MAX(F3:J3)-MIN(F3:J3))/3 -> 143.4 | M14: =(SUM(G3:K3)-MAX(G3:K3)-MIN(G3:K3))/3 -> 148.7733333 | N14: =(SUM(H3:L3)-MAX(H3:L3)-MIN(H3:L3))/3 -> 151.5766667
C15: soybeans | D15: Alconasoybeansall | G15: =((SUM(E4:E4)-MAX(E4:E4)-MIN(E4:E4)))/3 -> -12.33333333 | H15: =(SUM(E4:F4)-MAX(E4:F4)-MIN(E4:F4))/3 -> 0 | I15: =(SUM(E4:G4)-MAX(E4:G4)-MIN(E4:G4))/3 -> 11.74333333 | J15: 24.07666667 | K15: =(SUM(E4:I4)-MAX(E4:I4)-MIN(E4:I4))/3 -> 36.81 | L15: =(SUM(F4:J4)-MAX(F4:J4)-MIN(F4:J4))/3 -> 38.27 | M15: =(SUM(G4:K4)-MAX(G4:K4)-MIN(G4:K4))/3 -> 38.27 | N15: =(SUM(H4:L4)-MAX(H4:L4)-MIN(H4:L4))/3 -> 36.8
C16: Wheat | D16: AlconaWheatall | G16: =(SUM(E5:E5)-MAX(E5:E5)-MIN(E5:E5))/3 -> -16.44 | H16: 2.368475786e-15 | I16: 16.44 | J16: 35.99333333 | K16: 53.97 | L16: 57.42333333 | M16: 61.25333333 | N16: 64.27333333
C17: Corn | D17: AlconaCornIrrigated | G17: =(SUM(E6:E6)-MAX(E6:E6)-MIN(E6:E6))/3 -> 0 | H17: 0 | I17: 0 | J17: =(SUM(E6:H6)-MAX(E6:H6)-MIN(E6:H6))/3 -> 0 | K17: =(SUM(E6:I6)-MAX(E6:I6)-MIN(E6:I6))/3 -> 0 | L17: 0 | M17: 0 | N17: 0
C18: soybeans | D18: AlconasoybeansIrrigated | G18: =(SUM(E7:E7)-MAX(E7:E7)-MIN(E7:E7))/3 -> 0 | H18: 0 | I18: 0 | J18: 0 | K18: 0 | L18: 0 | M18: 0 | N18: 0
C19: Corn | D19: =D8 -> AlconaCornnonirrigated | G19: =(SUM(E8:E8)-MAX(E8:E8)-MIN(E8:E8))/3 -> 0 | H19: 0 | I19: 0 | J19: 0 | K19: 0 | L19: 0 | M19: 0 | N19: 0
C20: soybeans | D20: =D9 -> Alconasoybeansnonirrigated | G20: =(SUM(E9:E9)-MAX(E9:E9)-MIN(E9:E9))/3 -> 0 | H20: 0 | I20: 0 | J20: 0 | K20: 0 | L20: 0 | M20: 0 | N20: 0
D21: =D10 -> AlconaWheatIrrigated | G21: =(SUM(E10:E10)-MAX(E10:E10)-MIN(E10:E10))/3 -> 0 | H21: =(SUM(E10:F10)-MAX(E10:F10)-MIN(E10:F10))/3 -> 0 | I21: =(SUM(E10:G10)-MAX(E10:G10)-MIN(E10:G10))/3 -> 0 | J21: =(SUM(E10:H10)-MAX(E10:H10)-MIN(E10:H10))/3 -> 0 | K21: =(SUM(E10:I10)-MAX(E10:I10)-MIN(E10:I10))/3 -> 0 | L21: 0 | M21: 0 | N21: 0
C22: FSA County Trend Yields for Arc Co NOT USED | D22: AlconaWheatnonirrigated | G22: 0 | H22: 0 | I22: 0 | J22: 0 | K22: 0 | L22: 0 | M22: 0 | N22: 0
B23: Problem Irrigated Yields for counties with out irrigated history back to 2013 | C23: Corn | D23: 0 | G23: 0 | H23: 0 | I23: 0 | J23: 0 | K23: 0 | L23: 0 | M23: 0 | N23: 0
C24: soybeans | D24: 0 | G24: -672.3333333 | H24: 0 | I24: 672.6666667 | J24: 1345.666667 | K24: 2019 | L24: 2020 | M24: 2021 | N24: 2022
C25: Wheat | D25: AlconaCornall | G25: 0 | H25: 0 | I25: 14.94333333 | J25: 0 | K25: -2.368475786e-15 | L25: 14.05777778 | M25: 43.05888889 | N25: 88.47555556
C26: Corn | D26: Alconasoybeansall | G26: 0 | H26: 0 | I26: 4.111111111 | J26: 0 | K26: 0 | L26: 3.914444444 | M26: 11.94 | N26: 24.21
C27: soybeans | D27: AlconaWheatall | G27: 0 | H27: 0 | I27: 5.48 | J27: 0 | K27: 0 | L27: 5.48 | M27: 17.47777778 | N27: 35.46777778
C28: Corn | D28: AlconaCornIrrigated | G28: 0 | H28: 0 | I28: 0 | J28: 0 | K28: 0 | L28: 0 | M28: 0 | N28: 0
C29: soybeans | D29: AlconasoybeansIrrigated | G29: 0 | H29: 0 | I29: 0 | J29: 0 | K29: 0 | L29: 0 | M29: 0 | N29: 0
C30: Wheat | D30: =D10 -> AlconaWheatIrrigated | G30: =(SUM(E19:E19)-MAX(E19:E19)-MIN(E19:E19))/3 -> 0 | H30: =(SUM(E19:F19)-MAX(E19:F19)-MIN(E19:F19))/3 -> 0 | I30: 0 | J30: 0 | K30: =(SUM(E10:I10)-MAX(E10:I10)-MIN(E10:I10))/3 -> 0 | L30: 0 | M30: =(SUM(G10:K10)-MAX(G10:K10)-MIN(G10:K10))/3 -> 0 | N30: =(SUM(H10:L10)-MAX(H10:L10)-MIN(H10:L10))/3 -> 0
C31: Wheat | D31: =D11 -> AlconaWheatnonirrigated | G31: 0 | H31: 0 | I31: 0 | J31: 0 | K31: =(SUM(E11:I11)-MAX(E11:I11)-MIN(E11:I11))/3 -> 0 | L31: 0 | M31: =(SUM(G11:K11)-MAX(G11:K11)-MIN(G11:K11))/3 -> 0 | N31: =(SUM(H11:L11)-MAX(H11:L11)-MIN(H11:L11))/3 -> 0
C33: County Benchmark Weighted Olympic average Yield | E33: 2017 | F33: 2018 | G33: 2019 | H33: 2020 | I33: 2021 | J33: 2022 | K33: 2023 | L33: 2024 | M33: 2025 | N33: 2026 | P33: Benchmark Revenue | Q33: Benchmark Guarantee | R33: Cap Rate | S33: Actual Revenue | T33: Projected Payment
D34: Corn | E34: =('Background Calculations'!E$14)+('Background Calculations'!E17*'Farm Bill Calculator'!$C$11)+('Background Calculations'!E19*(1-'Farm Bill Calculator'!$C$11)) -> 0 | F34: =('Background Calculations'!F$14)+('Background Calculations'!F17*'Farm Bill Calculator'!$C$11)+('Background Calculations'!F19*(1-'Farm Bill Calculator'!$C$11)) -> 0 | G34: =('Background Calculations'!G$14)+('Background Calculations'!G17*'Farm Bill Calculator'!$C$11)+('Background Calculations'!G19*(1-'Farm Bill Calculator'!$C$11)) -> -44.83 | H34: =('Background Calculations'!H$14)+('Background Calculations'!H17*'Farm Bill Calculator'!$C$11)+('Background Calculations'!H19*(1-'Farm Bill Calculator'!$C$11)) -> -4.736951572e-15 | I34: =('Background Calculations'!I$14)+('Background Calculations'!I17*'Farm Bill Calculator'!$C$11)+('Background Calculations'!I19*(1-'Farm Bill Calculator'!$C$11)) -> 42.17333333 | J34: =('Background Calculations'!J$14)+('Background Calculations'!J17*'Farm Bill Calculator'!$C$11)+('Background Calculations'!J19*(1-'Farm Bill Calculator'!$C$11)) -> 87.00333333 | K34: =('Background Calculations'!K$14)+('Background Calculations'!K17*'Farm Bill Calculator'!$C$11)+('Background Calculations'!K19*(1-'Farm Bill Calculator'!$C$11)) -> 136.25 | L34: =('Background Calculations'!L$14)+('Background Calculations'!L17*'Farm Bill Calculator'!$C$11)+('Background Calculations'!L19*(1-'Farm Bill Calculator'!$C$11)) -> 143.4 | M34: =('Background Calculations'!M$14)+('Background Calculations'!M17*'Farm Bill Calculator'!$C$11)+('Background Calculations'!M19*(1-'Farm Bill Calculator'!$C$11)) -> 148.7733333 | N34: =('Background Calculations'!N$14)+('Background Calculations'!N17*'Farm Bill Calculator'!$C$11)+('Background Calculations'!N19*(1-'Farm Bill Calculator'!$C$11)) -> 151.5766667 | P34: =N34*'MYA Prices'!C11 -> 762.4306333 | Q34: =P34*0.9 -> 686.18757 | R34: =P34*0.12 -> 91.491676 | S34: ='Farm Bill Calculator'!E30*'Farm Bill Calculator'!E22 -> 624.4958667 | T34: =MIN(IF(S34<Q34,Q34-S34,0),R34) -> 61.69170333
D35: Soybeans | E35: =('Background Calculations'!E$15)+('Background Calculations'!E$18*'Farm Bill Calculator'!$D$11)+('Background Calculations'!E$20*(1-'Farm Bill Calculator'!$D$11)) -> 0 | F35: =('Background Calculations'!F$15)+('Background Calculations'!F$18*'Farm Bill Calculator'!$D$11)+('Background Calculations'!F$20*(1-'Farm Bill Calculator'!$D$11)) -> 0 | G35: =('Background Calculations'!G$15)+('Background Calculations'!G$18*'Farm Bill Calculator'!$D$11)+('Background Calculations'!G$20*(1-'Farm Bill Calculator'!$D$11)) -> -12.33333333 | H35: =('Background Calculations'!H$15)+('Background Calculations'!H$18*'Farm Bill Calculator'!$D$11)+('Background Calculations'!H$20*(1-'Farm Bill Calculator'!$D$11)) -> 0 | I35: =('Background Calculations'!I$15)+('Background Calculations'!I$18*'Farm Bill Calculator'!$D$11)+('Background Calculations'!I$20*(1-'Farm Bill Calculator'!$D$11)) -> 11.74333333 | J35: =('Background Calculations'!J$15)+('Background Calculations'!J$18*'Farm Bill Calculator'!$D$11)+('Background Calculations'!J$20*(1-'Farm Bill Calculator'!$D$11)) -> 24.07666667 | K35: =('Background Calculations'!K$15)+('Background Calculations'!K$18*'Farm Bill Calculator'!$D$11)+('Background Calculations'!K$20*(1-'Farm Bill Calculator'!$D$11)) -> 36.81 | L35: =('Background Calculations'!L$15)+('Background Calculations'!L$18*'Farm Bill Calculator'!$D$11)+('Background Calculations'!L$20*(1-'Farm Bill Calculator'!$D$11)) -> 38.27 | M35: =('Background Calculations'!M$15)+('Background Calculations'!M$18*'Farm Bill Calculator'!$D$11)+('Background Calculations'!M$20*(1-'Farm Bill Calculator'!$D$11)) -> 38.27 | N35: =('Background Calculations'!N$15)+('Background Calculations'!N$18*'Farm Bill Calculator'!$D$11)+('Background Calculations'!N$20*(1-'Farm Bill Calculator'!$D$11)) -> 36.8 | P35: =N35*'MYA Prices'!D11 -> 447.856 | Q35: =P35*0.9 -> 403.0704 | R35: =P35*0.12 -> 53.74272 | S35: ='Farm Bill Calculator'!G30*'Farm Bill Calculator'!G22 -> 377.2 | T35: =MIN(IF(S35<Q35,Q35-S35,0),R35) -> 25.8704
D36: Wheat | E36: =('Background Calculations'!E$16)+('Background Calculations'!E$19*'Farm Bill Calculator'!$E$11)+('Background Calculations'!E$19*(1-'Farm Bill Calculator'!$E$11)) -> 0 | F36: =('Background Calculations'!F$16)+('Background Calculations'!F$19*'Farm Bill Calculator'!$E$11)+('Background Calculations'!F$19*(1-'Farm Bill Calculator'!$E$11)) -> 0 | G36: =('Background Calculations'!G$16)+('Background Calculations'!G$30*'Farm Bill Calculator'!$E$11)+('Background Calculations'!G$31*(1-'Farm Bill Calculator'!$E$11)) -> -16.44 | H36: =('Background Calculations'!H$16)+('Background Calculations'!H$30*'Farm Bill Calculator'!$E$11)+('Background Calculations'!H$31*(1-'Farm Bill Calculator'!$E$11)) -> 2.368475786e-15 | I36: =('Background Calculations'!I$16)+('Background Calculations'!I$30*'Farm Bill Calculator'!$E$11)+('Background Calculations'!I$31*(1-'Farm Bill Calculator'!$E$11)) -> 16.44 | J36: =('Background Calculations'!J$16)+('Background Calculations'!J$30*'Farm Bill Calculator'!$E$11)+('Background Calculations'!J$31*(1-'Farm Bill Calculator'!$E$11)) -> 35.99333333 | K36: =('Background Calculations'!K$16)+('Background Calculations'!K$30*'Farm Bill Calculator'!$E$11)+('Background Calculations'!K$31*(1-'Farm Bill Calculator'!$E$11)) -> 53.97 | L36: =('Background Calculations'!L$16)+('Background Calculations'!L$30*'Farm Bill Calculator'!$E$11)+('Background Calculations'!L$31*(1-'Farm Bill Calculator'!$E$11)) -> 57.42333333 | M36: =('Background Calculations'!M$16)+('Background Calculations'!M$30*'Farm Bill Calculator'!$E$11)+('Background Calculations'!M$31*(1-'Farm Bill Calculator'!$E$11)) -> 61.25333333 | N36: =('Background Calculations'!N$16)+('Background Calculations'!N$30*'Farm Bill Calculator'!$E$11)+('Background Calculations'!N$31*(1-'Farm Bill Calculator'!$E$11)) -> 64.27333333 | P36: =N36*'MYA Prices'!E11 -> 448.6278667 | Q36: =P36*0.9 -> 403.76508 | R36: =P36*0.12 -> 53.835344 | S36: ='Farm Bill Calculator'!I30*'Farm Bill Calculator'!I22 -> 325.2230667 | T36: =MIN(IF(S36<Q36,Q36-S36,0),R36) -> 53.835344
C39: Actual National Market Year Average Price (MYA)
E40: 2017 | F40: 2018 | G40: 2019 | H40: 2020 | I40: 2021 | J40: 2022 | K40: 2023 | L40: 2024 | M40: 2025 | N40: 2026 | P40: PLC Olympic Average | Q40: 88% of Olympic Average | R40: 115% Cap | S40: Statutory Reference Price | T40: Effective Reference Price | U40: Effective Reference Price Cap
D41: Corn MYA Producer Price 4.10 | E41: 3.36 | F41: 3.61 | G41: 3.56 | H41: 4.53 | I41: 6 | J41: 6.54 | K41: 4.55 | L41: 4.24 | P41: =(SUM(H41:L41)-MIN(H41:L41)-MAX(H41:L41))/(COUNT(H41:L41)-2) -> 5.026666667 | Q41: =P41*0.88 -> 4.423466667 | R41: =S41*1.15 -> 4.715 | S41: 4.1 | T41: =IF(Q41>S41,Q41,S41) -> 4.423466667 | U41: =IF(T41>R41,R41,Q41) -> 4.423466667
D42: Soy MYA Producer Price 10.00 | E42: 9.33 | F42: 8.48 | G42: 8.57 | H42: 10.8 | I42: 13.3 | J42: 14.2 | K42: 12.4 | L42: 10 | P42: =(SUM(H42:L42)-MIN(H42:L42)-MAX(H42:L42))/(COUNT(H42:L42)-2) -> 12.16666667 | Q42: =P42*0.88 -> 10.70666667 | R42: =S42*1.15 -> 11.5 | S42: 10 | T42: =IF(Q42>S42,Q42,S42) -> 10.70666667 | U42: =IF(T42>R42,R42,Q42) -> 10.70666667
D43: Wheat MYA Producer Price 6.35 | E43: 4.72 | F43: 5.16 | G43: 4.58 | H43: 5.05 | I43: 7.63 | J43: 8.83 | K43: 6.96 | L43: 5.52 | P43: =(SUM(H43:L43)-MIN(H43:L43)-MAX(H43:L43))/(COUNT(H43:L43)-2) -> 6.703333333 | Q43: =P43*0.88 -> 5.898933333 | R43: =S43*1.15 -> 7.3025 | S43: 6.35 | T43: =IF(Q43>S43,Q43,S43) -> 6.35 | U43: =IF(T43>R43,R43,Q43) -> 5.898933333
C48: Minimum Prices for Revenue Guarantees | E48: 2017 | F48: =F40 -> 2018 | G48: 2019 | H48: 2020 | I48: 2021 | J48: 2022 | K48: 2023 | L48: 2024 | M48: 2025 | N48: 2026
D49: Corn MYA Producer Price 4.10 | E49: =IF(E41<3.7,3.7,E41) -> 3.7 | F49: =IF(F41<4.01,4.01,F41) -> 4.01 | G49: =IF(G41<4.01,4.01,G41) -> 4.01 | H49: =IF(H41<4.1,4.1,H41) -> 4.53 | I49: =IF(I41<4.1,4.1,I41) -> 6 | J49: =IF(J41<4.1,4.1,J41) -> 6.54 | K49: 4.55 | L49: =IF(L41<4.1,4.1,L41) -> 4.24
D50: Soy MYA Producer Price 10.00 | E50: =IF(E42<8.4,8.4,E42) -> 9.33 | F50: =IF(F42<9.26,9.26,F42) -> 9.26 | G50: =IF(G42<9.26,9.26,G42) -> 9.26 | H50: =IF(H42<10,10,H42) -> 10.8 | I50: =IF(I42<10,10,I42) -> 13.3 | J50: =IF(J42<10,10,J42) -> 14.2 | K50: 12.4 | L50: 10
D51: Wheat MYA Producer Price 6.35 | E51: =IF(E43<5.5,5.5,E43) -> 5.5 | F51: 5.5 | G51: 6.35 | H51: 6.35 | I51: =IF(I43<6.35,6.35,I43) -> 7.63 | J51: =IF(J43<6.35,6.35,J43) -> 8.83 | K51: 6.96 | L51: =IF(L43<6.35,6.35,L43) -> 6.35
C53: Benchmark Olympic Price for: | F53: 2018 | G53: 2019 | H53: 2020 | I53: 2021 | J53: 2022 | K53: 2023 | L53: 2024 | M53: 2025 | N53: 2026
C54: Corn | F54: 2.47 | G54: 4.1 | H54: 4.1 | I54: 4.1 | J54: 4.1 | K54: =ROUND(((SUM(E49:I49)-MAX(E49:I49)-MIN(E49:I49))/3),2) -> 4.18 | L54: 4.85 | M54: =ROUND(((SUM(G49:K49)-MAX(G49:K49)-MIN(G49:K49))/3),2) -> 5.03 | N54: =ROUND(((SUM(H49:L49)-MAX(H49:L49)-MIN(H49:L49))/3),2) -> 5.03
C55: Soys | F55: 6.52 | G55: 10 | H55: 10 | I55: 10 | J55: 10 | K55: 10 | L55: 11.12 | M55: =ROUND(((SUM(G50:K50)-MAX(G50:K50)-MIN(G50:K50))/3),2) -> 12.17 | N55: =ROUND(((SUM(H50:L50)-MAX(H50:L50)-MIN(H50:L50))/3),2) -> 12.17
C56: Wheat | F56: 3.83 | G56: 6.35 | H56: 6.35 | I56: 6.35 | J56: 6.35 | K56: 6.35 | L56: 6.35 | M56: 6.72 | N56: =ROUND(((SUM(H51:L51)-MAX(H51:L51)-MIN(H51:L51))/3),2) -> 6.98

Sheet ARC-CO Calculations (hidden)
C1: ARC-CO TREND ADJUSTED YIELDS, BENCHMARK YIELDS AND GUARANTEE REVENUES FOR PROGRAM YEAR 2025 | V1: PROJECTED Program Year 2025 Benchmark Yields and Revenues
V2: A | W2: B | X2: C | Y2: D | Z2: E | AA2: F | AB2: G | AC2: H | AD2: I | AE2: J
B3: ='Farm Bill Calculator'!C4 -> Alcona | X3: (A * B) | Y3: (90% of C) | Z3: (12% of C) | AC3: (F * G) | AD3: (D - H), not less than 0 | AE3: Lesser of E or I (capped at 12% of Benchmark)
C4: ST_Cty | D4: State Name | E4: County Name | F4: Sub County | G4: Crop Name | H4: Unit | I4: ARC-CO Yield Designation | J4: 2017 trend adjusted (county yield or 80% of T) | K4: 2018 trend adjusted (county yield or 80% of T) | L4: 2019 trend adjusted (county yield or 80% of T) | M4: 2020 trend adjusted (county yield or 80% of T) | N4: 2021 trend adjusted (county yield or 80% of T) | O4: 2022 trend adjusted (county yield or 80% of T) | P4: 2023 trend adjusted (county yield or 80% of T) | Q4: 2024 trend adjusted (county yield or 80% of T) | R4: Projected 2025 trend adjusted (county yield or 80% of T) | S4: Projected 2026 trend adjusted (county yield or 80% of T) | T4: Trend adjustments 2025 | V4: 2026 Bench Mark (2019-23 olympic avg) | W4: 2026 Bench Mark Price (2018-22 olympic avg) | X4: 2026 Benchmark Revenue | Y4: 2026 Guarantee Revenue | Z4: 2026 Maximum Payment Rate | AA4: Projected 2026 Actual Yield | AB4: Projected 2026 National Price | AC4: Projected 2026 Actual Revenue | AD4: Projected 2026 Formula Payment Rate | AE4: Projected 2026 ARC-CO Payment Rate
B5: =E5&G5&I5 -> AlconaCornAll | C5: 26001 | D5: Michigan | E5: Alcona | G5: Corn | H5: Bushel | I5: All | J5: 134.49 | K5: 126.52 | L5: 96.64 | M5: 147.74 | N5: 193.4 | O5: 155.94 | P5: 142.64 | Q5: 151.05 | R5: =AVERAGE(M5:Q5)+T5 -> 159.454 | S5: =AVERAGE(N5:R5)+T5 -> 161.7968 | T5: 1.3 | V5: =(SUM(M5:Q5)-MIN(M5:Q5)-MAX(M5:Q5))/(COUNT(M5:Q5)-2) -> 151.5766667 | W5: ='Background Calculations'!$M$54 -> 5.03 | X5: =V5*W5 -> 762.4306333 | Y5: =X5*0.9 -> 686.18757 | Z5: =X5*0.12 -> 91.491676 | AA5: ='Farm Bill Calculator'!$E$22 -> 151.5766667 | AB5: ='Farm Bill Calculator'!$E$30 -> 4.12 | AC5: =AB5*AA5 -> 624.4958667 | AD5: =IF(Y5-AC5>0,Y5-AC5,0) -> 61.69170333 | AE5: =MIN(AD5,Z5) -> 61.69170333
B6: AlgerCornAll | C6: 26001 | D6: Michigan | E6: Alger | G6: Corn | H6: Bushel | I6: All | J6: 58.4 | K6: 111 | L6: 58.49 | M6: 183.9 | N6: 110.84 | O6: 79.53 | P6: 170.04 | Q6: 65.44 | R6: =AVERAGE(M6:Q6)+T6 -> 121.95 | S6: =AVERAGE(N6:R6)+T6 -> 109.56 | V6: =(SUM(M6:Q6)-MIN(M6:Q6)-MAX(M6:Q6))/(COUNT(M6:Q6)-2) -> 120.1366667 | W6: ='Background Calculations'!$M$54 -> 5.03 | X6: =V6*W6 -> 604.2874333 | Y6: =X6*0.9 -> 543.85869 | Z6: =X6*0.12 -> 72.514492 | AA6: ='Farm Bill Calculator'!$E$22 -> 151.5766667 | AB6: ='Farm Bill Calculator'!$E$30 -> 4.12 | AC6: =AB6*AA6 -> 624.4958667 | AD6: =IF(Y6-AC6>0,Y6-AC6,0) -> 0 | AE6: =MIN(AD6,Z6) -> 0
B7: AlleganCornIrrigated | C7: 26001 | D7: Michigan | E7: Allegan | G7: Corn | H7: Bushel | I7: Irrigated | J7: 231.01 | K7: 210.21 | L7: 201.81 | M7: 215.59 | N7: 210.51 | O7: 218.27 | P7: 235.93 | Q7: 238.09 | R7: =AVERAGE(M7:Q7)+T7 -> 225.338 | S7: 227.2876 | T7: 1.66 | V7: 223.2633333 | W7: ='Background Calculations'!$M$54 -> 5.03 | X7: 1123.014567 | Y7: 1010.71311 | Z7: 134.761748 | AA7: ='Farm Bill Calculator'!$E$22 -> 151.5766667 | AB7: ='Farm Bill Calculator'!$E$30 -> 4.12 | AC7: 624.4958667 | AD7: 386.2172433 | AE7: 134.761748
B8: AlleganCornNonirrigated | C8: 26003 | D8: Michigan | E8: Allegan | G8: Corn | H8: Bushel | I8: Nonirrigated | J8: 187.24 | K8: 160.18 | L8: 162.64 | M8: 174.56 | N8: 185.42 | O8: 189.18 | P8: 189.86 | Q8: 202.06 | R8: 189.786 | S8: 192.8312 | T8: 1.57 | V8: 188.1533333 | W8: ='Background Calculations'!$M$54 -> 5.03 | X8: 946.4112667 | Y8: 851.77014 | Z8: 113.569352 | AA8: ='Farm Bill Calculator'!$E$22 -> 151.5766667 | AB8: ='Farm Bill Calculator'!$E$30 -> 4.12 | AC8: 624.4958667 | AD8: 227.2742733 | AE8: 113.569352
B9: AlpenaCornAll | C9: 26003 | D9: Michigan | E9: Alpena | G9: Corn | H9: Bushel | I9: All | J9: 150.15 | K9: 116.73 | L9: 124.9 | M9: 169.39 | N9: 191.82 | O9: 152.13 | P9: 158.41 | Q9: 138.68 | R9: 163.606 | S9: 162.4492 | T9: 1.52 | V9: 159.9766667 | W9: ='Background Calculations'!$M$54 -> 5.03 | X9: 804.6826333 | Y9: 724.21437 | Z9: 96.561916 | AA9: ='Farm Bill Calculator'!$E$22 -> 151.5766667 | AB9: ='Farm Bill Calculator'!$E$30 -> 4.12 | AC9: 624.4958667 | AD9: 99.71850333 | AE9: 96.561916
B10: AntrimCornAll | C10: 26005 | D10: Michigan | E10: Antrim | G10: Corn | H10: Bushel | I10: All | J10: 140.73 | K10: 115.55 | L10: 97.14 | M10: 149.23 | N10: 144.06 | O10: 88.27 | P10: 150.22 | Q10: 136.78 | R10: 134.602 | S10: 131.6764 | T10: 0.89 | V10: 143.3566667 | W10: ='Background Calculations'!$M$54 -> 5.03 | X10: 721.0840333 | Y10: 648.97563 | Z10: 86.530084 | AA10: ='Farm Bill Calculator'!$E$22 -> 151.5766667 | AB10: ='Farm Bill Calculator'!$E$30 -> 4.12 | AC10: 624.4958667 | AD10: 24.47976333 | AE10: 24.47976333
B11: ArenacCornAll | C11: 26005 | D11: Michigan | E11: Arenac | G11: Corn | H11: Bushel | I11: All | J11: 175.68 | K11: 174.92 | L11: 145.34 | M11: 155.76 | N11: 195.7 | O11: 163.99 | P11: 183.99 | Q11: 177.78 | R11: 177.084 | S11: 181.3488 | T11: 1.64 | V11: 175.2533333 | W11: ='Background Calculations'!$M$54 -> 5.03 | X11: 881.5242667 | Y11: 793.37184 | Z11: 105.782912 | AA11: ='Farm Bill Calculator'!$E$22 -> 151.5766667 | AB11: ='Farm Bill Calculator'!$E$30 -> 4.12 | AC11: 624.4958667 | AD11: 168.8759733 | AE11: 105.782912
B12: BaragaCornAll | C12: 26005 | D12: Michigan | E12: Baraga | G12: Corn | H12: Bushel | I12: All | J12: 84 | K12: 111 | L12: 84 | M12: 140.2 | N12: 110.84 | O12: 84 | P12: 170.04 | Q12: 65.44 | R12: 114.104 | S12: 108.8848 | V12: 111.68 | W12: ='Background Calculations'!$M$54 -> 5.03 | X12: 561.7504 | Y12: 505.57536 | Z12: 67.410048 | AA12: ='Farm Bill Calculator'!$E$22 -> 151.5766667 | AB12: ='Farm Bill Calculator'!$E$30 -> 4.12 | AC12: 624.4958667 | AD12: 0 | AE12: 0
B13: BarryCornIrrigated | C13: 26005 | D13: Michigan | E13: Barry | G13: Corn | H13: Bushel | I13: Irrigated | J13: 205.67 | K13: 192.87 | L13: 182.63 | M13: 215.64 | N13: 224.51 | O13: 213.3 | P13: 211.61 | Q13: 226.68 | R13: 219.628 | S13: 220.4256 | T13: 1.28 | V13: 217.8166667 | W13: ='Background Calculations'!$M$54 -> 5.03 | X13: 1095.617833 | Y13: 986.05605 | Z13: 131.47414 | AA13: ='Farm Bill Calculator'!$E$22 -> 151.5766667 | AB13: ='Farm Bill Calculator'!$E$30 -> 4.12 | AC13: 624.4958667 | AD13: 361.5601833 | AE13: 131.47414
B14: BarryCornNonirrigated | C14: 26005 | D14: Michigan | E14: Barry | G14: Corn | H14: Bushel | I14: Nonirrigated | J14: 174.37 | K14: 150.64 | L14: 143.56 | M14: 166.73 | N14: 181.76 | O14: 181.72 | P14: 168.36 | Q14: 197.44 | R14: 180.442 | S14: 183.1844 | T14: 1.24 | V14: 177.28 | W14: ='Background Calculations'!$M$54 -> 5.03 | X14: 891.7184 | Y14: 802.54656 | Z14: 107.006208 | AA14: ='Farm Bill Calculator'!$E$22 -> 151.5766667 | AB14: ='Farm Bill Calculator'!$E$30 -> 4.12 | AC14: 624.4958667 | AD14: 178.0506933 | AE14: 107.006208
B15: BayCornIrrigated | C15: 26007 | D15: Michigan | E15: Bay | G15: Corn | H15: Bushel | I15: Irrigated | J15: 190 | K15: 205.41 | L15: 185.26 | M15: 199.03 | N15: 213.09 | O15: 192.51 | P15: 186.85 | Q15: 193.01 | R15: 198.738 | S15: 198.6796 | T15: 1.84 | V15: 194.85 | W15: ='Background Calculations'!$M$54 -> 5.03 | X15: 980.0955 | Y15: 882.08595 | Z15: 117.61146 | AA15: ='Farm Bill Calculator'!$E$22 -> 151.5766667 | AB15: ='Farm Bill Calculator'!$E$30 -> 4.12 | AC15: 624.4958667 | AD15: 257.5900833 | AE15: 117.61146
B16: BayCornNonirrigated | C16: 26007 | D16: Michigan | E16: Bay | G16: Corn | H16: Bushel | I16: Nonirrigated | J16: 179.37 | K16: 193.44 | L16: 169.23 | M16: 171.73 | N16: 207.55 | O16: 186.79 | P16: 195.4 | Q16: 204.05 | R16: 194.934 | S16: 199.5748 | T16: 1.83 | V16: 195.4133333 | W16: ='Background Calculations'!$M$54 -> 5.03 | X16: 982.9290667 | Y16: 884.63616 | Z16: 117.951488 | AA16: ='Farm Bill Calculator'!$E$22 -> 151.5766667 | AB16: ='Farm Bill Calculator'!$E$30 -> 4.12 | AC16: 624.4958667 | AD16: 260.1402933 | AE16: 117.951488
B17: BenzieCornAll | C17: 26007 | D17: Michigan | E17: Benzie | G17: Corn | H17: Bushel | I17: All | J17: 135.26 | K17: 117.95 | L17: 101.39 | M17: 114.3 | N17: 161.6 | O17: 94.72 | P17: 89.62 | Q17: 143.18 | R17: 122.304 | S17: 123.9048 | T17: 1.62 | V17: 117.4 | W17: ='Background Calculations'!$M$54 -> 5.03 | X17: 590.522 | Y17: 531.4698 | Z17: 70.86264 | AA17: ='Farm Bill Calculator'!$E$22 -> 151.5766667 | AB17: ='Farm Bill Calculator'!$E$30 -> 4.12 | AC17: 624.4958667 | AD17: 0 | AE17: 0
B18: BerrienCornIrrigated | C18: 26009 | D18: Michigan | E18: Berrien | G18: Corn | H18: Bushel | I18: Irrigated | J18: 242.81 | K18: 215.38 | L18: 199.39 | M18: 214.56 | N18: 223.94 | O18: 224.27 | P18: 229.77 | Q18: 217.43 | R18: 224.064 | S18: 225.9648 | T18: 2.07 | V18: 221.88 | W18: ='Background Calculations'!$M$54 -> 5.03 | X18: 1116.0564 | Y18: 1004.45076 | Z18: 133.926768 | AA18: ='Farm Bill Calculator'!$E$22 -> 151.5766667 | AB18: ='Farm Bill Calculator'!$E$30 -> 4.12 | AC18: 624.4958667 | AD18: 379.9548933 | AE18: 133.926768
B19: BerrienCornNonirrigated | C19: 26009 | D19: Michigan | E19: Berrien | G19: Corn | H19: Bushel | I19: Nonirrigated | J19: 183.77 | K19: 172.69 | L19: 156.84 | M19: 165.64 | N19: 187.6 | O19: 183.11 | P19: 185.51 | Q19: 164.67 | R19: 179.266 | S19: 181.9912 | T19: 1.96 | V19: 178.0866667 | W19: ='Background Calculations'!$M$54 -> 5.03 | X19: 895.7759333 | Y19: 806.19834 | Z19: 107.493112 | AA19: ='Farm Bill Calculator'!$E$22 -> 151.5766667 | AB19: ='Farm Bill Calculator'!$E$30 -> 4.12 | AC19: 624.4958667 | AD19: 181.7024733 | AE19: 107.493112
B20: BranchCornIrrigated | C20: 26009 | D20: Michigan | E20: Branch | G20: Corn | H20: Bushel | I20: Irrigated | J20: 204.46 | K20: 192.68 | L20: 202.37 | M20: 207.41 | N20: 184.74 | O20: 224.11 | P20: 213.58 | Q20: 220.72 | R20: 211.862 | S20: 212.7524 | T20: 1.75 | V20: 213.9033333 | W20: ='Background Calculations'!$M$54 -> 5.03 | X20: 1075.933767 | Y20: 968.34039 | Z20: 129.112052 | AA20: ='Farm Bill Calculator'!$E$22 -> 151.5766667 | AB20: ='Farm Bill Calculator'!$E$30 -> 4.12 | AC20: 624.4958667 | AD20: 343.8445233 | AE20: 129.112052
B21: BranchCornNonirrigated | C21: 26011 | D21: Michigan | E21: Branch | G21: Corn | H21: Bushel | I21: Nonirrigated | J21: 166.38 | K21: 159.22 | L21: 161.11 | M21: 160.3 | N21: 169.25 | O21: 186.3 | P21: 170.56 | Q21: 180.68 | R21: 175.078 | S21: 178.0336 | T21: 1.66 | V21: 173.4966667 | W21: ='Background Calculations'!$M$54 -> 5.03 | X21: 872.6882333 | Y21: 785.41941 | Z21: 104.722588 | AA21: ='Farm Bill Calculator'!$E$22 -> 151.5766667 | AB21: ='Farm Bill Calculator'!$E$30 -> 4.12 | AC21: 624.4958667 | AD21: 160.9235433 | AE21: 104.722588
B22: CalhounCornIrrigated | C22: 26011 | D22: Michigan | E22: Calhoun | G22: Corn | H22: Bushel | I22: Irrigated | J22: 200.6 | K22: 191 | L22: 164.61 | M22: 189.18 | N22: 197.56 | O22: 222.58 | P22: 202.31 | Q22: 213.11 | R22: 206.438 | S22: 209.8896 | T22: 1.49 | V22: 204.3266667 | W22: ='Background Calculations'!$M$54 -> 5.03 | X22: 1027.763133 | Y22: 924.98682 | Z22: 123.331576 | AA22: ='Farm Bill Calculator'!$E$22 -> 151.5766667 | AB22: ='Farm Bill Calculator'!$E$30 -> 4.12 | AC22: 624.4958667 | AD22: 300.4909533 | AE22: 123.331576
B23: CalhounCornNonirrigated | C23: 26011 | D23: Michigan | E23: Calhoun | G23: Corn | H23: Bushel | I23: Nonirrigated | J23: 145.6 | K23: 149.11 | L23: 138.82 | M23: 138.12 | N23: 169.6 | O23: 180.85 | P23: 161.25 | Q23: 180.28 | R23: 167.43 | S23: 173.292 | T23: 1.41 | V23: 170.3766667 | W23: ='Background Calculations'!$M$54 -> 5.03 | X23: 856.9946333 | Y23: 771.29517 | Z23: 102.839356 | AA23: ='Farm Bill Calculator'!$E$22 -> 151.5766667 | AB23: ='Farm Bill Calculator'!$E$30 -> 4.12 | AC23: 624.4958667 | AD23: 146.7993033 | AE23: 102.839356
B24: CassCornIrrigated | C24: 26013 | D24: Michigan | E24: Cass | G24: Corn | H24: Bushel | I24: Irrigated | J24: 224.01 | K24: 162.45 | L24: 195.43 | M24: 214.3 | N24: 211.9 | O24: 203.99 | P24: 212.8 | Q24: 209.28 | R24: 212.284 | S24: 211.8808 | T24: 1.83 | V24: 211.3266667 | W24: ='Background Calculations'!$M$54 -> 5.03 | X24: 1062.973133 | Y24: 956.67582 | Z24: 127.556776 | AA24: ='Farm Bill Calculator'!$E$22 -> 151.5766667 | AB24: ='Farm Bill Calculator'!$E$30 -> 4.12 | AC24: 624.4958667 | AD24: 332.1799533 | AE24: 127.556776
B25: CassCornNonirrigated | C25: 26015 | D25: Michigan | E25: Cass | G25: Corn | H25: Bushel | I25: Nonirrigated | J25: 163.49 | K25: 153.7 | L25: 139.09 | M25: 142.58 | N25: 163.32 | O25: 153.27 | P25: 158.45 | Q25: 145.75 | R25: 154.174 | S25: 156.4928 | T25: 1.5 | V25: 152.49 | W25: ='Background Calculations'!$M$54 -> 5.03 | X25: 767.0247 | Y25: 690.32223 | Z25: 92.042964 | AA25: ='Farm Bill Calculator'!$E$22 -> 151.5766667 | AB25: ='Farm Bill Calculator'!$E$30 -> 4.12 | AC25: 624.4958667 | AD25: 65.82636333 | AE25: 65.82636333
B26: CharlevoixCornAll | C26: 26015 | D26: Michigan | E26: Charlevoix | G26: Corn | H26: Bushel | I26: All | J26: 122.88 | K26: 118.4 | L26: 124.62 | M26: 148.1 | N26: 154.72 | O26: 116.49 | P26: 122.05 | Q26: 115.1 | R26: 132.712 | S26: 129.6344 | T26: 1.42 | V26: 128.88 | W26: ='Background Calculations'!$M$54 -> 5.03 | X26: 648.2664 | Y26: 583.43976 | Z26: 77.791968 | AA26: ='Farm Bill Calculator'!$E$22 -> 151.5766667 | AB26: ='Farm Bill Calculator'!$E$30 -> 4.12 | AC26: 624.4958667 | AD26: 0 | AE26: 0
B27: CheboyganCornAll | C27: 26015 | D27: Michigan | E27: Cheboygan | G27: Corn | H27: Bushel | I27: All | J27: 131 | K27: 117 | L27: 110.3 | M27: 129.9 | N27: 144.49 | O27: 105.32 | P27: 127.73 | Q27: 117.31 | R27: 124.95 | S27: 123.96 | V27: 124.98 | W27: ='Background Calculations'!$M$54 -> 5.03 | X27: 628.6494 | Y27: 565.78446 | Z27: 75.437928 | AA27: ='Farm Bill Calculator'!$E$22 -> 151.5766667 | AB27: ='Farm Bill Calculator'!$E$30 -> 4.12 | AC27: 624.4958667 | AD27: 0 | AE27: 0
B28: ChippewaCornAll | C28: 26015 | D28: Michigan | E28: Chippewa | G28: Corn | H28: Bushel | I28: All | J28: 84 | K28: 111 | L28: 93.6 | M28: 182.7 | N28: 110.84 | O28: 93.6 | P28: 170.04 | Q28: 65.44 | R28: 124.524 | S28: 112.8888 | V28: 124.8266667 | W28: ='Background Calculations'!$M$54 -> 5.03 | X28: 627.8781333 | Y28: 565.09032 | Z28: 75.345376 | AA28: ='Farm Bill Calculator'!$E$22 -> 151.5766667 | AB28: ='Farm Bill Calculator'!$E$30 -> 4.12 | AC28: 624.4958667 | AD28: 0 | AE28: 0
B29: ClareCornAll | C29: 26015 | D29: Michigan | E29: Clare | G29: Corn | H29: Bushel | I29: All | J29: 138.21 | K29: 144.89 | L29: 113.92 | M29: 165.76 | N29: 170.75 | O29: 140.8 | P29: 150.05 | Q29: 147.72 | R29: 155.996 | S29: 154.0432 | T29: 0.98 | V29: 154.51 | W29: ='Background Calculations'!$M$54 -> 5.03 | X29: 777.1853 | Y29: 699.46677 | Z29: 93.262236 | AA29: ='Farm Bill Calculator'!$E$22 -> 151.5766667 | AB29: ='Farm Bill Calculator'!$E$30 -> 4.12 | AC29: 624.4958667 | AD29: 74.97090333 | AE29: 74.97090333
B30: ClintonCornIrrigated | C30: 26017 | D30: Michigan | E30: Clinton | G30: Corn | H30: Bushel | I30: Irrigated | J30: 196.23 | K30: 205.65 | L30: 201.96 | M30: 204.63 | N30: 229.34 | O30: 217.36 | P30: 209.74 | Q30: 239.46 | R30: 221.286 | S30: 224.6172 | T30: 1.18 | V30: 218.8133333 | W30: ='Background Calculations'!$M$54 -> 5.03 | X30: 1100.631067 | Y30: 990.56796 | Z30: 132.075728 | AA30: ='Farm Bill Calculator'!$E$22 -> 151.5766667 | AB30: ='Farm Bill Calculator'!$E$30 -> 4.12 | AC30: 624.4958667 | AD30: 366.0720933 | AE30: 132.075728
B31: ClintonCornNonirrigated | C31: 26017 | D31: Michigan | E31: Clinton | G31: Corn | H31: Bushel | I31: Nonirrigated | J31: 158.06 | K31: 149.46 | L31: 155.85 | M31: 160.35 | N31: 190.77 | O31: 179.77 | P31: 179.04 | Q31: 204.45 | R31: 184.046 | S31: 188.7852 | T31: 1.17 | V31: 183.1933333 | W31: ='Background Calculations'!$M$54 -> 5.03 | X31: 921.4624667 | Y31: 829.31622 | Z31: 110.575496 | AA31: ='Farm Bill Calculator'!$E$22 -> 151.5766667 | AB31: ='Farm Bill Calculator'!$E$30 -> 4.12 | AC31: 624.4958667 | AD31: 204.8203533 | AE31: 110.575496
B32: DeltaCornAll | C32: 26017 | D32: Michigan | E32: Delta | G32: Corn | H32: Bushel | I32: All | J32: 61.98 | K32: 159.56 | L32: 65.28 | M32: 193.04 | N32: 100.99 | O32: 68.12 | P32: 166.61 | Q32: 54.95 | R32: 118.382 | S32: 103.4504 | T32: 1.64 | V32: 111.9066667 | W32: ='Background Calculations'!$M$54 -> 5.03 | X32: 562.8905333 | Y32: 506.60148 | Z32: 67.546864 | AA32: ='Farm Bill Calculator'!$E$22 -> 151.5766667 | AB32: ='Farm Bill Calculator'!$E$30 -> 4.12 | AC32: 624.4958667 | AD32: 0 | AE32: 0
B33: DickinsonCornAll | C33: 26017 | D33: Michigan | E33: Dickinson | G33: Corn | H33: Bushel | I33: All | J33: 80.84 | K33: 157.62 | L33: 61.6 | M33: 180.08 | N33: 104.96 | O33: 116.88 | P33: 173.2 | Q33: 54.22 | R33: 125.868 | S33: 115.0256 | V33: 131.68 | W33: ='Background Calculations'!$M$54 -> 5.03 | X33: 662.3504 | Y33: 596.11536 | Z33: 79.482048 | AA33: ='Farm Bill Calculator'!$E$22 -> 151.5766667 | AB33: ='Farm Bill Calculator'!$E$30 -> 4.12 | AC33: 624.4958667 | AD33: 0 | AE33: 0
B34: EatonCornAll | C34: 26017 | D34: Michigan | E34: Eaton | G34: Corn | H34: Bushel | I34: All | J34: 186.83 | K34: 163.37 | L34: 145.76 | M34: 165.14 | N34: 180.56 | O34: 192.86 | P34: 157.95 | Q34: 200.43 | R34: 181.348 | S34: 184.5896 | T34: 1.96 | V34: 179.52 | W34: ='Background Calculations'!$M$54 -> 5.03 | X34: 902.9856 | Y34: 812.68704 | Z34: 108.358272 | AA34: ='Farm Bill Calculator'!$E$22 -> 151.5766667 | AB34: ='Farm Bill Calculator'!$E$30 -> 4.12 | AC34: 624.4958667 | AD34: 188.1911733 | AE34: 108.358272
B35: EmmetCornAll | C35: 26019 | D35: Michigan | E35: Emmet | G35: Corn | H35: Bushel | I35: All | J35: 125.34 | K35: 115.45 | L35: 86.44 | M35: 133.6 | N35: 139.59 | O35: 109.12 | P35: 124.94 | Q35: 117.31 | R35: 125.852 | S35: 124.3024 | T35: 0.94 | V35: 125.2833333 | W35: ='Background Calculations'!$M$54 -> 5.03 | X35: 630.1751667 | Y35: 567.15765 | Z35: 75.62102 | AA35: ='Farm Bill Calculator'!$E$22 -> 151.5766667 | AB35: ='Farm Bill Calculator'!$E$30 -> 4.12 | AC35: 624.4958667 | AD35: 0 | AE35: 0
B36: GeneseeCornAll | C36: 26019 | D36: Michigan | E36: Genesee | G36: Corn | H36: Bushel | I36: All | J36: 178.39 | K36: 170.26 | L36: 148.75 | M36: 158.64 | N36: 178.68 | O36: 149.91 | P36: 160.21 | Q36: 167.72 | R36: 164.782 | S36: 166.0104 | T36: 1.75 | V36: 162.19 | W36: ='Background Calculations'!$M$54 -> 5.03 | X36: 815.8157 | Y36: 734.23413 | Z36: 97.897884 | AA36: ='Farm Bill Calculator'!$E$22 -> 151.5766667 | AB36: ='Farm Bill Calculator'!$E$30 -> 4.12 | AC36: 624.4958667 | AD36: 109.7382633 | AE36: 97.897884
B37: GladwinCornAll | C37: 26021 | D37: Michigan | E37: Gladwin | G37: Corn | H37: Bushel | I37: All | J37: 154.34 | K37: 175.27 | L37: 142.53 | M37: 160.4 | N37: 189.78 | O37: 140.9 | P37: 170.95 | Q37: 177.92 | R37: 169.87 | S37: 171.764 | T37: 1.88 | V37: 169.7566667 | W37: ='Background Calculations'!$M$54 -> 5.03 | X37: 853.8760333 | Y37: 768.48843 | Z37: 102.465124 | AA37: ='Farm Bill Calculator'!$E$22 -> 151.5766667 | AB37: ='Farm Bill Calculator'!$E$30 -> 4.12 | AC37: 624.4958667 | AD37: 143.9925633 | AE37: 102.465124
B38: Grand TraverseCornAll | C38: 26021 | D38: Michigan | E38: Grand Traverse | G38: Corn | H38: Bushel | I38: All | J38: 133.76 | K38: 89.15 | L38: 108.14 | M38: 109.12 | N38: 155.33 | O38: 144.04 | P38: 124.28 | Q38: 150.39 | R38: 137.712 | S38: 143.4304 | T38: 1.08 | V38: 139.57 | W38: ='Background Calculations'!$M$54 -> 5.03 | X38: 702.0371 | Y38: 631.83339 | Z38: 84.244452 | AA38: ='Farm Bill Calculator'!$E$22 -> 151.5766667 | AB38: ='Farm Bill Calculator'!$E$30 -> 4.12 | AC38: 624.4958667 | AD38: 7.337523333 | AE38: 7.337523333
B39: GratiotCornIrrigated | C39: 26021 | D39: Michigan | E39: Gratiot | G39: Corn | H39: Bushel | I39: Irrigated | J39: 186.68 | K39: 196.85 | L39: 187.88 | M39: 204.31 | N39: 201.98 | O39: 207.38 | P39: 214.83 | Q39: 218.73 | R39: 210.866 | S39: 212.1772 | T39: 1.42 | V39: 208.84 | W39: ='Background Calculations'!$M$54 -> 5.03 | X39: 1050.4652 | Y39: 945.41868 | Z39: 126.055824 | AA39: ='Farm Bill Calculator'!$E$22 -> 151.5766667 | AB39: ='Farm Bill Calculator'!$E$30 -> 4.12 | AC39: 624.4958667 | AD39: 320.9228133 | AE39: 126.055824
B40: GratiotCornNonirrigated | C40: 26021 | D40: Michigan | E40: Gratiot | G40: Corn | H40: Bushel | I40: Nonirrigated | J40: 164.63 | K40: 174.91 | L40: 155.16 | M40: 173.21 | N40: 183.23 | O40: 182.02 | P40: 193.65 | Q40: 209.24 | R40: 189.68 | S40: 192.974 | T40: 1.41 | V40: 186.3 | W40: ='Background Calculations'!$M$54 -> 5.03 | X40: 937.089 | Y40: 843.3801 | Z40: 112.45068 | AA40: ='Farm Bill Calculator'!$E$22 -> 151.5766667 | AB40: ='Farm Bill Calculator'!$E$30 -> 4.12 | AC40: 624.4958667 | AD40: 218.8842333 | AE40: 112.45068
B41: HillsdaleCornIrrigated | C41: 26021 | D41: Michigan | E41: Hillsdale | G41: Corn | H41: Bushel | I41: Irrigated | J41: 203.81 | K41: 187.67 | L41: 202.17 | M41: 217.28 | N41: 195.46 | O41: 217.72 | P41: 219.05 | Q41: 230.51 | R41: 217.764 | S41: 217.8608 | T41: 1.76 | V41: 218.0166667 | W41: ='Background Calculations'!$M$54 -> 5.03 | X41: 1096.623833 | Y41: 986.96145 | Z41: 131.59486 | AA41: ='Farm Bill Calculator'!$E$22 -> 151.5766667 | AB41: ='Farm Bill Calculator'!$E$30 -> 4.12 | AC41: 624.4958667 | AD41: 362.4655833 | AE41: 131.59486
B42: HillsdaleCornNonirrigated | C42: 26023 | D42: Michigan | E42: Hillsdale | G42: Corn | H42: Bushel | I42: Nonirrigated | J42: 172.04 | K42: 164.3 | L42: 167.11 | M42: 158.5 | N42: 184.91 | O42: 186.81 | P42: 175.27 | Q42: 185.4 | R42: 179.898 | S42: 184.1776 | T42: 1.72 | V42: 181.86 | W42: ='Background Calculations'!$M$54 -> 5.03 | X42: 914.7558 | Y42: 823.28022 | Z42: 109.770696 | AA42: ='Farm Bill Calculator'!$E$22 -> 151.5766667 | AB42: ='Farm Bill Calculator'!$E$30 -> 4.12 | AC42: 624.4958667 | AD42: 198.7843533 | AE42: 109.770696
B43: HoughtonCornAll | C43: 26023 | D43: Michigan | E43: Houghton | G43: Corn | H43: Bushel | I43: All | J43: 58.4 | K43: 111 | L43: 58.49 | M43: 138.6 | N43: 110.84 | O43: 79.53 | P43: 170.04 | Q43: 65.44 | R43: 112.89 | S43: 107.748 | V43: 109.6566667 | W43: ='Background Calculations'!$M$54 -> 5.03 | X43: 551.5730333 | Y43: 496.41573 | Z43: 66.188764 | AA43: ='Farm Bill Calculator'!$E$22 -> 151.5766667 | AB43: ='Farm Bill Calculator'!$E$30 -> 4.12 | AC43: 624.4958667 | AD43: 0 | AE43: 0
B44: HuronCornIrrigated | C44: 26023 | D44: Michigan | E44: Huron | G44: Corn | H44: Bushel | I44: Irrigated | J44: 208.45 | K44: 207.21 | L44: 209.51 | M44: 220.47 | N44: 219.57 | O44: 203.53 | P44: 203.81 | Q44: 228.47 | R44: 216.71 | S44: 215.958 | T44: 1.54 | V44: 214.6166667 | W44: ='Background Calculations'!$M$54 -> 5.03 | X44: 1079.521833 | Y44: 971.56965 | Z44: 129.54262 | AA44: ='Farm Bill Calculator'!$E$22 -> 151.5766667 | AB44: ='Farm Bill Calculator'!$E$30 -> 4.12 | AC44: 624.4958667 | AD44: 347.0737833 | AE44: 129.54262
B45: HuronCornNonirrigated | C45: 26023 | D45: Michigan | E45: Huron | G45: Corn | H45: Bushel | I45: Nonirrigated | J45: 205.28 | K45: 178.93 | L45: 182.14 | M45: 201.87 | N45: 224.46 | O45: 177.97 | P45: 208.7 | Q45: 215.07 | R45: 207.154 | S45: 208.2108 | T45: 1.54 | V45: 208.5466667 | W45: ='Background Calculations'!$M$54 -> 5.03 | X45: 1048.989733 | Y45: 944.09076 | Z45: 125.878768 | AA45: ='Farm Bill Calculator'!$E$22 -> 151.5766667 | AB45: ='Farm Bill Calculator'!$E$30 -> 4.12 | AC45: 624.4958667 | AD45: 319.5948933 | AE45: 125.878768
B46: InghamCornAll | C46: 26023 | D46: Michigan | E46: Ingham | G46: Corn | H46: Bushel | I46: All | J46: 172.86 | K46: 159.79 | L46: 164.27 | M46: 166.36 | N46: 199.89 | O46: 175.46 | P46: 176.34 | Q46: 197.01 | R46: 184.872 | S46: 188.5744 | T46: 1.86 | V46: 182.9366667 | W46: ='Background Calculations'!$M$54 -> 5.03 | X46: 920.1714333 | Y46: 828.15429 | Z46: 110.420572 | AA46: ='Farm Bill Calculator'!$E$22 -> 151.5766667 | AB46: ='Farm Bill Calculator'!$E$30 -> 4.12 | AC46: 624.4958667 | AD46: 203.6584233 | AE46: 110.420572
B47: IoniaCornIrrigated | C47: 26025 | D47: Michigan | E47: Ionia | G47: Corn | H47: Bushel | I47: Irrigated | J47: 209.64 | K47: 218.7 | L47: 198.65 | M47: 222.95 | N47: 241.14 | O47: 229.13 | P47: 225.51 | Q47: 248.03 | R47: 234.992 | S47: 237.4004 | T47: 1.64 | V47: 231.9266667 | W47: ='Background Calculations'!$M$54 -> 5.03 | X47: 1166.591133 | Y47: 1049.93202 | Z47: 139.990936 | AA47: ='Farm Bill Calculator'!$E$22 -> 151.5766667 | AB47: ='Farm Bill Calculator'!$E$30 -> 4.12 | AC47: 624.4958667 | AD47: 425.4361533 | AE47: 139.990936
B48: IoniaCornNonirrigated | C48: 26025 | D48: Michigan | E48: Ionia | G48: Corn | H48: Bushel | I48: Nonirrigated | J48: 175.61 | K48: 172.12 | L48: 166.24 | M48: 165.67 | N48: 198.59 | O48: 202.32 | P48: 191.95 | Q48: 212.86 | R48: 195.908 | S48: 201.9556 | T48: 1.63 | V48: 197.62 | W48: ='Background Calculations'!$M$54 -> 5.03 | X48: 994.0286 | Y48: 894.62574 | Z48: 119.283432 | AA48: ='Farm Bill Calculator'!$E$22 -> 151.5766667 | AB48: ='Farm Bill Calculator'!$E$30 -> 4.12 | AC48: 624.4958667 | AD48: 270.1298733 | AE48: 119.283432
B49: IoscoCornAll | C49: 26025 | D49: Michigan | E49: Iosco | G49: Corn | H49: Bushel | I49: All | J49: 173.96 | K49: 163.73 | L49: 144.27 | M49: 155.35 | N49: 168.98 | O49: 155.77 | P49: 168.28 | Q49: 162.63 | R49: 163.402 | S49: 165.0124 | T49: 1.2 | V49: 162.2266667 | W49: ='Background Calculations'!$M$54 -> 5.03 | X49: 816.0001333 | Y49: 734.40012 | Z49: 97.920016 | AA49: ='Farm Bill Calculator'!$E$22 -> 151.5766667 | AB49: ='Farm Bill Calculator'!$E$30 -> 4.12 | AC49: 624.4958667 | AD49: 109.9042533 | AE49: 97.920016
B50: IronCornAll | C50: 26025 | D50: Michigan | E50: Iron | G50: Corn | H50: Bushel | I50: All | J50: 84 | K50: 111 | L50: 84 | M50: 154.83 | N50: 110.84 | O50: 84 | P50: 170.04 | Q50: 65.44 | R50: 117.03 | S50: 109.47 | V50: 116.5566667 | W50: ='Background Calculations'!$M$54 -> 5.03 | X50: 586.2800333 | Y50: 527.65203 | Z50: 70.353604 | AA50: ='Farm Bill Calculator'!$E$22 -> 151.5766667 | AB50: ='Farm Bill Calculator'!$E$30 -> 4.12 | AC50: 624.4958667 | AD50: 0 | AE50: 0
B51: IsabellaCornIrrigated | C51: 26025 | D51: Michigan | E51: Isabella | G51: Corn | H51: Bushel | I51: Irrigated | J51: 183.39 | K51: 188.31 | L51: 176.71 | M51: 179.95 | N51: 193.12 | O51: 143.15 | P51: 151.95 | Q51: 178.75 | R51: 171.214 | S51: 169.4668 | T51: 1.83 | V51: 170.2166667 | W51: ='Background Calculations'!$M$54 -> 5.03 | X51: 856.1898333 | Y51: 770.57085 | Z51: 102.74278 | AA51: ='Farm Bill Calculator'!$E$22 -> 151.5766667 | AB51: ='Farm Bill Calculator'!$E$30 -> 4.12 | AC51: 624.4958667 | AD51: 146.0749833 | AE51: 102.74278
B52: IsabellaCornNonirrigated | C52: 26027 | D52: Michigan | E52: Isabella | G52: Corn | H52: Bushel | I52: Nonirrigated | J52: 165.05 | K52: 154.58 | L52: 149.09 | M52: 137.55 | N52: 189.45 | O52: 174.51 | P52: 176.62 | Q52: 189.25 | R52: 175.286 | S52: 182.8332 | T52: 1.81 | V52: 180.1266667 | W52: ='Background Calculations'!$M$54 -> 5.03 | X52: 906.0371333 | Y52: 815.43342 | Z52: 108.724456 | AA52: ='Farm Bill Calculator'!$E$22 -> 151.5766667 | AB52: ='Farm Bill Calculator'!$E$30 -> 4.12 | AC52: 624.4958667 | AD52: 190.9375533 | AE52: 108.724456
B53: JacksonCornIrrigated | C53: 26027 | D53: Michigan | E53: Jackson | G53: Corn | H53: Bushel | I53: Irrigated | J53: 231.79 | K53: 210.8 | L53: 209.28 | M53: 221.03 | N53: 196.25 | O53: 195.94 | P53: 229.31 | Q53: 216.88 | R53: 213.442 | S53: 211.9244 | T53: 1.56 | V53: 211.3866667 | W53: ='Background Calculations'!$M$54 -> 5.03 | X53: 1063.274933 | Y53: 956.94744 | Z53: 127.592992 | AA53: ='Farm Bill Calculator'!$E$22 -> 151.5766667 | AB53: ='Farm Bill Calculator'!$E$30 -> 4.12 | AC53: 624.4958667 | AD53: 332.4515733 | AE53: 127.592992
B54: JacksonCornNonirrigated | C54: 26027 | D54: Michigan | E54: Jackson | G54: Corn | H54: Bushel | I54: Nonirrigated | J54: 134.13 | K54: 137.18 | L54: 160.52 | M54: 140.8 | N54: 169.78 | O54: 170.12 | P54: 169.43 | Q54: 174.59 | R54: 166.424 | S54: 171.5488 | T54: 1.48 | V54: 169.7766667 | W54: ='Background Calculations'!$M$54 -> 5.03 | X54: 853.9766333 | Y54: 768.57897 | Z54: 102.477196 | AA54: ='Farm Bill Calculator'!$E$22 -> 151.5766667 | AB54: ='Farm Bill Calculator'!$E$30 -> 4.12 | AC54: 624.4958667 | AD54: 144.0831033 | AE54: 102.477196
B55: KalamazooCornIrrigated | C55: 26027 | D55: Michigan | E55: Kalamazoo | G55: Corn | H55: Bushel | I55: Irrigated | J55: 220.53 | K55: 161.55 | L55: 196.91 | M55: 220.08 | N55: 225.07 | O55: 218.14 | P55: 213.2 | Q55: 235.93 | R55: 224.114 | S55: 224.9208 | T55: 1.63 | V55: 221.0966667 | W55: ='Background Calculations'!$M$54 -> 5.03 | X55: 1112.116233 | Y55: 1000.90461 | Z55: 133.453948 | AA55: ='Farm Bill Calculator'!$E$22 -> 151.5766667 | AB55: ='Farm Bill Calculator'!$E$30 -> 4.12 | AC55: 624.4958667 | AD55: 376.4087433 | AE55: 133.453948
B56: KalamazooCornNonirrigated | C56: 26027 | D56: Michigan | E56: Kalamazoo | G56: Corn | H56: Bushel | I56: Nonirrigated | J56: 151.81 | K56: 153.4 | L56: 146.44 | M56: 143.38 | N56: 174.45 | O56: 172.71 | P56: 165.46 | Q56: 186.44 | R56: 169.898 | S56: 175.2016 | T56: 1.41 | V56: 170.8733333 | W56: ='Background Calculations'!$M$54 -> 5.03 | X56: 859.4928667 | Y56: 773.54358 | Z56: 103.139144 | AA56: ='Farm Bill Calculator'!$E$22 -> 151.5766667 | AB56: ='Farm Bill Calculator'!$E$30 -> 4.12 | AC56: 624.4958667 | AD56: 149.0477133 | AE56: 103.139144
B57: KalkaskaCornAll | C57: 26029 | D57: Michigan | E57: Kalkaska | G57: Corn | H57: Bushel | I57: All | J57: 129 | K57: 111 | L57: 62.4 | M57: 104.2 | N57: 120.23 | O57: 133.69 | P57: 154.05 | Q57: 166.09 | R57: 135.652 | S57: 141.9424 | V57: 135.99 | W57: ='Background Calculations'!$M$54 -> 5.03 | X57: 684.0297 | Y57: 615.62673 | Z57: 82.083564 | AA57: ='Farm Bill Calculator'!$E$22 -> 151.5766667 | AB57: ='Farm Bill Calculator'!$E$30 -> 4.12 | AC57: 624.4958667 | AD57: 0 | AE57: 0
B58: KentCornIrrigated | C58: 26029 | D58: Michigan | E58: Kent | G58: Corn | H58: Bushel | I58: Irrigated | J58: 205.72 | K58: 170.59 | L58: 185.17 | M58: 203.51 | N58: 205.24 | O58: 217.79 | P58: 221.84 | Q58: 216.83 | R58: 214.782 | S58: 217.0364 | T58: 1.74 | V58: 213.2866667 | W58: ='Background Calculations'!$M$54 -> 5.03 | X58: 1072.831933 | Y58: 965.54874 | Z58: 128.739832 | AA58: ='Farm Bill Calculator'!$E$22 -> 151.5766667 | AB58: ='Farm Bill Calculator'!$E$30 -> 4.12 | AC58: 624.4958667 | AD58: 341.0528733 | AE58: 128.739832
B59: KentCornNonirrigated | C59: 26029 | D59: Michigan | E59: Kent | G59: Corn | H59: Bushel | I59: Nonirrigated | J59: 158.54 | K59: 151.22 | L59: 154.85 | M59: 172.73 | N59: 189.47 | O59: 181.77 | P59: 177.3 | Q59: 192.83 | R59: 184.52 | S59: 186.878 | T59: 1.7 | V59: 182.8466667 | W59: ='Background Calculations'!$M$54 -> 5.03 | X59: 919.7187333 | Y59: 827.74686 | Z59: 110.366248 | AA59: ='Farm Bill Calculator'!$E$22 -> 151.5766667 | AB59: ='Farm Bill Calculator'!$E$30 -> 4.12 | AC59: 624.4958667 | AD59: 203.2509933 | AE59: 110.366248
B60: LakeCornAll | C60: 26031 | D60: Michigan | E60: Lake | G60: Corn | H60: Bushel | I60: All | J60: 140 | K60: 78.17 | L60: 138.51 | M60: 154.4 | N60: 157.86 | O60: 158.28 | P60: 148.83 | Q60: 166.97 | R60: 157.268 | S60: 157.8416 | V60: 156.8466667 | W60: ='Background Calculations'!$M$54 -> 5.03 | X60: 788.9387333 | Y60: 710.04486 | Z60: 94.672648 | AA60: ='Farm Bill Calculator'!$E$22 -> 151.5766667 | AB60: ='Farm Bill Calculator'!$E$30 -> 4.12 | AC60: 624.4958667 | AD60: 85.54899333 | AE60: 85.54899333
B61: LapeerCornAll | C61: 26031 | D61: Michigan | E61: Lapeer | G61: Corn | H61: Bushel | I61: All | J61: 194.26 | K61: 184.31 | L61: 155.57 | M61: 181.58 | N61: 193.42 | O61: 161.23 | P61: 164.75 | Q61: 182.94 | R61: 178.874 | S61: 178.3328 | T61: 2.09 | V61: 176.4233333 | W61: ='Background Calculations'!$M$54 -> 5.03 | X61: 887.4093667 | Y61: 798.66843 | Z61: 106.489124 | AA61: ='Farm Bill Calculator'!$E$22 -> 151.5766667 | AB61: ='Farm Bill Calculator'!$E$30 -> 4.12 | AC61: 624.4958667 | AD61: 174.1725633 | AE61: 106.489124
B62: LeelanauCornAll | C62: 26031 | D62: Michigan | E62: Leelanau | G62: Corn | H62: Bushel | I62: All | J62: 118.07 | K62: 100.34 | L62: 109.46 | M62: 135.26 | N62: 152.05 | O62: 119.16 | P62: 77.94 | Q62: 83.92 | R62: 114.626 | S62: 110.4992 | T62: 0.96 | V62: 112.78 | W62: ='Background Calculations'!$M$54 -> 5.03 | X62: 567.2834 | Y62: 510.55506 | Z62: 68.074008 | AA62: ='Farm Bill Calculator'!$E$22 -> 151.5766667 | AB62: ='Farm Bill Calculator'!$E$30 -> 4.12 | AC62: 624.4958667 | AD62: 0 | AE62: 0
B63: LenaweeCornIrrigated | C63: 26033 | D63: Michigan | E63: Lenawee | G63: Corn | H63: Bushel | I63: Irrigated | J63: 232.36 | K63: 211.03 | L63: 219.54 | M63: 219.17 | N63: 213.62 | O63: 231.35 | P63: 239.9 | Q63: 211.17 | R63: 224.602 | S63: 225.6884 | T63: 1.56 | V63: 221.38 | W63: ='Background Calculations'!$M$54 -> 5.03 | X63: 1113.5414 | Y63: 1002.18726 | Z63: 133.624968 | AA63: ='Farm Bill Calculator'!$E$22 -> 151.5766667 | AB63: ='Farm Bill Calculator'!$E$30 -> 4.12 | AC63: 624.4958667 | AD63: 377.6913933 | AE63: 133.624968
B64: LenaweeCornNonirrigated | C64: 26033 | D64: Michigan | E64: Lenawee | G64: Corn | H64: Bushel | I64: Nonirrigated | J64: 189.24 | K64: 167.71 | L64: 179.37 | M64: 172.6 | N64: 196.48 | O64: 194.82 | P64: 199.15 | Q64: 182.21 | R64: 190.602 | S64: 194.2024 | T64: 1.55 | V64: 191.17 | W64: ='Background Calculations'!$M$54 -> 5.03 | X64: 961.5851 | Y64: 865.42659 | Z64: 115.390212 | AA64: ='Farm Bill Calculator'!$E$22 -> 151.5766667 | AB64: ='Farm Bill Calculator'!$E$30 -> 4.12 | AC64: 624.4958667 | AD64: 240.9307233 | AE64: 115.390212
B65: LivingstonCornAll | C65: 26033 | D65: Michigan | E65: Livingston | G65: Corn | H65: Bushel | I65: All | J65: 167.78 | K65: 139.72 | L65: 172.15 | M65: 173.89 | N65: 184.07 | O65: 164.32 | P65: 190.15 | Q65: 205.79 | R65: 185.494 | S65: 187.8148 | T65: 1.85 | V65: 182.7033333 | W65: ='Background Calculations'!$M$54 -> 5.03 | X65: 918.9977667 | Y65: 827.09799 | Z65: 110.279732 | AA65: ='Farm Bill Calculator'!$E$22 -> 151.5766667 | AB65: ='Farm Bill Calculator'!$E$30 -> 4.12 | AC65: 624.4958667 | AD65: 202.6021233 | AE65: 110.279732
B66: LuceCornAll | C66: 26035 | D66: Michigan | E66: Luce | G66: Corn | H66: Bushel | I66: All | J66: 61.6 | K66: 111 | L66: 61.6 | M66: 182.4 | N66: 110.84 | O66: 79.53 | P66: 170.04 | Q66: 65.44 | R66: 121.65 | S66: 109.5 | V66: 120.1366667 | W66: ='Background Calculations'!$M$54 -> 5.03 | X66: 604.2874333 | Y66: 543.85869 | Z66: 72.514492 | AA66: ='Farm Bill Calculator'!$E$22 -> 151.5766667 | AB66: ='Farm Bill Calculator'!$E$30 -> 4.12 | AC66: 624.4958667 | AD66: 0 | AE66: 0
B67: MackinacCornAll | C67: 26035 | D67: Michigan | E67: Mackinac | G67: Corn | H67: Bushel | I67: All | J67: 61.6 | K67: 111 | L67: 61.6 | M67: 182.9 | N67: 110.84 | O67: 79.53 | P67: 170.04 | Q67: 65.44 | R67: 121.75 | S67: 109.52 | V67: 120.1366667 | W67: ='Background Calculations'!$M$54 -> 5.03 | X67: 604.2874333 | Y67: 543.85869 | Z67: 72.514492 | AA67: ='Farm Bill Calculator'!$E$22 -> 151.5766667 | AB67: ='Farm Bill Calculator'!$E$30 -> 4.12 | AC67: 624.4958667 | AD67: 0 | AE67: 0
B68: MacombCornAll | C68: 26035 | D68: Michigan | E68: Macomb | G68: Corn | H68: Bushel | I68: All | J68: 190.48 | K68: 190.42 | L68: 163.95 | M68: 173.88 | N68: 182.76 | O68: 180.66 | P68: 177.82 | Q68: 180.24 | R68: 181.132 | S68: 182.5824 | T68: 2.06 | V68: 179.5733333 | W68: ='Background Calculations'!$M$54 -> 5.03 | X68: 903.2538667 | Y68: 812.92848 | Z68: 108.390464 | AA68: ='Farm Bill Calculator'!$E$22 -> 151.5766667 | AB68: ='Farm Bill Calculator'!$E$30 -> 4.12 | AC68: 624.4958667 | AD68: 188.4326133 | AE68: 108.390464
B69: =E69&G69&I69 -> ManisteeCornAll | C69: 26037 | D69: Michigan | E69: Manistee | G69: Corn | H69: Bushel | I69: All | J69: 127.48 | K69: 148.52 | L69: 111.62 | M69: 123.07 | N69: 158.09 | O69: 164.17 | P69: 133.41 | Q69: 156.73 | R69: 148.604 | S69: 153.7108 | T69: 1.51 | V69: 149.41 | W69: ='Background Calculations'!$M$54 -> 5.03 | X69: 751.5323 | Y69: 676.37907 | Z69: 90.183876 | AA69: ='Farm Bill Calculator'!$E$22 -> 151.5766667 | AB69: ='Farm Bill Calculator'!$E$30 -> 4.12 | AC69: 624.4958667 | AD69: 51.88320333 | AE69: 51.88320333
B70: MarquetteCornAll | C70: 26037 | D70: Michigan | E70: Marquette | G70: Corn | H70: Bushel | I70: All | J70: 58.4 | K70: 111 | L70: 58.49 | M70: 184 | N70: 110.84 | O70: 79.53 | P70: 170.04 | Q70: 65.44 | R70: =AVERAGE(M70:Q70)+T70 -> 121.97 | S70: =AVERAGE(N70:R70)+T70 -> 109.564 | V70: =(SUM(M70:Q70)-MIN(M70:Q70)-MAX(M70:Q70))/(COUNT(M70:Q70)-2) -> 120.1366667 | W70: ='Background Calculations'!$M$54 -> 5.03 | X70: =V70*W70 -> 604.2874333 | Y70: =X70*0.9 -> 543.85869 | Z70: =X70*0.12 -> 72.514492 | AA70: ='Farm Bill Calculator'!$E$22 -> 151.5766667 | AB70: ='Farm Bill Calculator'!$E$30 -> 4.12 | AC70: =AB70*AA70 -> 624.4958667 | AD70: =IF(Y70-AC70>0,Y70-AC70,0) -> 0 | AE70: =MIN(AD70,Z70) -> 0
B71: MasonCornIrrigated | C71: 26037 | D71: Michigan | E71: Mason | G71: Corn | H71: Bushel | I71: Irrigated | J71: 207.66 | K71: 186.02 | L71: 182.31 | M71: 202.82 | N71: 211.55 | O71: 186.84 | P71: 197.8 | Q71: 181.78 | R71: 198.048 | S71: 197.0936 | T71: 1.89 | V71: 195.82 | W71: ='Background Calculations'!$M$54 -> 5.03 | X71: 984.9746 | Y71: 886.47714 | Z71: 118.196952 | AA71: ='Farm Bill Calculator'!$E$22 -> 151.5766667 | AB71: ='Farm Bill Calculator'!$E$30 -> 4.12 | AC71: 624.4958667 | AD71: 261.9812733 | AE71: 118.196952
B72: MasonCornNonirrigated | C72: 26037 | D72: Michigan | E72: Mason | G72: Corn | H72: Bushel | I72: Nonirrigated | J72: 178.77 | K72: 139.85 | L72: 145.52 | M72: 165.93 | N72: 175.62 | O72: 169.9 | P72: 145.66 | Q72: 150.19 | R72: 163.32 | S72: 162.798 | T72: 1.86 | V72: 162.0066667 | W72: ='Background Calculations'!$M$54 -> 5.03 | X72: 814.8935333 | Y72: 733.40418 | Z72: 97.787224 | AA72: ='Farm Bill Calculator'!$E$22 -> 151.5766667 | AB72: ='Farm Bill Calculator'!$E$30 -> 4.12 | AC72: 624.4958667 | AD72: 108.9083133 | AE72: 97.787224
B73: MecostaCornIrrigated | C73: 26037 | D73: Michigan | E73: Mecosta | G73: Corn | H73: Bushel | I73: Irrigated | J73: 196.77 | K73: 161.75 | L73: 174.87 | M73: 190.84 | N73: 206.34 | O73: 186.71 | P73: 178.42 | Q73: 177.3 | R73: 189.622 | S73: 189.3784 | T73: 1.7 | V73: 185.3233333 | W73: ='Background Calculations'!$M$54 -> 5.03 | X73: 932.1763667 | Y73: 838.95873 | Z73: 111.861164 | AA73: ='Farm Bill Calculator'!$E$22 -> 151.5766667 | AB73: ='Farm Bill Calculator'!$E$30 -> 4.12 | AC73: 624.4958667 | AD73: 214.4628633 | AE73: 111.861164
B74: MecostaCornNonirrigated | C74: 26041 | D74: Michigan | E74: Mecosta | G74: Corn | H74: Bushel | I74: Nonirrigated | J74: 134.12 | K74: 123 | L74: 122.64 | M74: 99.8 | N74: 134.3 | O74: 110.63 | P74: 123.56 | Q74: 125.84 | R74: 120.386 | S74: 124.5032 | T74: 1.56 | V74: 120.01 | W74: ='Background Calculations'!$M$54 -> 5.03 | X74: 603.6503 | Y74: 543.28527 | Z74: 72.438036 | AA74: ='Farm Bill Calculator'!$E$22 -> 151.5766667 | AB74: ='Farm Bill Calculator'!$E$30 -> 4.12 | AC74: 624.4958667 | AD74: 0 | AE74: 0
B75: MenomineeCornAll | C75: 26041 | D75: Michigan | E75: Menominee | G75: Corn | H75: Bushel | I75: All | J75: 68.2 | K75: 153.99 | L75: 66.26 | M75: 193.04 | N75: 135.18 | O75: 80.52 | P75: 174.62 | Q75: 87.15 | R75: 134.612 | S75: 122.9264 | T75: 0.51 | V75: 132.3166667 | W75: ='Background Calculations'!$M$54 -> 5.03 | X75: 665.5528333 | Y75: 598.99755 | Z75: 79.86634 | AA75: ='Farm Bill Calculator'!$E$22 -> 151.5766667 | AB75: ='Farm Bill Calculator'!$E$30 -> 4.12 | AC75: 624.4958667 | AD75: 0 | AE75: 0
B76: MidlandCornIrrigated | C76: 26041 | D76: Michigan | E76: Midland | G76: Corn | H76: Bushel | I76: Irrigated | J76: 183.42 | K76: 195.52 | L76: 190.82 | M76: 184.14 | N76: 185.41 | O76: 197.79 | P76: 206.98 | Q76: 228.34 | R76: 202.462 | S76: 206.1264 | T76: 1.93 | V76: 196.7266667 | W76: ='Background Calculations'!$M$54 -> 5.03 | X76: 989.5351333 | Y76: 890.58162 | Z76: 118.744216 | AA76: ='Farm Bill Calculator'!$E$22 -> 151.5766667 | AB76: ='Farm Bill Calculator'!$E$30 -> 4.12 | AC76: 624.4958667 | AD76: 266.0857533 | AE76: 118.744216
B77: MidlandCornNonirrigated | C77: 26043 | D77: Michigan | E77: Midland | G77: Corn | H77: Bushel | I77: Nonirrigated | J77: 168.03 | K77: 172.6 | L77: 156.47 | M77: 168.62 | N77: 182.11 | O77: 186.36 | P77: 179.73 | Q77: 190.04 | R77: 183.292 | S77: 186.2264 | T77: 1.92 | V77: 182.7333333 | W77: ='Background Calculations'!$M$54 -> 5.03 | X77: 919.1486667 | Y77: 827.2338 | Z77: 110.29784 | AA77: ='Farm Bill Calculator'!$E$22 -> 151.5766667 | AB77: ='Farm Bill Calculator'!$E$30 -> 4.12 | AC77: 624.4958667 | AD77: 202.7379333 | AE77: 110.29784
B78: MissaukeeCornIrrigated | C78: 26045 | D78: Michigan | E78: Missaukee | G78: Corn | H78: Bushel | I78: Irrigated | J78: 200.94 | K78: 197.53 | L78: 185.76 | M78: 215.41 | N78: 232.41 | O78: 220.3 | P78: 224.08 | Q78: 214.63 | R78: 222.046 | S78: 223.3732 | T78: 0.68 | V78: 219.93 | W78: ='Background Calculations'!$M$54 -> 5.03 | X78: 1106.2479 | Y78: 995.62311 | Z78: 132.749748 | AA78: ='Farm Bill Calculator'!$E$22 -> 151.5766667 | AB78: ='Farm Bill Calculator'!$E$30 -> 4.12 | AC78: 624.4958667 | AD78: 371.1272433 | AE78: 132.749748
B79: MissaukeeCornNonirrigated | C79: 26045 | D79: Michigan | E79: Missaukee | G79: Corn | H79: Bushel | I79: Nonirrigated | J79: 157.37 | K79: 126.34 | L79: 148.76 | M79: 152.05 | N79: 205.54 | O79: 192.39 | P79: 197.2 | Q79: 189.3 | R79: 187.976 | S79: 195.1612 | T79: 0.68 | V79: 192.9633333 | W79: ='Background Calculations'!$M$54 -> 5.03 | X79: 970.6055667 | Y79: 873.54501 | Z79: 116.472668 | AA79: ='Farm Bill Calculator'!$E$22 -> 151.5766667 | AB79: ='Farm Bill Calculator'!$E$30 -> 4.12 | AC79: 624.4958667 | AD79: 249.0491433 | AE79: 116.472668
B80: MonroeCornIrrigated | C80: 26045 | D80: Michigan | E80: Monroe | G80: Corn | H80: Bushel | I80: Irrigated | J80: 229.4 | K80: 179.23 | L80: 228.77 | M80: 229.31 | N80: 222.69 | O80: 243.47 | P80: 236.58 | Q80: 239.57 | R80: 236.214 | S80: 237.5948 | T80: 1.89 | V80: 235.1533333 | W80: ='Background Calculations'!$M$54 -> 5.03 | X80: 1182.821267 | Y80: 1064.53914 | Z80: 141.938552 | AA80: ='Farm Bill Calculator'!$E$22 -> 151.5766667 | AB80: ='Farm Bill Calculator'!$E$30 -> 4.12 | AC80: 624.4958667 | AD80: 440.0432733 | AE80: 141.938552
B81: MonroeCornNonirrigated | C81: 26045 | D81: Michigan | E81: Monroe | G81: Corn | H81: Bushel | I81: Nonirrigated | J81: 202.6 | K81: 180.64 | L81: 193.01 | M81: 153.22 | N81: 209.54 | O81: 178.36 | P81: 209.41 | Q81: 191.69 | R81: 190.314 | S81: 197.7328 | T81: 1.87 | V81: 193.1533333 | W81: ='Background Calculations'!$M$54 -> 5.03 | X81: 971.5612667 | Y81: 874.40514 | Z81: 116.587352 | AA81: ='Farm Bill Calculator'!$E$22 -> 151.5766667 | AB81: ='Farm Bill Calculator'!$E$30 -> 4.12 | AC81: 624.4958667 | AD81: 249.9092733 | AE81: 116.587352
B82: MontcalmCornIrrigated | C82: 26047 | D82: Michigan | E82: Montcalm | G82: Corn | H82: Bushel | I82: Irrigated | J82: 195.12 | K82: 201.03 | L82: 187.87 | M82: 199.99 | N82: 204.63 | O82: 208.49 | P82: 200.77 | Q82: 223.04 | R82: 209.094 | S82: 210.9148 | T82: 1.71 | V82: 204.63 | W82: ='Background Calculations'!$M$54 -> 5.03 | X82: 1029.2889 | Y82: 926.36001 | Z82: 123.514668 | AA82: ='Farm Bill Calculator'!$E$22 -> 151.5766667 | AB82: ='Farm Bill Calculator'!$E$30 -> 4.12 | AC82: 624.4958667 | AD82: 301.8641433 | AE82: 123.514668
B83: MontcalmCornNonirrigated | C83: 26047 | D83: Michigan | E83: Montcalm | G83: Corn | H83: Bushel | I83: Nonirrigated | J83: 141.8 | K83: 138.97 | L83: 131.82 | M83: 136.68 | N83: 170.96 | O83: 160.73 | P83: 159.57 | Q83: 182.09 | R83: 163.476 | S83: 168.8352 | T83: 1.47 | V83: 163.7533333 | W83: ='Background Calculations'!$M$54 -> 5.03 | X83: 823.6792667 | Y83: 741.31134 | Z83: 98.841512 | AA83: ='Farm Bill Calculator'!$E$22 -> 151.5766667 | AB83: ='Farm Bill Calculator'!$E$30 -> 4.12 | AC83: 624.4958667 | AD83: 116.8154733 | AE83: 98.841512
B84: MontmorencyCornAll | C84: 26047 | D84: Michigan | E84: Montmorency | G84: Corn | H84: Bushel | I84: All | J84: 150.02 | K84: 89.15 | L84: 125.38 | M84: 148.25 | N84: 173.67 | O84: 130.98 | P84: 143.29 | Q84: 138.68 | R84: 148.704 | S84: 148.7948 | T84: 1.73 | V84: 143.4066667 | W84: ='Background Calculations'!$M$54 -> 5.03 | X84: 721.3355333 | Y84: 649.20198 | Z84: 86.560264 | AA84: ='Farm Bill Calculator'!$E$22 -> 151.5766667 | AB84: ='Farm Bill Calculator'!$E$30 -> 4.12 | AC84: 624.4958667 | AD84: 24.70611333 | AE84: 24.70611333
B85: MuskegonCornIrrigated | C85: 26049 | D85: Michigan | E85: Muskegon | G85: Corn | H85: Bushel | I85: Irrigated | J85: 174.43 | K85: 140.75 | L85: 128.69 | M85: 167.42 | N85: 209.64 | O85: 196.81 | P85: 204.44 | Q85: 195.79 | R85: 196.12 | S85: 201.86 | T85: 1.3 | V85: 199.0133333 | W85: ='Background Calculations'!$M$54 -> 5.03 | X85: 1001.037067 | Y85: 900.93336 | Z85: 120.124448 | AA85: ='Farm Bill Calculator'!$E$22 -> 151.5766667 | AB85: ='Farm Bill Calculator'!$E$30 -> 4.12 | AC85: 624.4958667 | AD85: 276.4374933 | AE85: 120.124448
B86: MuskegonCornNonirrigated | C86: 26049 | D86: Michigan | E86: Muskegon | G86: Corn | H86: Bushel | I86: Nonirrigated | J86: 146.48 | K86: 130.71 | L86: 116.01 | M86: 156 | N86: 188.15 | O86: 180.05 | P86: 170.97 | Q86: 171.07 | R86: 174.518 | S86: 178.2216 | T86: 1.27 | V86: 174.03 | W86: ='Background Calculations'!$M$54 -> 5.03 | X86: 875.3709 | Y86: 787.83381 | Z86: 105.044508 | AA86: ='Farm Bill Calculator'!$E$22 -> 151.5766667 | AB86: ='Farm Bill Calculator'!$E$30 -> 4.12 | AC86: 624.4958667 | AD86: 163.3379433 | AE86: 105.044508
B87: NewaygoCornIrrigated | C87: 26049 | D87: Michigan | E87: Newaygo | G87: Corn | H87: Bushel | I87: Irrigated | J87: 191.67 | K87: 181.2 | L87: 161.32 | M87: 186.04 | N87: 196.11 | O87: 192.88 | P87: 162.04 | Q87: 220.12 | R87: 192.348 | S87: 193.6096 | T87: 0.91 | V87: 191.6766667 | W87: ='Background Calculations'!$M$54 -> 5.03 | X87: 964.1336333 | Y87: 867.72027 | Z87: 115.696036 | AA87: ='Farm Bill Calculator'!$E$22 -> 151.5766667 | AB87: ='Farm Bill Calculator'!$E$30 -> 4.12 | AC87: 624.4958667 | AD87: 243.2244033 | AE87: 115.696036
B88: NewaygoCornNonirrigated | C88: 26051 | D88: Michigan | E88: Newaygo | G88: Corn | H88: Bushel | I88: Nonirrigated | J88: 139.69 | K88: 104.84 | L88: 128.22 | M88: 160.41 | N88: 182.03 | O88: 165.18 | P88: 164.82 | Q88: 171.72 | R88: 169.722 | S88: 171.5844 | T88: 0.89 | V88: 167.24 | W88: ='Background Calculations'!$M$54 -> 5.03 | X88: 841.2172 | Y88: 757.09548 | Z88: 100.946064 | AA88: ='Farm Bill Calculator'!$E$22 -> 151.5766667 | AB88: ='Farm Bill Calculator'!$E$30 -> 4.12 | AC88: 624.4958667 | AD88: 132.5996133 | AE88: 100.946064
B89: OaklandCornAll | C89: 26051 | D89: Michigan | E89: Oakland | G89: Corn | H89: Bushel | I89: All | J89: 153.27 | K89: 127.55 | L89: 131.71 | M89: 138.33 | N89: 179.16 | O89: 125.4 | P89: 123.66 | Q89: 151.7 | R89: 145.14 | S89: 146.502 | T89: 1.49 | V89: 138.4766667 | W89: ='Background Calculations'!$M$54 -> 5.03 | X89: 696.5376333 | Y89: 626.88387 | Z89: 83.584516 | AA89: ='Farm Bill Calculator'!$E$22 -> 151.5766667 | AB89: ='Farm Bill Calculator'!$E$30 -> 4.12 | AC89: 624.4958667 | AD89: 2.388003333 | AE89: 2.388003333
B90: OceanaCornIrrigated | C90: 26051 | D90: Michigan | E90: Oceana | G90: Corn | H90: Bushel | I90: Irrigated | J90: 173.51 | K90: 150.03 | L90: 150.01 | M90: 181.12 | N90: 190.44 | O90: 164.05 | P90: 157.13 | Q90: 188.27 | R90: 178.322 | S90: 177.7624 | T90: 2.12 | V90: 177.8133333 | W90: ='Background Calculations'!$M$54 -> 5.03 | X90: 894.4010667 | Y90: 804.96096 | Z90: 107.328128 | AA90: ='Farm Bill Calculator'!$E$22 -> 151.5766667 | AB90: ='Farm Bill Calculator'!$E$30 -> 4.12 | AC90: 624.4958667 | AD90: 180.4650933 | AE90: 107.328128
B91: OceanaCornNonirrigated | C91: 26055 | D91: Michigan | E91: Oceana | G91: Corn | H91: Bushel | I91: Nonirrigated | J91: 146.85 | K91: 105.32 | L91: 122.57 | M91: 131.33 | N91: 166.03 | O91: 150.08 | P91: 137.44 | Q91: 130.96 | R91: 145.198 | S91: 147.9716 | T91: 2.03 | V91: 139.6166667 | W91: ='Background Calculations'!$M$54 -> 5.03 | X91: 702.2718333 | Y91: 632.04465 | Z91: 84.27262 | AA91: ='Farm Bill Calculator'!$E$22 -> 151.5766667 | AB91: ='Farm Bill Calculator'!$E$30 -> 4.12 | AC91: 624.4958667 | AD91: 7.548783333 | AE91: 7.548783333
B92: OgemawCornAll | C92: 26055 | D92: Michigan | E92: Ogemaw | G92: Corn | H92: Bushel | I92: All | J92: 160.12 | K92: 171.93 | L92: 156.21 | M92: 156.57 | N92: 199.87 | O92: 162.39 | P92: 174.83 | Q92: 164.2 | R92: 173.442 | S92: 176.8164 | T92: 1.87 | V92: 167.14 | W92: ='Background Calculations'!$M$54 -> 5.03 | X92: 840.7142 | Y92: 756.64278 | Z92: 100.885704 | AA92: ='Farm Bill Calculator'!$E$22 -> 151.5766667 | AB92: ='Farm Bill Calculator'!$E$30 -> 4.12 | AC92: 624.4958667 | AD92: 132.1469133 | AE92: 100.885704
B93: OntonagonCornAll | C93: 26055 | D93: Michigan | E93: Ontonagon | G93: Corn | H93: Bushel | I93: All | J93: 58.4 | K93: 111 | L93: 58.49 | M93: 141.9 | N93: 110.84 | O93: 79.53 | P93: 170.04 | Q93: 65.44 | R93: 113.55 | S93: 107.88 | V93: 110.7566667 | W93: ='Background Calculations'!$M$54 -> 5.03 | X93: 557.1060333 | Y93: 501.39543 | Z93: 66.852724 | AA93: ='Farm Bill Calculator'!$E$22 -> 151.5766667 | AB93: ='Farm Bill Calculator'!$E$30 -> 4.12 | AC93: 624.4958667 | AD93: 0 | AE93: 0
B94: OsceolaCornAll | C94: 26057 | D94: Michigan | E94: Osceola | G94: Corn | H94: Bushel | I94: All | J94: 166.85 | K94: 120.49 | L94: 143.86 | M94: 164.08 | N94: 202.72 | O94: 170.81 | P94: 174.33 | Q94: 173.72 | R94: 178.112 | S94: 180.9184 | T94: 0.98 | V94: 172.9533333 | W94: ='Background Calculations'!$M$54 -> 5.03 | X94: 869.9552667 | Y94: 782.95974 | Z94: 104.394632 | AA94: ='Farm Bill Calculator'!$E$22 -> 151.5766667 | AB94: ='Farm Bill Calculator'!$E$30 -> 4.12 | AC94: 624.4958667 | AD94: 158.4638733 | AE94: 104.394632
B95: OscodaCornAll | C95: 26057 | D95: Michigan | E95: Oscoda | G95: Corn | H95: Bushel | I95: All | J95: 131 | K95: 117 | L95: 110.3 | M95: 147.5 | N95: 188.78 | O95: 152.14 | P95: 153.47 | Q95: 151.05 | R95: 158.588 | S95: 160.8056 | V95: 152.22 | W95: ='Background Calculations'!$M$54 -> 5.03 | X95: 765.6666 | Y95: 689.09994 | Z95: 91.879992 | AA95: ='Farm Bill Calculator'!$E$22 -> 151.5766667 | AB95: ='Farm Bill Calculator'!$E$30 -> 4.12 | AC95: 624.4958667 | AD95: 64.60407333 | AE95: 64.60407333
B96: OtsegoCornAll | C96: 26057 | D96: Michigan | E96: Otsego | G96: Corn | H96: Bushel | I96: All | J96: 140.49 | K96: 100.88 | L96: 137.47 | M96: 155.4 | N96: 148.51 | O96: 83.89 | P96: 152.02 | Q96: 130.19 | R96: 135.702 | S96: 131.7624 | T96: 1.7 | V96: 143.5733333 | W96: ='Background Calculations'!$M$54 -> 5.03 | X96: 722.1738667 | Y96: 649.95648 | Z96: 86.660864 | AA96: ='Farm Bill Calculator'!$E$22 -> 151.5766667 | AB96: ='Farm Bill Calculator'!$E$30 -> 4.12 | AC96: 624.4958667 | AD96: 25.46061333 | AE96: 25.46061333
B97: OttawaCornIrrigated | C97: 26057 | D97: Michigan | E97: Ottawa | G97: Corn | H97: Bushel | I97: Irrigated | J97: 193.4 | K97: 192.84 | L97: 173.81 | M97: 202.79 | N97: 213.08 | O97: 204.08 | P97: 225.14 | Q97: 229.22 | R97: 216.182 | S97: 218.8604 | T97: 1.32 | V97: 214.1 | W97: ='Background Calculations'!$M$54 -> 5.03 | X97: 1076.923 | Y97: 969.2307 | Z97: 129.23076 | AA97: ='Farm Bill Calculator'!$E$22 -> 151.5766667 | AB97: ='Farm Bill Calculator'!$E$30 -> 4.12 | AC97: 624.4958667 | AD97: 344.7348333 | AE97: 129.23076
B98: OttawaCornNonirrigated | C98: 26057 | D98: Michigan | E98: Ottawa | G98: Corn | H98: Bushel | I98: Nonirrigated | J98: 172.94 | K98: 145.98 | L98: 144.56 | M98: 142.95 | N98: 188.97 | O98: 186.5 | P98: 193.51 | Q98: 202.55 | R98: 184.186 | S98: 192.4332 | T98: 1.29 | V98: 189.66 | W98: ='Background Calculations'!$M$54 -> 5.03 | X98: 953.9898 | Y98: 858.59082 | Z98: 114.478776 | AA98: ='Farm Bill Calculator'!$E$22 -> 151.5766667 | AB98: ='Farm Bill Calculator'!$E$30 -> 4.12 | AC98: 624.4958667 | AD98: 234.0949533 | AE98: 114.478776
B99: Presque IsleCornAll | C99: 26059 | D99: Michigan | E99: Presque Isle | G99: Corn | H99: Bushel | I99: All | J99: 134.13 | K99: 93.79 | L99: 98.85 | M99: 127.48 | N99: 160.16 | O99: 131.37 | P99: 112.32 | Q99: 98.16 | R99: 128.098 | S99: 128.2216 | T99: 2.2 | V99: 123.7233333 | W99: ='Background Calculations'!$M$54 -> 5.03 | X99: 622.3283667 | Y99: 560.09553 | Z99: 74.679404 | AA99: ='Farm Bill Calculator'!$E$22 -> 151.5766667 | AB99: ='Farm Bill Calculator'!$E$30 -> 4.12 | AC99: 624.4958667 | AD99: 0 | AE99: 0
B100: RoscommonCornAll | C100: 26059 | D100: Michigan | E100: Roscommon | G100: Corn | H100: Bushel | I100: All | J100: 131 | K100: 117 | L100: 127.65 | M100: 132.87 | N100: 188.78 | O100: 156.28 | P100: 171.84 | Q100: 171.34 | R100: 164.222 | S100: 170.4924 | V100: 166.4866667 | W100: ='Background Calculations'!$M$54 -> 5.03 | X100: 837.4279333 | Y100: 753.68514 | Z100: 100.491352 | AA100: ='Farm Bill Calculator'!$E$22 -> 151.5766667 | AB100: ='Farm Bill Calculator'!$E$30 -> 4.12 | AC100: 624.4958667 | AD100: 129.1892733 | AE100: 100.491352
B101: SaginawCornAll | C101: 26059 | D101: Michigan | E101: Saginaw | G101: Corn | H101: Bushel | I101: All | J101: 177.97 | K101: 189.44 | L101: 158.18 | M101: 168.31 | N101: 179.26 | O101: 176.72 | P101: 179.19 | Q101: 191.96 | R101: 180.958 | S101: 183.4876 | T101: 1.87 | V101: 178.39 | W101: ='Background Calculations'!$M$54 -> 5.03 | X101: 897.3017 | Y101: 807.57153 | Z101: 107.676204 | AA101: ='Farm Bill Calculator'!$E$22 -> 151.5766667 | AB101: ='Farm Bill Calculator'!$E$30 -> 4.12 | AC101: 624.4958667 | AD101: 183.0756633 | AE101: 107.676204
B102: SanilacCornAll | C102: 26059 | D102: Michigan | E102: Sanilac | G102: Corn | H102: Bushel | I102: All | J102: 205.75 | K102: 192.48 | L102: 164.96 | M102: 180.46 | N102: 172.37 | O102: 155.57 | P102: 168.62 | Q102: 176.97 | R102: 173.018 | S102: 171.5296 | T102: 2.22 | V102: 172.6533333 | W102: ='Background Calculations'!$M$54 -> 5.03 | X102: 868.4462667 | Y102: 781.60164 | Z102: 104.213552 | AA102: ='Farm Bill Calculator'!$E$22 -> 151.5766667 | AB102: ='Farm Bill Calculator'!$E$30 -> 4.12 | AC102: 624.4958667 | AD102: 157.1057733 | AE102: 104.213552
B103: SchoolcraftCornAll | C103: 26059 | D103: Michigan | E103: Schoolcraft | G103: Corn | H103: Bushel | I103: All | J103: 61.6 | K103: 111 | L103: 154 | M103: 192.2 | N103: 201.38 | O103: 171.88 | P103: 142.08 | Q103: 193.6 | R103: 181.528 | S103: 179.3936 | T103: 1.3 | V103: 185.8933333 | W103: ='Background Calculations'!$M$54 -> 5.03 | X103: 935.0434667 | Y103: 841.53912 | Z103: 112.205216 | AA103: ='Farm Bill Calculator'!$E$22 -> 151.5766667 | AB103: ='Farm Bill Calculator'!$E$30 -> 4.12 | AC103: 624.4958667 | AD103: 217.0432533 | AE103: 112.205216
B104: ShiawasseeCornAll | C104: 26061 | D104: Michigan | E104: Shiawassee | G104: Corn | H104: Bushel | I104: All | J104: 165.59 | K104: 160.92 | L104: 129.06 | M104: 125.4 | N104: 165.35 | O104: 144.81 | P104: 120.06 | Q104: 147.9 | R104: 141.764 | S104: 145.0368 | T104: 1.06 | V104: 139.37 | W104: ='Background Calculations'!$M$54 -> 5.03 | X104: 701.0311 | Y104: 630.92799 | Z104: 84.123732 | AA104: ='Farm Bill Calculator'!$E$22 -> 151.5766667 | AB104: ='Farm Bill Calculator'!$E$30 -> 4.12 | AC104: 624.4958667 | AD104: 6.432123333 | AE104: 6.432123333
B105: St. ClairCornAll | C105: 26063 | D105: Michigan | E105: St. Clair | G105: Corn | H105: Bushel | I105: All | J105: 178.18 | K105: 188.82 | L105: 185.17 | M105: 203.13 | N105: 224.4 | O105: 193.72 | P105: 195.16 | Q105: 209.8 | R105: 207.252 | S105: 208.0764 | T105: 2.01 | V105: 202.6966667 | W105: ='Background Calculations'!$M$54 -> 5.03 | X105: 1019.564233 | Y105: 917.60781 | Z105: 122.347708 | AA105: ='Farm Bill Calculator'!$E$22 -> 151.5766667 | AB105: ='Farm Bill Calculator'!$E$30 -> 4.12 | AC105: 624.4958667 | AD105: 293.1119433 | AE105: 122.347708
B106: St. JosephCornIrrigated | C106: 26063 | D106: Michigan | E106: St. Joseph | G106: Corn | H106: Bushel | I106: Irrigated | J106: 151.1 | K106: 150.25 | L106: 61.6 | M106: 182.9 | N106: 110.84 | O106: 79.53 | P106: 170.04 | Q106: 65.44 | R106: 121.75 | S106: 109.52 | V106: 120.1366667 | W106: ='Background Calculations'!$M$54 -> 5.03 | X106: 604.2874333 | Y106: 543.85869 | Z106: 72.514492 | AA106: ='Farm Bill Calculator'!$E$22 -> 151.5766667 | AB106: ='Farm Bill Calculator'!$E$30 -> 4.12 | AC106: 624.4958667 | AD106: 0 | AE106: 0
B107: St. JosephCornNonirrigated | C107: 26063 | D107: Michigan | E107: St. Joseph | G107: Corn | H107: Bushel | I107: Nonirrigated | J107: 107.72 | K107: 158.6 | L107: 162.42 | M107: 179.33 | N107: 179.94 | O107: 165.59 | P107: 176.43 | Q107: 200.75 | R107: 182.188 | S107: 182.7596 | T107: 1.78 | V107: 178.5666667 | W107: ='Background Calculations'!$M$54 -> 5.03 | X107: 898.1903333 | Y107: 808.3713 | Z107: 107.78284 | AA107: ='Farm Bill Calculator'!$E$22 -> 151.5766667 | AB107: ='Farm Bill Calculator'!$E$30 -> 4.12 | AC107: 624.4958667 | AD107: 183.8754333 | AE107: 107.78284
B108: TuscolaCornIrrigated | C108: 26063 | D108: Michigan | E108: Tuscola | G108: Corn | H108: Bushel | I108: Irrigated | J108: 193.22 | K108: 218.46 | L108: 190.58 | M108: 202.62 | N108: 229.88 | O108: 199.83 | P108: 205.39 | Q108: 205.76 | R108: 210.656 | S108: 212.2632 | T108: 1.96 | V108: 204.59 | W108: ='Background Calculations'!$M$54 -> 5.03 | X108: 1029.0877 | Y108: 926.17893 | Z108: 123.490524 | AA108: ='Farm Bill Calculator'!$E$22 -> 151.5766667 | AB108: ='Farm Bill Calculator'!$E$30 -> 4.12 | AC108: 624.4958667 | AD108: 301.6830633 | AE108: 123.490524
B109: TuscolaCornNonirrigated | C109: 26063 | D109: Michigan | E109: Tuscola | G109: Corn | H109: Bushel | I109: Nonirrigated | J109: 182.25 | K109: 180.55 | L109: 176.08 | M109: 183.61 | N109: 214.48 | O109: 184.3 | P109: 190.16 | Q109: 199.15 | R109: 196.29 | S109: 198.826 | T109: 1.95 | V109: 191.2033333 | W109: ='Background Calculations'!$M$54 -> 5.03 | X109: 961.7527667 | Y109: 865.57749 | Z109: 115.410332 | AA109: ='Farm Bill Calculator'!$E$22 -> 151.5766667 | AB109: ='Farm Bill Calculator'!$E$30 -> 4.12 | AC109: 624.4958667 | AD109: 241.0816233 | AE109: 115.410332
B110: Van BurenCornIrrigated | C110: 26065 | D110: Michigan | E110: Van Buren | G110: Corn | H110: Bushel | I110: Irrigated | J110: 213.5 | K110: 215.55 | L110: 202.24 | M110: 200.98 | N110: 196.25 | O110: 211.44 | P110: 225.41 | Q110: 217.93 | R110: 212.362 | S110: 214.6384 | T110: 1.96 | V110: 210.1166667 | W110: ='Background Calculations'!$M$54 -> 5.03 | X110: 1056.886833 | Y110: 951.19815 | Z110: 126.82642 | AA110: ='Farm Bill Calculator'!$E$22 -> 151.5766667 | AB110: ='Farm Bill Calculator'!$E$30 -> 4.12 | AC110: 624.4958667 | AD110: 326.7022833 | AE110: 126.82642
B111: Van BurenCornNonirrigated | C111: 26065 | D111: Michigan | E111: Van Buren | G111: Corn | H111: Bushel | I111: Nonirrigated | J111: 166.57 | K111: 149.55 | L111: 132.13 | M111: 134.12 | N111: 154.7 | O111: 153.53 | P111: 170.07 | Q111: 166.99 | R111: 157.662 | S111: 162.3704 | T111: 1.78 | V111: 158.4066667 | W111: ='Background Calculations'!$M$54 -> 5.03 | X111: 796.7855333 | Y111: 717.10698 | Z111: 95.614264 | AA111: ='Farm Bill Calculator'!$E$22 -> 151.5766667 | AB111: ='Farm Bill Calculator'!$E$30 -> 4.12 | AC111: 624.4958667 | AD111: 92.61111333 | AE111: 92.61111333
B112: WashtenawCornIrrigated | C112: 26065 | D112: Michigan | E112: Washtenaw | G112: Corn | H112: Bushel | I112: Irrigated | J112: 229.9 | K112: 217.81 | L112: 229.21 | M112: 182.19 | N112: 228.22 | O112: 223.58 | P112: 194.45 | Q112: 230.23 | R112: 213.534 | S112: 219.8028 | T112: 1.8 | V112: 215.4166667 | W112: ='Background Calculations'!$M$54 -> 5.03 | X112: 1083.545833 | Y112: 975.19125 | Z112: 130.0255 | AA112: ='Farm Bill Calculator'!$E$22 -> 151.5766667 | AB112: ='Farm Bill Calculator'!$E$30 -> 4.12 | AC112: 624.4958667 | AD112: 350.6953833 | AE112: 130.0255
B113: WashtenawCornNonirrigated | C113: 26065 | D113: Michigan | E113: Washtenaw | G113: Corn | H113: Bushel | I113: Nonirrigated | J113: 158.84 | K113: 140.28 | L113: 161.17 | M113: 155.05 | N113: 181.94 | O113: 156.9 | P113: 176.58 | Q113: 181.78 | R113: 172.21 | S113: 175.642 | T113: 1.76 | V113: 171.7533333 | W113: ='Background Calculations'!$M$54 -> 5.03 | X113: 863.9192667 | Y113: 777.52734 | Z113: 103.670312 | AA113: ='Farm Bill Calculator'!$E$22 -> 151.5766667 | AB113: ='Farm Bill Calculator'!$E$30 -> 4.12 | AC113: 624.4958667 | AD113: 153.0314733 | AE113: 103.670312
B114: WayneCornAll | C114: 26067 | D114: Michigan | E114: Wayne | G114: Corn | H114: Bushel | I114: All | J114: 144.68 | K114: 123.07 | L114: 135.58 | M114: 98.76 | N114: 116.77 | O114: 89.19 | P114: 151.43 | Q114: 154.39 | R114: 123.038 | S114: 127.8936 | T114: 0.93 | V114: 122.32 | W114: ='Background Calculations'!$M$54 -> 5.03 | X114: 615.2696 | Y114: 553.74264 | Z114: 73.832352 | AA114: ='Farm Bill Calculator'!$E$22 -> 151.5766667 | AB114: ='Farm Bill Calculator'!$E$30 -> 4.12 | AC114: 624.4958667 | AD114: 0 | AE114: 0
B115: WexfordCornIrrigated | C115: 26067 | D115: Michigan | E115: Wexford | G115: Corn | H115: Bushel | I115: Irrigated | J115: 190.14 | K115: 115.95 | L115: 134.74 | M115: 184.55 | N115: 199.25 | O115: 191.97 | P115: 168.11 | Q115: 208.93 | R115: 191.752 | S115: 193.1924 | T115: 1.19 | V115: 191.9233333 | W115: ='Background Calculations'!$M$54 -> 5.03 | X115: 965.3743667 | Y115: 868.83693 | Z115: 115.844924 | AA115: ='Farm Bill Calculator'!$E$22 -> 151.5766667 | AB115: ='Farm Bill Calculator'!$E$30 -> 4.12 | AC115: 624.4958667 | AD115: 244.3410633 | AE115: 115.844924
B116: WexfordCornNonirrigated | C116: 26067 | D116: Michigan | E116: Wexford | G116: Corn | H116: Bushel | I116: Nonirrigated | J116: 163.42 | K116: 158.95 | L116: 127.11 | M116: 128.65 | N116: 162.92 | O116: 162.42 | P116: 145.66 | Q116: 159.62 | R116: 153.044 | S116: 157.9228 | T116: 1.19 | V116: 155.9 | W116: ='Background Calculations'!$M$54 -> 5.03 | X116: 784.177 | Y116: 705.7593 | Z116: 94.10124 | AA116: ='Farm Bill Calculator'!$E$22 -> 151.5766667 | AB116: ='Farm Bill Calculator'!$E$30 -> 4.12 | AC116: 624.4958667 | AD116: 81.26343333 | AE116: 81.26343333
B117: AlconaSoybeansAll | C117: 26067 | D117: Michigan | E117: Alcona | G117: Soybeans | H117: Bushel | I117: All | J117: 37 | K117: 35.03 | L117: 35.23 | M117: 38.2 | N117: 46.18 | O117: 41.38 | P117: 30.82 | Q117: 18.32 | R117: 34.98 | S117: 34.336 | V117: 36.8 | W117: ='Background Calculations'!$M$54 -> 5.03 | X117: 185.104 | Y117: 166.5936 | Z117: 22.21248 | AA117: ='Farm Bill Calculator'!$E$22 -> 151.5766667 | AB117: ='Farm Bill Calculator'!$E$30 -> 4.12 | AC117: 624.4958667 | AD117: 0 | AE117: 0
B118: AlleganSoybeansIrrigated | C118: 26067 | D118: Michigan | E118: Allegan | G118: Soybeans | H118: Bushel | I118: Irrigated | J118: 59.69 | K118: 64.93 | L118: 64.32 | M118: 66.56 | N118: 59.49 | O118: 63.53 | P118: 62.58 | Q118: 63.68 | R118: 63.728 | S118: 63.1616 | T118: 0.56 | V118: 63.26333333 | W118: ='Background Calculations'!$M$54 -> 5.03 | X118: 318.2145667 | Y118: 286.39311 | Z118: 38.185748 | AA118: ='Farm Bill Calculator'!$E$22 -> 151.5766667 | AB118: ='Farm Bill Calculator'!$E$30 -> 4.12 | AC118: 624.4958667 | AD118: 0 | AE118: 0
B119: AlleganSoybeansNonirrigated | C119: 26069 | D119: Michigan | E119: Allegan | G119: Soybeans | H119: Bushel | I119: Nonirrigated | J119: 51.05 | K119: 52.69 | L119: 40.93 | M119: 48.28 | N119: 46.18 | O119: 50.96 | P119: 49.04 | Q119: 51.82 | R119: 49.796 | S119: 50.0992 | T119: 0.54 | V119: 49.42666667 | W119: ='Background Calculations'!$M$54 -> 5.03 | X119: 248.6161333 | Y119: 223.75452 | Z119: 29.833936 | AA119: ='Farm Bill Calculator'!$E$22 -> 151.5766667 | AB119: ='Farm Bill Calculator'!$E$30 -> 4.12 | AC119: 624.4958667 | AD119: 0 | AE119: 0
B120: AlpenaSoybeansAll | C120: 26069 | D120: Michigan | E120: Alpena | G120: Soybeans | H120: Bushel | I120: All | J120: 35.73 | K120: 38.35 | L120: 27.54 | M120: 47.45 | N120: 47.3 | O120: 37.34 | P120: 38.17 | Q120: 36.86 | R120: 41.694 | S120: 40.5428 | T120: 0.27 | V120: 40.93666667 | W120: ='Background Calculations'!$M$54 -> 5.03 | X120: 205.9114333 | Y120: 185.32029 | Z120: 24.709372 | AA120: ='Farm Bill Calculator'!$E$22 -> 151.5766667 | AB120: ='Farm Bill Calculator'!$E$30 -> 4.12 | AC120: 624.4958667 | AD120: 0 | AE120: 0
B121: AntrimSoybeansAll | C121: 26069 | D121: Michigan | E121: Antrim | G121: Soybeans | H121: Bushel | I121: All | J121: 37 | K121: 37 | L121: 34.4 | M121: 35.6 | N121: 43.36 | O121: 38.34 | P121: 36.44 | Q121: 36.45 | R121: 38.038 | S121: 38.5256 | V121: 37.07666667 | W121: ='Background Calculations'!$M$54 -> 5.03 | X121: 186.4956333 | Y121: 167.84607 | Z121: 22.379476 | AA121: ='Farm Bill Calculator'!$E$22 -> 151.5766667 | AB121: ='Farm Bill Calculator'!$E$30 -> 4.12 | AC121: 624.4958667 | AD121: 0 | AE121: 0
B122: ArenacSoybeansAll | C122: 26071 | D122: Michigan | E122: Arenac | G122: Soybeans | H122: Bushel | I122: All | J122: 44.29 | K122: 48.74 | L122: 34.98 | M122: 43.93 | N122: 51.91 | O122: 44.05 | P122: 44.05 | Q122: 47.04 | R122: 46.616 | S122: 47.1532 | T122: 0.42 | V122: 45.04666667 | W122: ='Background Calculations'!$M$54 -> 5.03 | X122: 226.5847333 | Y122: 203.92626 | Z122: 27.190168 | AA122: ='Farm Bill Calculator'!$E$22 -> 151.5766667 | AB122: ='Farm Bill Calculator'!$E$30 -> 4.12 | AC122: 624.4958667 | AD122: 0 | AE122: 0
B123: BarrySoybeansIrrigated | C123: 26071 | D123: Michigan | E123: Barry | G123: Soybeans | H123: Bushel | I123: Irrigated | J123: 59.42 | K123: 62.29 | L123: 48.98 | M123: 59.78 | N123: 59.82 | O123: 59.7 | P123: 60.91 | Q123: 62.74 | R123: 61.07 | S123: 61.328 | T123: 0.48 | V123: 60.17 | W123: ='Background Calculations'!$M$54 -> 5.03 | X123: 302.6551 | Y123: 272.38959 | Z123: 36.318612 | AA123: ='Farm Bill Calculator'!$E$22 -> 151.5766667 | AB123: ='Farm Bill Calculator'!$E$30 -> 4.12 | AC123: 624.4958667 | AD123: 0 | AE123: 0
B124: BarrySoybeansNonirrigated | C124: 26073 | D124: Michigan | E124: Barry | G124: Soybeans | H124: Bushel | I124: Nonirrigated | J124: 46.52 | K124: 49.12 | L124: 49.98 | M124: 45.96 | N124: 51.41 | O124: 52.03 | P124: 43.84 | Q124: 48.52 | R124: 48.822 | S124: 49.3944 | T124: 0.47 | V124: 48.63 | W124: ='Background Calculations'!$M$54 -> 5.03 | X124: 244.6089 | Y124: 220.14801 | Z124: 29.353068 | AA124: ='Farm Bill Calculator'!$E$22 -> 151.5766667 | AB124: ='Farm Bill Calculator'!$E$30 -> 4.12 | AC124: 624.4958667 | AD124: 0 | AE124: 0
B125: BaySoybeansIrrigated | C125: 26073 | D125: Michigan | E125: Bay | G125: Soybeans | H125: Bushel | I125: Irrigated | J125: 42.9 | K125: 54.67 | L125: 52.99 | M125: 63.94 | N125: 59.81 | O125: 64.06 | P125: 51.39 | Q125: 57.67 | R125: 59.944 | S125: 59.1448 | T125: 0.57 | V125: 60.47333333 | W125: ='Background Calculations'!$M$54 -> 5.03 | X125: 304.1808667 | Y125: 273.76278 | Z125: 36.501704 | AA125: ='Farm Bill Calculator'!$E$22 -> 151.5766667 | AB125: ='Farm Bill Calculator'!$E$30 -> 4.12 | AC125: 624.4958667 | AD125: 0 | AE125: 0
B126: BaySoybeansNonirrigated | C126: 26073 | D126: Michigan | E126: Bay | G126: Soybeans | H126: Bushel | I126: Nonirrigated | J126: 50.9 | K126: 60.2 | L126: 40.73 | M126: 53.77 | N126: 58.03 | O126: 51.33 | P126: 52.65 | Q126: 55.13 | R126: 54.752 | S126: 54.9484 | T126: 0.57 | V126: 53.85 | W126: ='Background Calculations'!$M$54 -> 5.03 | X126: 270.8655 | Y126: 243.77895 | Z126: 32.50386 | AA126: ='Farm Bill Calculator'!$E$22 -> 151.5766667 | AB126: ='Farm Bill Calculator'!$E$30 -> 4.12 | AC126: 624.4958667 | AD126: 0 | AE126: 0
B127: BerrienSoybeansIrrigated | C127: 26073 | D127: Michigan | E127: Berrien | G127: Soybeans | H127: Bushel | I127: Irrigated | J127: 57.86 | K127: 68.77 | L127: 56.58 | M127: 67.15 | N127: 63.87 | O127: 58.53 | P127: 57.93 | Q127: 53.97 | R127: 60.75 | S127: 59.47 | T127: 0.46 | V127: 60.11 | W127: ='Background Calculations'!$M$54 -> 5.03 | X127: 302.3533 | Y127: 272.11797 | Z127: 36.282396 | AA127: ='Farm Bill Calculator'!$E$22 -> 151.5766667 | AB127: ='Farm Bill Calculator'!$E$30 -> 4.12 | AC127: 624.4958667 | AD127: 0 | AE127: 0
B128: BerrienSoybeansNonirrigated | C128: 26073 | D128: Michigan | E128: Berrien | G128: Soybeans | H128: Bushel | I128: Nonirrigated | J128: 43.95 | K128: 53.63 | L128: 41.72 | M128: 45.19 | N128: 52.62 | O128: 45.78 | P128: 46.35 | Q128: 38.93 | R128: 46.214 | S128: 46.4188 | T128: 0.44 | V128: 45.77333333 | W128: ='Background Calculations'!$M$54 -> 5.03 | X128: 230.2398667 | Y128: 207.21588 | Z128: 27.628784 | AA128: ='Farm Bill Calculator'!$E$22 -> 151.5766667 | AB128: ='Farm Bill Calculator'!$E$30 -> 4.12 | AC128: 624.4958667 | AD128: 0 | AE128: 0
B129: BranchSoybeansIrrigated | C129: 26075 | D129: Michigan | E129: Branch | G129: Soybeans | H129: Bushel | I129: Irrigated | J129: 54.04 | K129: 60.46 | L129: 57.02 | M129: 60.21 | N129: 62.11 | O129: 61.88 | P129: 58.09 | Q129: 61.03 | R129: 61.074 | S129: 61.2468 | T129: 0.41 | V129: 61.04 | W129: ='Background Calculations'!$M$54 -> 5.03 | X129: 307.0312 | Y129: 276.32808 | Z129: 36.843744 | AA129: ='Farm Bill Calculator'!$E$22 -> 151.5766667 | AB129: ='Farm Bill Calculator'!$E$30 -> 4.12 | AC129: 624.4958667 | AD129: 0 | AE129: 0
B130: BranchSoybeansNonirrigated | C130: 26075 | D130: Michigan | E130: Branch | G130: Soybeans | H130: Bushel | I130: Nonirrigated | J130: 41.84 | K130: 48.41 | L130: 45.68 | M130: 47.02 | N130: 51.75 | O130: 53.52 | P130: 40.74 | Q130: 45.3 | R130: 48.056 | S130: 48.2632 | T130: 0.39 | V130: 48.02333333 | W130: ='Background Calculations'!$M$54 -> 5.03 | X130: 241.5573667 | Y130: 217.40163 | Z130: 28.986884 | AA130: ='Farm Bill Calculator'!$E$22 -> 151.5766667 | AB130: ='Farm Bill Calculator'!$E$30 -> 4.12 | AC130: 624.4958667 | AD130: 0 | AE130: 0
B131: CalhounSoybeansIrrigated | C131: 26075 | D131: Michigan | E131: Calhoun | G131: Soybeans | H131: Bushel | I131: Irrigated | J131: 55.36 | K131: 65.31 | L131: 52.27 | M131: 60.05 | N131: 61.41 | O131: 61.55 | P131: 53.76 | Q131: 55.99 | R131: 58.942 | S131: 58.7204 | T131: 0.39 | V131: 59.15 | W131: ='Background Calculations'!$M$54 -> 5.03 | X131: 297.5245 | Y131: 267.77205 | Z131: 35.70294 | AA131: ='Farm Bill Calculator'!$E$22 -> 151.5766667 | AB131: ='Farm Bill Calculator'!$E$30 -> 4.12 | AC131: 624.4958667 | AD131: 0 | AE131: 0
B132: CalhounSoybeansNonirrigated | C132: 26075 | D132: Michigan | E132: Calhoun | G132: Soybeans | H132: Bushel | I132: Nonirrigated | J132: 36 | K132: 45.24 | L132: 38.51 | M132: 41.93 | N132: 48.12 | O132: 50 | P132: 40.76 | Q132: 42.07 | R132: 44.956 | S132: 45.5612 | T132: 0.38 | V132: 44.04 | W132: ='Background Calculations'!$M$54 -> 5.03 | X132: 221.5212 | Y132: 199.36908 | Z132: 26.582544 | AA132: ='Farm Bill Calculator'!$E$22 -> 151.5766667 | AB132: ='Farm Bill Calculator'!$E$30 -> 4.12 | AC132: 624.4958667 | AD132: 0 | AE132: 0
B133: =E133&G133&I133 -> CassSoybeansIrrigated | C133: 26075 | D133: Michigan | E133: Cass | G133: Soybeans | H133: Bushel | I133: Irrigated | J133: 59.72 | K133: 52.35 | L133: 63.32 | M133: 65.82 | N133: 66.54 | O133: 56.57 | P133: 58.8 | Q133: 56.46 | R133: 61.298 | S133: 60.3936 | T133: 0.46 | V133: 60.39666667 | W133: ='Background Calculations'!$M$54 -> 5.03 | X133: 303.7952333 | Y133: 273.41571 | Z133: 36.455428 | AA133: ='Farm Bill Calculator'!$E$22 -> 151.5766667 | AB133: ='Farm Bill Calculator'!$E$30 -> 4.12 | AC133: 624.4958667 | AD133: 0 | AE133: 0
B134: CassSoybeansNonirrigated | C134: 26077 | D134: Michigan | E134: Cass | G134: Soybeans | H134: Bushel | I134: Nonirrigated | J134: 44.03 | K134: 51.2 | L134: 44.02 | M134: 41.37 | N134: 49.56 | O134: 41.82 | P134: 42.93 | Q134: 37.15 | R134: =AVERAGE(M134:Q134)+T134 -> 42.956 | S134: =AVERAGE(N134:R134)+T134 -> 43.2732 | T134: 0.39 | V134: =(SUM(M134:Q134)-MIN(M134:Q134)-MAX(M134:Q134))/(COUNT(M134:Q134)-2) -> 42.04 | W134: ='Background Calculations'!$M$54 -> 5.03 | X134: =V134*W134 -> 211.4612 | Y134: =X134*0.9 -> 190.31508 | Z134: =X134*0.12 -> 25.375344 | AA134: ='Farm Bill Calculator'!$E$22 -> 151.5766667 | AB134: ='Farm Bill Calculator'!$E$30 -> 4.12 | AC134: =AB134*AA134 -> 624.4958667 | AD134: =IF(Y134-AC134>0,Y134-AC134,0) -> 0 | AE134: =MIN(AD134,Z134) -> 0
B135: CharlevoixSoybeansAll | C135: 26077 | D135: Michigan | E135: Charlevoix | G135: Soybeans | H135: Bushel | I135: All | J135: 40.8 | K135: 40.8 | L135: 40.8 | M135: 40.8 | N135: 45.8 | O135: 40.8 | P135: 40.8 | Q135: 36.45 | R135: 40.93 | S135: 40.956 | V135: 40.8 | W135: ='Background Calculations'!$M$54 -> 5.03 | X135: 205.224 | Y135: 184.7016 | Z135: 24.62688 | AA135: ='Farm Bill Calculator'!$E$22 -> 151.5766667 | AB135: ='Farm Bill Calculator'!$E$30 -> 4.12 | AC135: 624.4958667 | AD135: 0 | AE135: 0
B136: CheboyganSoybeansAll | C136: 26077 | D136: Michigan | E136: Cheboygan | G136: Soybeans | H136: Bushel | I136: All | J136: 40.8 | K136: 40.8 | L136: 40.8 | M136: 40.8 | N136: 42 | O136: 40.8 | P136: 40.8 | Q136: 36.45 | R136: 40.17 | S136: 40.044 | V136: 40.8 | W136: ='Background Calculations'!$M$54 -> 5.03 | X136: 205.224 | Y136: 184.7016 | Z136: 24.62688 | AA136: ='Farm Bill Calculator'!$E$22 -> 151.5766667 | AB136: ='Farm Bill Calculator'!$E$30 -> 4.12 | AC136: 624.4958667 | AD136: 0 | AE136: 0
B137: ChippewaSoybeansAll | C137: 26077 | D137: Michigan | E137: Chippewa | G137: Soybeans | H137: Bushel | I137: All | J137: 37 | K137: 37 | L137: 1131.11 | M137: 40.1 | N137: 33.2 | O137: 25.6 | P137: 28.99 | Q137: 30.44 | R137: 31.666 | S137: 29.9792 | V137: 30.87666667 | W137: ='Background Calculations'!$M$54 -> 5.03 | X137: 155.3096333 | Y137: 139.77867 | Z137: 18.637156 | AA137: ='Farm Bill Calculator'!$E$22 -> 151.5766667 | AB137: ='Farm Bill Calculator'!$E$30 -> 4.12 | AC137: 624.4958667 | AD137: 0 | AE137: 0
B138: ClareSoybeansAll | C138: 26077 | D138: Michigan | E138: Clare | G138: Soybeans | H138: Bushel | I138: All | J138: 34.13 | K138: 33.95 | L138: 26.43 | M138: 30.79 | N138: 30.01 | O138: 34.41 | P138: 31.12 | Q138: 37.71 | R138: 32.808 | S138: 33.2116 | V138: 32.10666667 | W138: ='Background Calculations'!$M$54 -> 5.03 | X138: 161.4965333 | Y138: 145.34688 | Z138: 19.379584 | AA138: ='Farm Bill Calculator'!$E$22 -> 151.5766667 | AB138: ='Farm Bill Calculator'!$E$30 -> 4.12 | AC138: 624.4958667 | AD138: 0 | AE138: 0
B139: ClintonSoybeansIrrigated | C139: 26079 | D139: Michigan | E139: Clinton | G139: Soybeans | H139: Bushel | I139: Irrigated | J139: 53.13 | K139: 49.3 | L139: 48.92 | M139: 49.95 | N139: 60.38 | O139: 69 | P139: 54.02 | Q139: 64.78 | R139: 60.096 | S139: 62.1252 | T139: 0.47 | V139: 59.72666667 | W139: ='Background Calculations'!$M$54 -> 5.03 | X139: 300.4251333 | Y139: 270.38262 | Z139: 36.051016 | AA139: ='Farm Bill Calculator'!$E$22 -> 151.5766667 | AB139: ='Farm Bill Calculator'!$E$30 -> 4.12 | AC139: 624.4958667 | AD139: 0 | AE139: 0
B140: ClintonSoybeansNonirrigated | C140: 26079 | D140: Michigan | E140: Clinton | G140: Soybeans | H140: Bushel | I140: Nonirrigated | J140: 43.35 | K140: 43.9 | L140: 41.92 | M140: 49.95 | N140: 54.19 | O140: 50.51 | P140: 45.68 | Q140: 51.06 | R140: 50.748 | S140: 50.9076 | T140: 0.47 | V140: 50.50666667 | W140: ='Background Calculations'!$M$54 -> 5.03 | X140: 254.0485333 | Y140: 228.64368 | Z140: 30.485824 | AA140: ='Farm Bill Calculator'!$E$22 -> 151.5766667 | AB140: ='Farm Bill Calculator'!$E$30 -> 4.12 | AC140: 624.4958667 | AD140: 0 | AE140: 0
B141: DeltaSoybeansAll | C141: 26079 | D141: Michigan | E141: Delta | G141: Soybeans | H141: Bushel | I141: All | J141: 37 | K141: 37 | L141: 34.4 | M141: 40.1 | N141: 33.2 | O141: 17.6 | P141: 28.99 | Q141: 30.44 | R141: 30.066 | S141: 28.0592 | V141: 30.87666667 | W141: ='Background Calculations'!$M$54 -> 5.03 | X141: 155.3096333 | Y141: 139.77867 | Z141: 18.637156 | AA141: ='Farm Bill Calculator'!$E$22 -> 151.5766667 | AB141: ='Farm Bill Calculator'!$E$30 -> 4.12 | AC141: 624.4958667 | AD141: 0 | AE141: 0
B142: EatonSoybeansIrrigated | C142: 26081 | D142: Michigan | E142: Eaton | G142: Soybeans | H142: Bushel | I142: Irrigated | J142: 54.37 | K142: 64.69 | L142: 49.04 | M142: 55.36 | N142: 56.22 | O142: 49.63 | P142: 46.52 | Q142: 59.87 | R142: 54.01 | S142: 53.74 | T142: 0.49 | V142: 53.73666667 | W142: ='Background Calculations'!$M$54 -> 5.03 | X142: 270.2954333 | Y142: 243.26589 | Z142: 32.435452 | AA142: ='Farm Bill Calculator'!$E$22 -> 151.5766667 | AB142: ='Farm Bill Calculator'!$E$30 -> 4.12 | AC142: 624.4958667 | AD142: 0 | AE142: 0
B143: EatonSoybeansNonirrigated | C143: 26081 | D143: Michigan | E143: Eaton | G143: Soybeans | H143: Bushel | I143: Nonirrigated | J143: 45.59 | K143: 51.8 | L143: 38.32 | M143: 51.17 | N143: 54.25 | O143: 52.26 | P143: 45.16 | Q143: 40.9 | R143: 49.238 | S143: 48.8516 | T143: 0.49 | V143: 49.53 | W143: ='Background Calculations'!$M$54 -> 5.03 | X143: 249.1359 | Y143: 224.22231 | Z143: 29.896308 | AA143: ='Farm Bill Calculator'!$E$22 -> 151.5766667 | AB143: ='Farm Bill Calculator'!$E$30 -> 4.12 | AC143: 624.4958667 | AD143: 0 | AE143: 0
B144: EmmetSoybeansAll | C144: 26081 | D144: Michigan | E144: Emmet | G144: Soybeans | H144: Bushel | I144: All | J144: 40.8 | K144: 40.8 | L144: 40.8 | M144: 40.8 | N144: 40.8 | O144: 40.8 | P144: 40.8 | Q144: 36.45 | R144: 39.93 | S144: 39.756 | V144: 40.8 | W144: ='Background Calculations'!$M$54 -> 5.03 | X144: 205.224 | Y144: 184.7016 | Z144: 24.62688 | AA144: ='Farm Bill Calculator'!$E$22 -> 151.5766667 | AB144: ='Farm Bill Calculator'!$E$30 -> 4.12 | AC144: 624.4958667 | AD144: 0 | AE144: 0
B145: GeneseeSoybeansAll | C145: 26081 | D145: Michigan | E145: Genesee | G145: Soybeans | H145: Bushel | I145: All | J145: 42.77 | K145: 49.5 | L145: 39.39 | M145: 46.79 | N145: 49.35 | O145: 41 | P145: 43.01 | Q145: 43.61 | R145: 45.102 | S145: 44.7644 | T145: 0.35 | V145: 44.47 | W145: ='Background Calculations'!$M$54 -> 5.03 | X145: 223.6841 | Y145: 201.31569 | Z145: 26.842092 | AA145: ='Farm Bill Calculator'!$E$22 -> 151.5766667 | AB145: ='Farm Bill Calculator'!$E$30 -> 4.12 | AC145: 624.4958667 | AD145: 0 | AE145: 0
B146: GladwinSoybeansAll | C146: 26081 | D146: Michigan | E146: Gladwin | G146: Soybeans | H146: Bushel | I146: All | J146: 41.26 | K146: 43.16 | L146: 34.4 | M146: 42.72 | N146: 48.47 | O146: 37.83 | P146: 37.69 | Q146: 42.8 | R146: 42.302 | S146: 42.2184 | T146: 0.4 | V146: 41.11666667 | W146: ='Background Calculations'!$M$54 -> 5.03 | X146: 206.8168333 | Y146: 186.13515 | Z146: 24.81802 | AA146: ='Farm Bill Calculator'!$E$22 -> 151.5766667 | AB146: ='Farm Bill Calculator'!$E$30 -> 4.12 | AC146: 624.4958667 | AD146: 0 | AE146: 0
B147: Grand TraverseSoybeansAll | C147: 26085 | D147: Michigan | E147: Grand Traverse | G147: Soybeans | H147: Bushel | I147: All | J147: 34.87 | K147: 27.75 | L147: 34.4 | M147: 35.9 | N147: 40.92 | O147: 34.79 | P147: 41.13 | Q147: 36.61 | R147: 37.87 | S147: 38.264 | V147: 37.81 | W147: ='Background Calculations'!$M$54 -> 5.03 | X147: 190.1843 | Y147: 171.16587 | Z147: 22.822116 | AA147: ='Farm Bill Calculator'!$E$22 -> 151.5766667 | AB147: ='Farm Bill Calculator'!$E$30 -> 4.12 | AC147: 624.4958667 | AD147: 0 | AE147: 0
B148: GratiotSoybeansIrrigated | C148: 26085 | D148: Michigan | E148: Gratiot | G148: Soybeans | H148: Bushel | I148: Irrigated | J148: 51.49 | K148: 57.44 | L148: 48.76 | M148: 52.1 | N148: 56 | O148: 55.68 | P148: 49.79 | Q148: 57.07 | R148: 54.648 | S148: 55.1576 | T148: 0.52 | V148: 54.59333333 | W148: ='Background Calculations'!$M$54 -> 5.03 | X148: 274.6044667 | Y148: 247.14402 | Z148: 32.952536 | AA148: ='Farm Bill Calculator'!$E$22 -> 151.5766667 | AB148: ='Farm Bill Calculator'!$E$30 -> 4.12 | AC148: 624.4958667 | AD148: 0 | AE148: 0
B149: GratiotSoybeansNonirrigated | C149: 26087 | D149: Michigan | E149: Gratiot | G149: Soybeans | H149: Bushel | I149: Nonirrigated | J149: 45.65 | K149: 55.13 | L149: 42.4 | M149: 53.22 | N149: 52.74 | O149: 52.05 | P149: 49.55 | Q149: 55.62 | R149: 53.156 | S149: 53.1432 | T149: 0.52 | V149: 52.67 | W149: ='Background Calculations'!$M$54 -> 5.03 | X149: 264.9301 | Y149: 238.43709 | Z149: 31.791612 | AA149: ='Farm Bill Calculator'!$E$22 -> 151.5766667 | AB149: ='Farm Bill Calculator'!$E$30 -> 4.12 | AC149: 624.4958667 | AD149: 0 | AE149: 0
B150: HillsdaleSoybeansIrrigated | C150: 26087 | D150: Michigan | E150: Hillsdale | G150: Soybeans | H150: Bushel | I150: Irrigated | J150: 52.32 | K150: 57.19 | L150: 56.09 | M150: 59.46 | N150: 57.39 | O150: 62.27 | P150: 60.01 | Q150: 59.72 | R150: 60.16 | S150: 60.3 | T150: 0.39 | V150: 59.73 | W150: ='Background Calculations'!$M$54 -> 5.03 | X150: 300.4419 | Y150: 270.39771 | Z150: 36.053028 | AA150: ='Farm Bill Calculator'!$E$22 -> 151.5766667 | AB150: ='Farm Bill Calculator'!$E$30 -> 4.12 | AC150: 624.4958667 | AD150: 0 | AE150: 0
B151: HillsdaleSoybeansNonirrigated | C151: 26087 | D151: Michigan | E151: Hillsdale | G151: Soybeans | H151: Bushel | I151: Nonirrigated | J151: 45.84 | K151: 48.78 | L151: 45.17 | M151: 49.73 | N151: 50.63 | O151: 53.24 | P151: 48.32 | Q151: 48.18 | R151: 50.41 | S151: 50.546 | T151: 0.39 | V151: 49.56 | W151: ='Background Calculations'!$M$54 -> 5.03 | X151: 249.2868 | Y151: 224.35812 | Z151: 29.914416 | AA151: ='Farm Bill Calculator'!$E$22 -> 151.5766667 | AB151: ='Farm Bill Calculator'!$E$30 -> 4.12 | AC151: 624.4958667 | AD151: 0 | AE151: 0
B152: HuronSoybeansIrrigated | C152: 26089 | D152: Michigan | E152: Huron | G152: Soybeans | H152: Bushel | I152: Irrigated | J152: 50.92 | K152: 59.55 | L152: 47.82 | M152: 62.25 | N152: 56.77 | O152: 60.19 | P152: 63.57 | Q152: 66.97 | R152: 62.52 | S152: 62.574 | T152: 0.57 | V152: 62.00333333 | W152: ='Background Calculations'!$M$54 -> 5.03 | X152: 311.8767667 | Y152: 280.68909 | Z152: 37.425212 | AA152: ='Farm Bill Calculator'!$E$22 -> 151.5766667 | AB152: ='Farm Bill Calculator'!$E$30 -> 4.12 | AC152: 624.4958667 | AD152: 0 | AE152: 0
B153: HuronSoybeansNonirrigated | C153: 26089 | D153: Michigan | E153: Huron | G153: Soybeans | H153: Bushel | I153: Nonirrigated | J153: 57.26 | K153: 49.75 | L153: 48.71 | M153: 53.08 | N153: 58.65 | O153: 48.25 | P153: 42.88 | Q153: 37.62 | R153: 48.666 | S153: 47.7832 | T153: 0.57 | V153: 48.07 | W153: ='Background Calculations'!$M$54 -> 5.03 | X153: 241.7921 | Y153: 217.61289 | Z153: 29.015052 | AA153: ='Farm Bill Calculator'!$E$22 -> 151.5766667 | AB153: ='Farm Bill Calculator'!$E$30 -> 4.12 | AC153: 624.4958667 | AD153: 0 | AE153: 0
B154: InghamSoybeansIrrigated | C154: 26089 | D154: Michigan | E154: Ingham | G154: Soybeans | H154: Bushel | I154: Irrigated | J154: 42.39 | K154: 50.16 | L154: 49.22 | M154: 50.9 | N154: 60.95 | O154: 57.38 | P154: 55.95 | Q154: 62.59 | R154: 58.074 | S154: 59.5088 | T154: 0.52 | V154: 58.09333333 | W154: ='Background Calculations'!$M$54 -> 5.03 | X154: 292.2094667 | Y154: 262.98852 | Z154: 35.065136 | AA154: ='Farm Bill Calculator'!$E$22 -> 151.5766667 | AB154: ='Farm Bill Calculator'!$E$30 -> 4.12 | AC154: 624.4958667 | AD154: 0 | AE154: 0
B155: InghamSoybeansNonirrigated | C155: 26091 | D155: Michigan | E155: Ingham | G155: Soybeans | H155: Bushel | I155: Nonirrigated | J155: 50.84 | K155: 54.48 | L155: 42.92 | M155: 51.04 | N155: 51.79 | O155: 45.98 | P155: 45.43 | Q155: 53.01 | R155: 49.97 | S155: 49.756 | T155: 0.52 | V155: 49.60333333 | W155: ='Background Calculations'!$M$54 -> 5.03 | X155: 249.5047667 | Y155: 224.55429 | Z155: 29.940572 | AA155: ='Farm Bill Calculator'!$E$22 -> 151.5766667 | AB155: ='Farm Bill Calculator'!$E$30 -> 4.12 | AC155: 624.4958667 | AD155: 0 | AE155: 0
B156: IoniaSoybeansIrrigated | C156: 26091 | D156: Michigan | E156: Ionia | G156: Soybeans | H156: Bushel | I156: Irrigated | J156: 60.06 | K156: 62.16 | L156: 62.13 | M156: 66.22 | N156: 68.52 | O156: 70.92 | P156: 60.63 | Q156: 61.61 | R156: 66.16 | S156: 66.148 | T156: 0.58 | V156: 65.45 | W156: ='Background Calculations'!$M$54 -> 5.03 | X156: 329.2135 | Y156: 296.29215 | Z156: 39.50562 | AA156: ='Farm Bill Calculator'!$E$22 -> 151.5766667 | AB156: ='Farm Bill Calculator'!$E$30 -> 4.12 | AC156: 624.4958667 | AD156: 0 | AE156: 0
B157: IoniaSoybeansNonirrigated | C157: 26091 | D157: Michigan | E157: Ionia | G157: Soybeans | H157: Bushel | I157: Nonirrigated | J157: 47.16 | K157: 56.7 | L157: 49.56 | M157: 49.33 | N157: 61.88 | O157: 56.8 | P157: 48.54 | Q157: 52.84 | R157: 54.458 | S157: 55.4836 | T157: 0.58 | V157: 52.99 | W157: ='Background Calculations'!$M$54 -> 5.03 | X157: 266.5397 | Y157: 239.88573 | Z157: 31.984764 | AA157: ='Farm Bill Calculator'!$E$22 -> 151.5766667 | AB157: ='Farm Bill Calculator'!$E$30 -> 4.12 | AC157: 624.4958667 | AD157: 0 | AE157: 0
B158: IoscoSoybeansAll | C158: 26091 | D158: Michigan | E158: Iosco | G158: Soybeans | H158: Bushel | I158: All | J158: 38.94 | K158: 47.72 | L158: 33.52 | M158: 33.82 | N158: 42.07 | O158: 38.43 | P158: 40.3 | Q158: 39.11 | R158: 39.166 | S158: 40.2352 | T158: 0.42 | V158: 39.28 | W158: ='Background Calculations'!$M$54 -> 5.03 | X158: 197.5784 | Y158: 177.82056 | Z158: 23.709408 | AA158: ='Farm Bill Calculator'!$E$22 -> 151.5766667 | AB158: ='Farm Bill Calculator'!$E$30 -> 4.12 | AC158: 624.4958667 | AD158: 0 | AE158: 0
B159: IsabellaSoybeansIrrigated | C159: 26091 | D159: Michigan | E159: Isabella | G159: Soybeans | H159: Bushel | I159: Irrigated | J159: 48.11 | K159: 50.27 | L159: 45.14 | M159: 53.22 | N159: 55.88 | O159: 47.35 | P159: 40.27 | Q159: 37.88 | R159: 47.41 | S159: 46.248 | T159: 0.49 | V159: 46.94666667 | W159: ='Background Calculations'!$M$54 -> 5.03 | X159: 236.1417333 | Y159: 212.52756 | Z159: 28.337008 | AA159: ='Farm Bill Calculator'!$E$22 -> 151.5766667 | AB159: ='Farm Bill Calculator'!$E$30 -> 4.12 | AC159: 624.4958667 | AD159: 0 | AE159: 0
B160: IsabellaSoybeansNonirrigated | C160: 26093 | D160: Michigan | E160: Isabella | G160: Soybeans | H160: Bushel | I160: Nonirrigated | J160: 41.99 | K160: 43.24 | L160: 37.62 | M160: 40.41 | N160: 49.18 | O160: 47.97 | P160: 41.14 | Q160: 45.72 | R160: 45.374 | S160: 46.3668 | T160: 0.49 | V160: 44.94333333 | W160: ='Background Calculations'!$M$54 -> 5.03 | X160: 226.0649667 | Y160: 203.45847 | Z160: 27.127796 | AA160: ='Farm Bill Calculator'!$E$22 -> 151.5766667 | AB160: ='Farm Bill Calculator'!$E$30 -> 4.12 | AC160: 624.4958667 | AD160: 0 | AE160: 0
B161: JacksonSoybeansIrrigated | C161: 26093 | D161: Michigan | E161: Jackson | G161: Soybeans | H161: Bushel | I161: Irrigated | J161: 59.69 | K161: 58.05 | L161: 59.93 | M161: 56.03 | N161: 58.96 | O161: 59.55 | P161: 67.6 | Q161: 58.25 | R161: 60.438 | S161: 61.3196 | T161: 0.36 | V161: 58.92 | W161: ='Background Calculations'!$M$54 -> 5.03 | X161: 296.3676 | Y161: 266.73084 | Z161: 35.564112 | AA161: ='Farm Bill Calculator'!$E$22 -> 151.5766667 | AB161: ='Farm Bill Calculator'!$E$30 -> 4.12 | AC161: 624.4958667 | AD161: 0 | AE161: 0
B162: JacksonSoybeansNonirrigated | C162: 26093 | D162: Michigan | E162: Jackson | G162: Soybeans | H162: Bushel | I162: Nonirrigated | J162: 35.21 | K162: 43.35 | L162: 44.59 | M162: 40.74 | N162: 49.27 | O162: 47.83 | P162: 44.58 | Q162: 46.87 | R162: 46.208 | S162: 47.3016 | T162: 0.35 | V162: 46.42666667 | W162: ='Background Calculations'!$M$54 -> 5.03 | X162: 233.5261333 | Y162: 210.17352 | Z162: 28.023136 | AA162: ='Farm Bill Calculator'!$E$22 -> 151.5766667 | AB162: ='Farm Bill Calculator'!$E$30 -> 4.12 | AC162: 624.4958667 | AD162: 0 | AE162: 0
B163: KalamazooSoybeansIrrigated | C163: 26095 | D163: Michigan | E163: Kalamazoo | G163: Soybeans | H163: Bushel | I163: Irrigated | J163: 57.7 | K163: 69.23 | L163: 60.43 | M163: 68.24 | N163: 66.62 | O163: 68.55 | P163: 64.92 | Q163: 70.92 | R163: 68.4 | S163: 68.432 | T163: 0.55 | V163: 67.80333333 | W163: ='Background Calculations'!$M$54 -> 5.03 | X163: 341.0507667 | Y163: 306.94569 | Z163: 40.926092 | AA163: ='Farm Bill Calculator'!$E$22 -> 151.5766667 | AB163: ='Farm Bill Calculator'!$E$30 -> 4.12 | AC163: 624.4958667 | AD163: 0 | AE163: 0
B164: KalamazooSoybeansNonirrigated | C164: 26095 | D164: Michigan | E164: Kalamazoo | G164: Soybeans | H164: Bushel | I164: Nonirrigated | J164: 39.31 | K164: 48.22 | L164: 43.55 | M164: 39.27 | N164: 51.33 | O164: 48.83 | P164: 42.11 | Q164: 47.84 | R164: 46.346 | S164: 47.7612 | T164: 0.47 | V164: 46.26 | W164: ='Background Calculations'!$M$54 -> 5.03 | X164: 232.6878 | Y164: 209.41902 | Z164: 27.922536 | AA164: ='Farm Bill Calculator'!$E$22 -> 151.5766667 | AB164: ='Farm Bill Calculator'!$E$30 -> 4.12 | AC164: 624.4958667 | AD164: 0 | AE164: 0
B165: KalkaskaSoybeansAll | C165: 26095 | D165: Michigan | E165: Kalkaska | G165: Soybeans | H165: Bushel | I165: All | J165: 37 | K165: 37 | L165: 34.4 | M165: 35.2 | N165: 43.36 | O165: 38.34 | P165: 36.44 | Q165: 36.45 | R165: 37.958 | S165: 38.5096 | V165: 37.07666667 | W165: ='Background Calculations'!$M$54 -> 5.03 | X165: 186.4956333 | Y165: 167.84607 | Z165: 22.379476 | AA165: ='Farm Bill Calculator'!$E$22 -> 151.5766667 | AB165: ='Farm Bill Calculator'!$E$30 -> 4.12 | AC165: 624.4958667 | AD165: 0 | AE165: 0
B166: KentSoybeansIrrigated | C166: 26097 | D166: Michigan | E166: Kent | G166: Soybeans | H166: Bushel | I166: Irrigated | J166: 48.54 | K166: 66.62 | L166: 48.68 | M166: 61.28 | N166: 61.52 | O166: 67.24 | P166: 57.34 | Q166: 54.07 | R166: 60.87 | S166: 60.788 | T166: 0.58 | V166: 60.04666667 | W166: ='Background Calculations'!$M$54 -> 5.03 | X166: 302.0347333 | Y166: 271.83126 | Z166: 36.244168 | AA166: ='Farm Bill Calculator'!$E$22 -> 151.5766667 | AB166: ='Farm Bill Calculator'!$E$30 -> 4.12 | AC166: 624.4958667 | AD166: 0 | AE166: 0
B167: KentSoybeansNonirrigated | C167: 26097 | D167: Michigan | E167: Kent | G167: Soybeans | H167: Bushel | I167: Nonirrigated | J167: 43.61 | K167: 46.72 | L167: 46.32 | M167: 48.75 | N167: 54.29 | O167: 52.02 | P167: 45.79 | Q167: 46.89 | R167: 50.118 | S167: 50.3916 | T167: 0.57 | V167: 49.22 | W167: ='Background Calculations'!$M$54 -> 5.03 | X167: 247.5766 | Y167: 222.81894 | Z167: 29.709192 | AA167: ='Farm Bill Calculator'!$E$22 -> 151.5766667 | AB167: ='Farm Bill Calculator'!$E$30 -> 4.12 | AC167: 624.4958667 | AD167: 0 | AE167: 0
B168: LapeerSoybeansAll | C168: 26097 | D168: Michigan | E168: Lapeer | G168: Soybeans | H168: Bushel | I168: All | J168: 42.7 | K168: 47.67 | L168: 36.84 | M168: 50.55 | N168: 48.62 | O168: 41.29 | P168: 40.5 | Q168: 45.29 | R168: 45.68 | S168: 44.706 | T168: 0.43 | V168: 45.06666667 | W168: ='Background Calculations'!$M$54 -> 5.03 | X168: 226.6853333 | Y168: 204.0168 | Z168: 27.20224 | AA168: ='Farm Bill Calculator'!$E$22 -> 151.5766667 | AB168: ='Farm Bill Calculator'!$E$30 -> 4.12 | AC168: 624.4958667 | AD168: 0 | AE168: 0
B169: LeelanauSoybeansAll | C169: 26099 | D169: Michigan | E169: Leelanau | G169: Soybeans | H169: Bushel | I169: All | J169: 45.13 | K169: 40.8 | L169: 40.8 | M169: 40.8 | N169: 40.92 | O169: 40.8 | P169: 40.8 | Q169: 36.45 | R169: 39.954 | S169: 39.7848 | V169: 40.8 | W169: ='Background Calculations'!$M$54 -> 5.03 | X169: 205.224 | Y169: 184.7016 | Z169: 24.62688 | AA169: ='Farm Bill Calculator'!$E$22 -> 151.5766667 | AB169: ='Farm Bill Calculator'!$E$30 -> 4.12 | AC169: 624.4958667 | AD169: 0 | AE169: 0
B170: LenaweeSoybeansIrrigated | C170: 26099 | D170: Michigan | E170: Lenawee | G170: Soybeans | H170: Bushel | I170: Irrigated | J170: 58.12 | K170: 62 | L170: 69.57 | M170: 74.05 | N170: 67.21 | O170: 73.29 | P170: 65.2 | Q170: 62.28 | R170: 68.936 | S170: 67.9132 | T170: 0.53 | V170: 68.56666667 | W170: ='Background Calculations'!$M$54 -> 5.03 | X170: 344.8903333 | Y170: 310.4013 | Z170: 41.38684 | AA170: ='Farm Bill Calculator'!$E$22 -> 151.5766667 | AB170: ='Farm Bill Calculator'!$E$30 -> 4.12 | AC170: 624.4958667 | AD170: 0 | AE170: 0
B171: LenaweeSoybeansNonirrigated | C171: 26099 | D171: Michigan | E171: Lenawee | G171: Soybeans | H171: Bushel | I171: Nonirrigated | J171: 51.91 | K171: 54.22 | L171: 52.94 | M171: 51.34 | N171: 55.72 | O171: 53.83 | P171: 57.43 | Q171: 49.91 | R171: 54.176 | S171: 54.7432 | T171: 0.53 | V171: 53.63 | W171: ='Background Calculations'!$M$54 -> 5.03 | X171: 269.7589 | Y171: 242.78301 | Z171: 32.371068 | AA171: ='Farm Bill Calculator'!$E$22 -> 151.5766667 | AB171: ='Farm Bill Calculator'!$E$30 -> 4.12 | AC171: 624.4958667 | AD171: 0 | AE171: 0
B172: LivingstonSoybeansAll | C172: 26101 | D172: Michigan | E172: Livingston | G172: Soybeans | H172: Bushel | I172: All | J172: 41.61 | K172: 48.33 | L172: 47.93 | M172: 47.88 | N172: 51.87 | O172: 48.01 | P172: 48.54 | Q172: 55.08 | R172: 50.736 | S172: 51.3072 | T172: 0.46 | V172: 49.47333333 | W172: ='Background Calculations'!$M$54 -> 5.03 | X172: 248.8508667 | Y172: 223.96578 | Z172: 29.862104 | AA172: ='Farm Bill Calculator'!$E$22 -> 151.5766667 | AB172: ='Farm Bill Calculator'!$E$30 -> 4.12 | AC172: 624.4958667 | AD172: 0 | AE172: 0
B173: LuceSoybeansAll | C173: 26101 | D173: Michigan | E173: Luce | G173: Soybeans | H173: Bushel | I173: All | J173: 37 | K173: 37 | L173: 34.4 | M173: 40.1 | N173: 33.2 | O173: 26.4 | P173: 28.99 | Q173: 30.44 | R173: 31.826 | S173: 30.1712 | V173: 30.87666667 | W173: ='Background Calculations'!$M$54 -> 5.03 | X173: 155.3096333 | Y173: 139.77867 | Z173: 18.637156 | AA173: ='Farm Bill Calculator'!$E$22 -> 151.5766667 | AB173: ='Farm Bill Calculator'!$E$30 -> 4.12 | AC173: 624.4958667 | AD173: 0 | AE173: 0
B174: MackinacSoybeansAll | C174: 26101 | D174: Michigan | E174: Mackinac | G174: Soybeans | H174: Bushel | I174: All | J174: 37 | K174: 37 | L174: 34.4 | M174: 40.1 | N174: 33.2 | O174: 28.8 | P174: 28.99 | Q174: 30.44 | R174: 32.306 | S174: 30.7472 | V174: 30.87666667 | W174: ='Background Calculations'!$M$54 -> 5.03 | X174: 155.3096333 | Y174: 139.77867 | Z174: 18.637156 | AA174: ='Farm Bill Calculator'!$E$22 -> 151.5766667 | AB174: ='Farm Bill Calculator'!$E$30 -> 4.12 | AC174: 624.4958667 | AD174: 0 | AE174: 0
B175: MacombSoybeansAll | C175: 26103 | D175: Michigan | E175: Macomb | G175: Soybeans | H175: Bushel | I175: All | J175: 43.96 | K175: 47.56 | L175: 38.31 | M175: 43.01 | N175: 42.34 | O175: 37.5 | P175: 40.11 | Q175: 36.72 | R175: 40.356 | S175: 39.8252 | T175: 0.42 | V175: 39.98333333 | W175: ='Background Calculations'!$M$54 -> 5.03 | X175: 201.1161667 | Y175: 181.00455 | Z175: 24.13394 | AA175: ='Farm Bill Calculator'!$E$22 -> 151.5766667 | AB175: ='Farm Bill Calculator'!$E$30 -> 4.12 | AC175: 624.4958667 | AD175: 0 | AE175: 0
B176: ManisteeSoybeansAll | C176: 26103 | D176: Michigan | E176: Manistee | G176: Soybeans | H176: Bushel | I176: All | J176: 37 | K176: 36.7 | L176: 34.4 | M176: 37.6 | N176: 48.45 | O176: 38.34 | P176: 36.44 | Q176: 36.45 | R176: 39.456 | S176: 39.8272 | V176: 37.46333333 | W176: ='Background Calculations'!$M$54 -> 5.03 | X176: 188.4405667 | Y176: 169.59651 | Z176: 22.612868 | AA176: ='Farm Bill Calculator'!$E$22 -> 151.5766667 | AB176: ='Farm Bill Calculator'!$E$30 -> 4.12 | AC176: 624.4958667 | AD176: 0 | AE176: 0
B177: MasonSoybeansAll | C177: 26105 | D177: Michigan | E177: Mason | G177: Soybeans | H177: Bushel | I177: All | J177: 49.45 | K177: 47.56 | L177: 44.29 | M177: 49.77 | N177: 58.05 | O177: 45.83 | P177: 39.2 | Q177: 40.44 | R177: 47.178 | S177: 46.6596 | T177: 0.52 | V177: 45.34666667 | W177: ='Background Calculations'!$M$54 -> 5.03 | X177: 228.0937333 | Y177: 205.28436 | Z177: 27.371248 | AA177: ='Farm Bill Calculator'!$E$22 -> 151.5766667 | AB177: ='Farm Bill Calculator'!$E$30 -> 4.12 | AC177: 624.4958667 | AD177: 0 | AE177: 0
B178: MecostaSoybeansIrrigated | C178: 26105 | D178: Michigan | E178: Mecosta | G178: Soybeans | H178: Bushel | I178: Irrigated | J178: 55.54 | K178: 54.02 | L178: 34.4 | M178: 56.39 | N178: 59.08 | O178: 55.02 | P178: 43.84 | Q178: 48.55 | R178: 52.576 | S178: 51.8132 | V178: 53.32 | W178: ='Background Calculations'!$M$54 -> 5.03 | X178: 268.1996 | Y178: 241.37964 | Z178: 32.183952 | AA178: ='Farm Bill Calculator'!$E$22 -> 151.5766667 | AB178: ='Farm Bill Calculator'!$E$30 -> 4.12 | AC178: 624.4958667 | AD178: 0 | AE178: 0
B179: MecostaSoybeansNonirrigated | C179: 26105 | D179: Michigan | E179: Mecosta | G179: Soybeans | H179: Bushel | I179: Nonirrigated | J179: 33.32 | K179: 26.47 | L179: 23.2 | M179: 30.08 | N179: 36.42 | O179: 27.81 | P179: 35.41 | Q179: 35.91 | R179: 33.126 | S179: 33.7352 | V179: 33.8 | W179: ='Background Calculations'!$M$54 -> 5.03 | X179: 170.014 | Y179: 153.0126 | Z179: 20.40168 | AA179: ='Farm Bill Calculator'!$E$22 -> 151.5766667 | AB179: ='Farm Bill Calculator'!$E$30 -> 4.12 | AC179: 624.4958667 | AD179: 0 | AE179: 0
B180: MenomineeSoybeansAll | C180: 26105 | D180: Michigan | E180: Menominee | G180: Soybeans | H180: Bushel | I180: All | J180: 24.18 | K180: 37.72 | L180: 17.6 | M180: 38.25 | N180: 33.2 | O180: 21.61 | P180: 28.99 | Q180: 30.44 | R180: 30.498 | S180: 28.9476 | V180: 30.87666667 | W180: ='Background Calculations'!$M$54 -> 5.03 | X180: 155.3096333 | Y180: 139.77867 | Z180: 18.637156 | AA180: ='Farm Bill Calculator'!$E$22 -> 151.5766667 | AB180: ='Farm Bill Calculator'!$E$30 -> 4.12 | AC180: 624.4958667 | AD180: 0 | AE180: 0
B181: MidlandSoybeansAll | C181: 26107 | D181: Michigan | E181: Midland | G181: Soybeans | H181: Bushel | I181: All | J181: 43.05 | K181: 47.48 | L181: 40.58 | M181: 46.02 | N181: 50.39 | O181: 48 | P181: 44.42 | Q181: 48.09 | R181: 47.874 | S181: 48.2448 | T181: 0.49 | V181: 47.37 | W181: ='Background Calculations'!$M$54 -> 5.03 | X181: 238.2711 | Y181: 214.44399 | Z181: 28.592532 | AA181: ='Farm Bill Calculator'!$E$22 -> 151.5766667 | AB181: ='Farm Bill Calculator'!$E$30 -> 4.12 | AC181: 624.4958667 | AD181: 0 | AE181: 0
B182: MissaukeeSoybeansAll | C182: 26107 | D182: Michigan | E182: Missaukee | G182: Soybeans | H182: Bushel | I182: All | J182: 37 | K182: 37 | L182: 34.4 | M182: 35.4 | N182: 35.47 | O182: 38.34 | P182: 36.44 | Q182: 36.45 | R182: 36.42 | S182: 36.624 | V182: 36.12 | W182: ='Background Calculations'!$M$54 -> 5.03 | X182: 181.6836 | Y182: 163.51524 | Z182: 21.802032 | AA182: ='Farm Bill Calculator'!$E$22 -> 151.5766667 | AB182: ='Farm Bill Calculator'!$E$30 -> 4.12 | AC182: 624.4958667 | AD182: 0 | AE182: 0
B183: MonroeSoybeansAll | C183: 26107 | D183: Michigan | E183: Monroe | G183: Soybeans | H183: Bushel | I183: All | J183: 52.41 | K183: 49.28 | L183: 51.91 | M183: 45.46 | N183: 54.56 | O183: 45.04 | P183: 53.6 | Q183: 47.46 | R183: 49.714 | S183: 50.5648 | T183: 0.49 | V183: 48.84 | W183: ='Background Calculations'!$M$54 -> 5.03 | X183: 245.6652 | Y183: 221.09868 | Z183: 29.479824 | AA183: ='Farm Bill Calculator'!$E$22 -> 151.5766667 | AB183: ='Farm Bill Calculator'!$E$30 -> 4.12 | AC183: 624.4958667 | AD183: 0 | AE183: 0
B184: MontcalmSoybeansIrrigated | C184: 26107 | D184: Michigan | E184: Montcalm | G184: Soybeans | H184: Bushel | I184: Irrigated | J184: 52.47 | K184: 56.13 | L184: 53.68 | M184: 57.7 | N184: 61.09 | O184: 58.66 | P184: 51.78 | Q184: 56.2 | R184: 57.486 | S184: 57.4432 | T184: 0.4 | V184: 57.52 | W184: ='Background Calculations'!$M$54 -> 5.03 | X184: 289.3256 | Y184: 260.39304 | Z184: 34.719072 | AA184: ='Farm Bill Calculator'!$E$22 -> 151.5766667 | AB184: ='Farm Bill Calculator'!$E$30 -> 4.12 | AC184: 624.4958667 | AD184: 0 | AE184: 0
B185: MontcalmSoybeansNonirrigated | C185: 26107 | D185: Michigan | E185: Montcalm | G185: Soybeans | H185: Bushel | I185: Nonirrigated | J185: 35.6 | K185: 42.09 | L185: 37.61 | M185: 45.94 | N185: 48.26 | O185: 45.05 | P185: 40.65 | Q185: 45.6 | R185: 45.48 | S185: 45.388 | T185: 0.38 | V185: 45.53 | W185: ='Background Calculations'!$M$54 -> 5.03 | X185: 229.0159 | Y185: 206.11431 | Z185: 27.481908 | AA185: ='Farm Bill Calculator'!$E$22 -> 151.5766667 | AB185: ='Farm Bill Calculator'!$E$30 -> 4.12 | AC185: 624.4958667 | AD185: 0 | AE185: 0
B186: MontmorencySoybeansAll | C186: 26109 | D186: Michigan | E186: Montmorency | G186: Soybeans | H186: Bushel | I186: All | J186: 41.79 | K186: 37 | L186: 30.57 | M186: 44.9 | N186: 48.29 | O186: 39.71 | P186: 31.94 | Q186: 38.94 | R186: 40.756 | S186: 39.9272 | V186: 41.18333333 | W186: ='Background Calculations'!$M$54 -> 5.03 | X186: 207.1521667 | Y186: 186.43695 | Z186: 24.85826 | AA186: ='Farm Bill Calculator'!$E$22 -> 151.5766667 | AB186: ='Farm Bill Calculator'!$E$30 -> 4.12 | AC186: 624.4958667 | AD186: 0 | AE186: 0
B187: MuskegonSoybeansAll | C187: 26109 | D187: Michigan | E187: Muskegon | G187: Soybeans | H187: Bushel | I187: All | J187: 48.71 | K187: 47.4 | L187: 31.34 | M187: 42.75 | N187: 54.71 | O187: 54.02 | P187: 43.15 | Q187: 51.9 | R187: 49.816 | S187: 51.2292 | T187: 0.51 | V187: 49.69 | W187: ='Background Calculations'!$M$54 -> 5.03 | X187: 249.9407 | Y187: 224.94663 | Z187: 29.992884 | AA187: ='Farm Bill Calculator'!$E$22 -> 151.5766667 | AB187: ='Farm Bill Calculator'!$E$30 -> 4.12 | AC187: 624.4958667 | AD187: 0 | AE187: 0
B188: NewaygoSoybeansAll | C188: 26109 | D188: Michigan | E188: Newaygo | G188: Soybeans | H188: Bushel | I188: All | J188: 36.19 | K188: 35.37 | L188: 43.48 | M188: 41.84 | N188: 53.83 | O188: 53.53 | P188: 47.55 | Q188: 49.77 | R188: 49.784 | S188: 51.3728 | T188: 0.48 | V188: 50.28333333 | W188: ='Background Calculations'!$M$54 -> 5.03 | X188: 252.9251667 | Y188: 227.63265 | Z188: 30.35102 | AA188: ='Farm Bill Calculator'!$E$22 -> 151.5766667 | AB188: ='Farm Bill Calculator'!$E$30 -> 4.12 | AC188: 624.4958667 | AD188: 0 | AE188: 0
B189: OaklandSoybeansAll | C189: 26111 | D189: Michigan | E189: Oakland | G189: Soybeans | H189: Bushel | I189: All | J189: 34.37 | K189: 32.17 | L189: 33.03 | M189: 34.76 | N189: 41.11 | O189: 28.99 | P189: 31.21 | Q189: 31.24 | R189: 33.792 | S189: 33.5984 | T189: 0.33 | V189: 32.40333333 | W189: ='Background Calculations'!$M$54 -> 5.03 | X189: 162.9887667 | Y189: 146.68989 | Z189: 19.558652 | AA189: ='Farm Bill Calculator'!$E$22 -> 151.5766667 | AB189: ='Farm Bill Calculator'!$E$30 -> 4.12 | AC189: 624.4958667 | AD189: 0 | AE189: 0
B190: OceanaSoybeansIrrigated | C190: 26111 | D190: Michigan | E190: Oceana | G190: Soybeans | H190: Bushel | I190: Irrigated | J190: 48.46 | K190: 36.37 | L190: 42.88 | M190: 55.05 | N190: 49.48 | O190: 48.67 | P190: 43.92 | Q190: 46.21 | R190: 49.096 | S190: 47.9052 | T190: 0.43 | V190: 48.12 | W190: ='Background Calculations'!$M$54 -> 5.03 | X190: 242.0436 | Y190: 217.83924 | Z190: 29.045232 | AA190: ='Farm Bill Calculator'!$E$22 -> 151.5766667 | AB190: ='Farm Bill Calculator'!$E$30 -> 4.12 | AC190: 624.4958667 | AD190: 0 | AE190: 0
B191: OceanaSoybeansNonirrigated | C191: 26111 | D191: Michigan | E191: Oceana | G191: Soybeans | H191: Bushel | I191: Nonirrigated | J191: 40.55 | K191: 33.48 | L191: 29.72 | M191: 40 | N191: 44.88 | O191: 39.76 | P191: 35.65 | Q191: 36.42 | R191: 39.762 | S191: 39.7144 | T191: 0.42 | V191: 38.72666667 | W191: ='Background Calculations'!$M$54 -> 5.03 | X191: 194.7951333 | Y191: 175.31562 | Z191: 23.375416 | AA191: ='Farm Bill Calculator'!$E$22 -> 151.5766667 | AB191: ='Farm Bill Calculator'!$E$30 -> 4.12 | AC191: 624.4958667 | AD191: 0 | AE191: 0
B192: OgemawSoybeansAll | C192: 26111 | D192: Michigan | E192: Ogemaw | G192: Soybeans | H192: Bushel | I192: All | J192: 43.66 | K192: 40.06 | L192: 35 | M192: 33.25 | N192: 46.87 | O192: 38.96 | P192: 43.28 | Q192: 41.78 | R192: 40.828 | S192: 42.3436 | V192: 41.34 | W192: ='Background Calculations'!$M$54 -> 5.03 | X192: 207.9402 | Y192: 187.14618 | Z192: 24.952824 | AA192: ='Farm Bill Calculator'!$E$22 -> 151.5766667 | AB192: ='Farm Bill Calculator'!$E$30 -> 4.12 | AC192: 624.4958667 | AD192: 0 | AE192: 0
B193: OsceolaSoybeansAll | C193: 26113 | D193: Michigan | E193: Osceola | G193: Soybeans | H193: Bushel | I193: All | J193: 33.47 | K193: 29.81 | L193: 24 | M193: 32.92 | N193: 42.86 | O193: 27.56 | P193: 36.44 | Q193: 40.11 | R193: 35.978 | S193: 36.5896 | V193: 36.49 | W193: ='Background Calculations'!$M$54 -> 5.03 | X193: 183.5447 | Y193: 165.19023 | Z193: 22.025364 | AA193: ='Farm Bill Calculator'!$E$22 -> 151.5766667 | AB193: ='Farm Bill Calculator'!$E$30 -> 4.12 | AC193: 624.4958667 | AD193: 0 | AE193: 0
B194: OtsegoSoybeansAll | C194: 26113 | D194: Michigan | E194: Otsego | G194: Soybeans | H194: Bushel | I194: All | J194: 27.5 | K194: 37 | L194: 33.02 | M194: 44.9 | N194: 45.8 | O194: 38.34 | P194: 25.18 | Q194: 36.45 | R194: 38.134 | S194: 36.7808 | V194: 39.89666667 | W194: ='Background Calculations'!$M$54 -> 5.03 | X194: 200.6802333 | Y194: 180.61221 | Z194: 24.081628 | AA194: ='Farm Bill Calculator'!$E$22 -> 151.5766667 | AB194: ='Farm Bill Calculator'!$E$30 -> 4.12 | AC194: 624.4958667 | AD194: 0 | AE194: 0
B195: OttawaSoybeansIrrigated | C195: 26113 | D195: Michigan | E195: Ottawa | G195: Soybeans | H195: Bushel | I195: Irrigated | J195: 53.6 | K195: 50.82 | L195: 57.01 | M195: 47.51 | N195: 57.45 | O195: 60.01 | P195: 52.68 | Q195: 57.32 | R195: 55.564 | S195: 57.1748 | T195: 0.57 | V195: 55.81666667 | W195: ='Background Calculations'!$M$54 -> 5.03 | X195: 280.7578333 | Y195: 252.68205 | Z195: 33.69094 | AA195: ='Farm Bill Calculator'!$E$22 -> 151.5766667 | AB195: ='Farm Bill Calculator'!$E$30 -> 4.12 | AC195: 624.4958667 | AD195: 0 | AE195: 0
B196: OttawaSoybeansNonirrigated | C196: 26113 | D196: Michigan | E196: Ottawa | G196: Soybeans | H196: Bushel | I196: Nonirrigated | J196: 49.66 | K196: 46.23 | L196: 44.58 | M196: 46.76 | N196: 52.26 | O196: 56.2 | P196: 49.43 | Q196: 55.03 | R196: 52.506 | S196: 53.6552 | T196: 0.57 | V196: 52.24 | W196: ='Background Calculations'!$M$54 -> 5.03 | X196: 262.7672 | Y196: 236.49048 | Z196: 31.532064 | AA196: ='Farm Bill Calculator'!$E$22 -> 151.5766667 | AB196: ='Farm Bill Calculator'!$E$30 -> 4.12 | AC196: 624.4958667 | AD196: 0 | AE196: 0
B197: =E197&G197&I197 -> Presque IsleSoybeansAll | C197: 26115 | D197: Michigan | E197: Presque Isle | G197: Soybeans | H197: Bushel | I197: All | J197: 37 | K197: 20.8 | L197: 20.8 | M197: 43.92 | N197: 31.92 | O197: 24.33 | P197: 30 | Q197: 17.73 | R197: 29.58 | S197: 26.712 | V197: 28.75 | W197: ='Background Calculations'!$M$54 -> 5.03 | X197: 144.6125 | Y197: 130.15125 | Z197: 17.3535 | AA197: ='Farm Bill Calculator'!$E$22 -> 151.5766667 | AB197: ='Farm Bill Calculator'!$E$30 -> 4.12 | AC197: 624.4958667 | AD197: 0 | AE197: 0
B198: SaginawSoybeansIrrigated | C198: 26115 | D198: Michigan | E198: Saginaw | G198: Soybeans | H198: Bushel | I198: Irrigated | J198: 57.01 | K198: 68.36 | L198: 45 | M198: 64.25 | N198: 59.05 | O198: 64.56 | P198: 54.31 | Q198: 59.85 | R198: =AVERAGE(M198:Q198)+T198 -> 60.904 | S198: =AVERAGE(N198:R198)+T198 -> 60.2348 | T198: 0.5 | V198: =(SUM(M198:Q198)-MIN(M198:Q198)-MAX(M198:Q198))/(COUNT(M198:Q198)-2) -> 61.05 | W198: ='Background Calculations'!$M$54 -> 5.03 | X198: =V198*W198 -> 307.0815 | Y198: =X198*0.9 -> 276.37335 | Z198: =X198*0.12 -> 36.84978 | AA198: ='Farm Bill Calculator'!$E$22 -> 151.5766667 | AB198: ='Farm Bill Calculator'!$E$30 -> 4.12 | AC198: =AB198*AA198 -> 624.4958667 | AD198: =IF(Y198-AC198>0,Y198-AC198,0) -> 0 | AE198: =MIN(AD198,Z198) -> 0
B199: SaginawSoybeansNonirrigated | C199: 26115 | D199: Michigan | E199: Saginaw | G199: Soybeans | H199: Bushel | I199: Nonirrigated | J199: 47.49 | K199: 55.63 | L199: 42.82 | M199: 52.58 | N199: 51.54 | O199: 51.69 | P199: 47.55 | Q199: 50.76 | R199: 51.324 | S199: 51.0728 | T199: 0.5 | V199: 51.33 | W199: ='Background Calculations'!$M$54 -> 5.03 | X199: 258.1899 | Y199: 232.37091 | Z199: 30.982788 | AA199: ='Farm Bill Calculator'!$E$22 -> 151.5766667 | AB199: ='Farm Bill Calculator'!$E$30 -> 4.12 | AC199: 624.4958667 | AD199: 0 | AE199: 0
B200: SanilacSoybeansAll | C200: 26115 | D200: Michigan | E200: Sanilac | G200: Soybeans | H200: Bushel | I200: All | J200: 50.31 | K200: 56.35 | L200: 34.73 | M200: 49.55 | N200: 40.07 | O200: 36.6 | P200: 37.41 | Q200: 41.41 | R200: 41.388 | S200: 39.7556 | T200: 0.38 | V200: 39.63 | W200: ='Background Calculations'!$M$54 -> 5.03 | X200: 199.3389 | Y200: 179.40501 | Z200: 23.920668 | AA200: ='Farm Bill Calculator'!$E$22 -> 151.5766667 | AB200: ='Farm Bill Calculator'!$E$30 -> 4.12 | AC200: 624.4958667 | AD200: 0 | AE200: 0
... 89 more rows

Sheet SCO Coverage (hidden)
B1: 0
B2: 85-86%
B3: 80-86%
B4: 75-86%
B5: 70-86%
B6: 65-86%
B7: 60-86%
B8: 55-86%
B9: 50-86%

Sheet County List (hidden)
C2: Alcona
C3: Alger
C4: Allegan
C5: Alpena
C6: Antrim
C7: Arenac
C8: Baraga
C9: Barry
C10: Bay
C11: Benzie
C12: Berrien
C13: Branch
C14: Calhoun
C15: Cass
C16: Charlevoix
C17: Cheboygan
C18: Chippewa
C19: Clare
C20: Clinton
C21: Delta
C22: Dickinson
C23: Eaton
C24: Emmet
C25: Genesee
C26: Gladwin
C27: Grand Traverse
C28: Gratiot
C29: Hillsdale
C30: Houghton
C31: Huron
C32: Ingham
C33: Ionia
C34: Iosco
C35: Iron
C36: Isabella
C37: Jackson
C38: Kalamazoo
C39: Kalkaska
C40: Kent
C41: Lake
C42: Lapeer
C43: Leelanau
C44: Lenawee
C45: Livingston
C46: Luce
C47: Mackinac
C48: Macomb
C49: Manistee
C50: Marquette
C51: Mason
C52: Mecosta
C53: Menominee
C54: Midland
C55: Missaukee
C56: Monroe
C57: Montcalm
C58: Montmorency
C59: Muskegon
C60: Newaygo
C61: Oakland
C62: Oceana
C63: Ogemaw
C64: Ontonagon
C65: Osceola
C66: Oscoda
C67: Otsego
C68: Ottawa
C69: Presque Isle
C70: Roscommon
C71: Saginaw
C72: Sanilac
C73: Schoolcraft
C74: Shiawassee
C75: St. Clair
C76: St. Joseph
C77: Tuscola
C78: Van Buren
C79: Washtenaw
C80: Wayne
C81: Wexford
